{"text_format":"1","workbook":"xlsx","n_sheets":6,"sheets":["products","Your Quote","Help Tab","Short Throw Projectors","DO NOT OPEN","Logic"],"not_rendered":{"charts":0,"images":12,"macros":1,"external_links":0,"defined_names":11,"comments":1,"pivot_tables":0},"unopened":[],"bounds":{"document_bytes":16777216,"sheet_cells":100000,"rows_first":2000,"rows_last":500,"rows_between":2000,"halvings":0,"cell_chars":16384,"cell_head_chars":4096},"cells_cut":0,"cells_raw":0,"read":"whole","date_system":"1900"}

{"sheet":"products","index":0,"n_rows":260,"n_cols":17,"rows_kept":260,"cut":false,"hidden":false,"merged":[]}
[null,"V1.12.15.7.20",null,null,null,null,null,null,null,null,"``"]
[null,null,null,null,null,null,null,null,null,null,null,null,null,null,null,"Clici logo\nfor website"]
[null,null,null,null,null,null,null,null,null,null,null,null,null,null,null,"Clici logo\nfor website"]
[null,null,"NB -Requires Microsoft Excel and-needs macros and web services enabled to have full functions"]
["catalogid",null,"Your Screen \nSKU to order","EAN\nNumber","Start Filter Selection \nHERE           =>","SubType \n(If applicable)","View Size\n width mm","Format","Front/Rear\nFabric Type","If Electric   \nType of \nremote \nincluded","Control System\nRS232,Contacts,\n12V Trigger","Live \nStock","Product \nWebsite link","Weight","Carriage\nCharge",null,"   "]
[14,null,"SALFS221WSF",5060558500983,"Fixed Frame Screen",null,"2210mm","16by9","Ambient Light Fabric",null," ",{"$f":"IF(ISNA(INDEX('DO NOT OPEN'!D:D,MATCH(C6,'DO NOT OPEN'!A:A,0),0)),\"No Stock\",INDEX('DO NOT OPEN'!D:D,MATCH(C6,'DO NOT OPEN'!A:A,0),0))","v":4},{"$f":"HYPERLINK(\"http://www.sapphireav.com/Sapphire-Ambient-Light-Fixed-Frame-Screen-221cm-x-125cm_p_636.html\",\"Click for Web Link\")","v":"Click for Web Link"},19,"POA"]
[16,null,"SEFL155-V",5060558502888,"Electric Screen","Electric Floor ","1550mm","4by3","Matt White Front","Infra-red","Needs Optional STR",{"$f":"IF(ISNA(INDEX('DO NOT OPEN'!D:D,MATCH(C7,'DO NOT OPEN'!A:A,0),0)),\"No Stock\",INDEX('DO NOT OPEN'!D:D,MATCH(C7,'DO NOT OPEN'!A:A,0),0))","v":1},{"$f":"HYPERLINK(\"http://www.sapphireav.com/Sapphire-Electric-Floor-Screen-Infra-Red-Viewing-Area-1422mm-x-1607mm-43-Format-Approx-Case-Dimensions-L-1611mm-x-H-252mm-x-D-104mm_p_22.html\", \"Click for Web Link\")","v":"Click for Web Link"},18.5,15]
[18,null,"SESC180BV-A2",5060558504035,"Electric Screen","In-Ceiling Screen","1800mm","4by3","Matt White Front","Infra-red","RS232,Contacts,12V trig",{"$f":"IF(ISNA(INDEX('DO NOT OPEN'!D:D,MATCH(C8,'DO NOT OPEN'!A:A,0),0)),\"No Stock\",INDEX('DO NOT OPEN'!D:D,MATCH(C8,'DO NOT OPEN'!A:A,0),0))","v":0},{"$f":"HYPERLINK(\"http://www.sapphireav.com/Sapphire-Dedicated-Electric-Recessed-Screen-Viewing-Area-1707mm-x-1280mm-43-Approx-Case-Dimensions-Not-Including-Surround-L-1867mm-x-H-122mm-x-D-135mm_p_438.html\", \"Click for Web Link\")","v":"Click for Web Link"},11,15]
[22,null,"SESC180BWSF-A2",5060558504059,"Electric Screen","In-Ceiling Screen","1800mm","16by9","Matt White Front","Infra-red","RS232,Contacts,12V trig",{"$f":"IF(ISNA(INDEX('DO NOT OPEN'!D:D,MATCH(C9,'DO NOT OPEN'!A:A,0),0)),\"No Stock\",INDEX('DO NOT OPEN'!D:D,MATCH(C9,'DO NOT OPEN'!A:A,0),0))","v":5},{"$f":"HYPERLINK(\"http://www.sapphireav.com/Sapphire-Dedicated-Electric-Recessed-Screen-Viewing-Area-1705mm-x-959mm-169-Approx-Case-Dimensions-Not-Including-Surround-L-1867mm-x-H-122mm-x-D-135mm_p_439.html\", \"Click for Web Link\")","v":"Click for Web Link"},11,15]
[27,null,"SESC200B1610-A2",5060558501317,"Electric Screen","In-Ceiling Screen","2000mm","16by10","Matt White Front","Infra-red","RS232,Contacts,12V trig",{"$f":"IF(ISNA(INDEX('DO NOT OPEN'!D:D,MATCH(C10,'DO NOT OPEN'!A:A,0),0)),\"No Stock\",INDEX('DO NOT OPEN'!D:D,MATCH(C10,'DO NOT OPEN'!A:A,0),0))","v":18},{"$f":"HYPERLINK(\"http://www.sapphireav.com/Sapphire-dedicated-electric-recessed-screen-Viewing-Area-2032-x-1270mm-1610-Approx-Case-Dimensions-Not-Including-Surround-L-2192-x-H-122-x-D-135mm_p_440.html\", \"Click for Web Link\")","v":"Click for Web Link"},13,15]
[29,null,"SESC200BV-A2",5060558502994,"Electric Screen","In-Ceiling Screen","2000mm","4by3","Matt White Front","Infra-red","RS232,Contacts,12V trig",{"$f":"IF(ISNA(INDEX('DO NOT OPEN'!D:D,MATCH(C11,'DO NOT OPEN'!A:A,0),0)),\"No Stock\",INDEX('DO NOT OPEN'!D:D,MATCH(C11,'DO NOT OPEN'!A:A,0),0))","v":0},{"$f":"HYPERLINK(\"http://www.sapphireav.com/Sapphire-Dedicated-Electric-Recessed-Screen-2m-43-format-Approx-Case-Dimensions-Not-Including-Surround-L-2192-x-H-122-x-D-135mm_p_441.html\", \"Click for Web Link\")","v":"Click for Web Link"},13,15]
[30,null,"SESC200BWSF-A2",5060558504066,"Electric Screen","In-Ceiling Screen","2000mm","16by9","Matt White Front","Infra-red","RS232,Contacts,12V trig",{"$f":"IF(ISNA(INDEX('DO NOT OPEN'!D:D,MATCH(C12,'DO NOT OPEN'!A:A,0),0)),\"No Stock\",INDEX('DO NOT OPEN'!D:D,MATCH(C12,'DO NOT OPEN'!A:A,0),0))","v":15},{"$f":"HYPERLINK(\"http://www.sapphireav.com/Sapphire-Dedicated-Electric-Recessed-Screen-Viewing-Area-2032mm-x-1146mm-169-Approx-Case-Dimensions-Not-Including-Surround-L-2192-x-H-122-x-D-135mm_p_442.html\", \"Click for Web Link\")","v":"Click for Web Link"},13,15]
[31,null,"SESC240B1610-A2",5060558504080,"Electric Screen","In-Ceiling Screen","2400mm","16by10","Matt White Front","Infra-red","RS232,Contacts,12V trig",{"$f":"IF(ISNA(INDEX('DO NOT OPEN'!D:D,MATCH(C13,'DO NOT OPEN'!A:A,0),0)),\"No Stock\",INDEX('DO NOT OPEN'!D:D,MATCH(C13,'DO NOT OPEN'!A:A,0),0))","v":9},{"$f":"HYPERLINK(\"http://www.sapphireav.com/Sapphire-Dedicated-Electric-Recessed-Screen-Viewing-Area-2346mm-x-1466mm-1610-Approx-Case-Dimensions-Not-Including-Surround-L-2506mm-x-H-122mm-x-D-135mm_p_443.html\", \"Click for Web Link\")","v":"Click for Web Link"},15,15]
[33,null,"SESC240BV-A2",5060558503007,"Electric Screen","In-Ceiling Screen","2400mm","4by3","Matt White Front","Infra-red","RS232,Contacts,12V trig",{"$f":"IF(ISNA(INDEX('DO NOT OPEN'!D:D,MATCH(C14,'DO NOT OPEN'!A:A,0),0)),\"No Stock\",INDEX('DO NOT OPEN'!D:D,MATCH(C14,'DO NOT OPEN'!A:A,0),0))","v":0},{"$f":"HYPERLINK(\"http://www.sapphireav.com/Sapphire-Dedicated-Electric-Recessed-Screen-24m-43-format-Approx-Case-Dimensions-Not-Including-Surround-L-2506mm-x-H-122mm-x-D-135mm_p_444.html\", \"Click for Web Link\")","v":"Click for Web Link"},15,15,"        Sapphire IP Controller"]
[64,null,"SESC240BWSF-A2",5060558504073,"Electric Screen","In-Ceiling Screen","2400mm","16by9","Matt White Front","Infra-red","RS232,Contacts,12V trig",{"$f":"IF(ISNA(INDEX('DO NOT OPEN'!D:D,MATCH(C15,'DO NOT OPEN'!A:A,0),0)),\"No Stock\",INDEX('DO NOT OPEN'!D:D,MATCH(C15,'DO NOT OPEN'!A:A,0),0))","v":33},{"$f":"HYPERLINK(\"http://www.sapphireav.com/Sapphire-dedicated-electric-recessed-screen-Viewing-Area-2346-x-1320mm-169-format-Approx-Case-Dimensions-Not-Including-Surround-L-2506mm-x-H-122mm-x-D-135mm_p_445.html\", \"Click for Web Link\")","v":"Click for Web Link"},15,12]
[66,null,"SESC270B1610-A2",5060558504103,"Electric Screen","In-Ceiling Screen","2700mm ","16by10","Matt White Front","Infra-red","RS232,Contacts,12V trig",{"$f":"IF(ISNA(INDEX('DO NOT OPEN'!D:D,MATCH(C16,'DO NOT OPEN'!A:A,0),0)),\"No Stock\",INDEX('DO NOT OPEN'!D:D,MATCH(C16,'DO NOT OPEN'!A:A,0),0))","v":18},{"$f":"HYPERLINK(\"http://www.sapphireav.com/Sapphire-dedicated-electric-recessed-screen-Viewing-Area-2656mm-x-1660mm-1610-Approx-Case-Dimensions-Not-Including-Surround-L-2816mm-x-H-122-x-D-135mm_p_516.html\", \"Click for Web Link\")","v":"Click for Web Link"},17,20]
[67,null,"SESC270BWSF-A2",5060558504097,"Electric Screen","In-Ceiling Screen","2700mm ","16by9","Matt White Front","Infra-red","RS232,Contacts,12V trig",{"$f":"IF(ISNA(INDEX('DO NOT OPEN'!D:D,MATCH(C17,'DO NOT OPEN'!A:A,0),0)),\"No Stock\",INDEX('DO NOT OPEN'!D:D,MATCH(C17,'DO NOT OPEN'!A:A,0),0))","v":16},{"$f":"HYPERLINK(\"http://www.sapphireav.com/Sapphire-Dedicated-Electric-Recessed-Screen-Viewing-Area-2656mm-x-1494mm-169-Approx-Case-Dimensions-Not-Including-Surround-L-2816mm-x-H-122-x-D-135mm_p_570.html\", \"Click for Web Link\")","v":"Click for Web Link"},17,20]
[68,null,"SESC300B1610-A2",5060558503021,"Electric Screen","In-Ceiling Screen","3000mm","16by10","Matt White Front","Infra-red","RS232,Contacts,12V trig",{"$f":"IF(ISNA(INDEX('DO NOT OPEN'!D:D,MATCH(C18,'DO NOT OPEN'!A:A,0),0)),\"No Stock\",INDEX('DO NOT OPEN'!D:D,MATCH(C18,'DO NOT OPEN'!A:A,0),0))","v":12},{"$f":"HYPERLINK(\"http://www.sapphireav.com/Sapphire-Dedicated-Electric-Recessed-Screen-3m-1610-format-Approx-Case-Dimensions-Not-Including-Surround-L-3198-x-H-122-x-D-135mm_p_446.html\", \"Click for Web Link\")","v":"Click for Web Link"},19,30]
[69,null,"SESC300BV-A2",5060558503014,"Electric Screen","In-Ceiling Screen","3000mm","4by3","Matt White Front","Infra-red","RS232,Contacts,12V trig",{"$f":"IF(ISNA(INDEX('DO NOT OPEN'!D:D,MATCH(C19,'DO NOT OPEN'!A:A,0),0)),\"No Stock\",INDEX('DO NOT OPEN'!D:D,MATCH(C19,'DO NOT OPEN'!A:A,0),0))","v":0},{"$f":"HYPERLINK(\"http://www.sapphireav.com/Sapphire-Dedicated-Electric-Recessed-Screen-3m-43-format-Approx-Case-Dimensions-Not-Including-Surround-L-3198-x-H-122-x-D-135mm_p_447.html\", \"Click for Web Link\")","v":"Click for Web Link"},19,30]
[70,null,"SESC300BWSF-A2",5060558501324,"Electric Screen","In-Ceiling Screen","3000mm","16by9","Matt White Front","Infra-red","RS232,Contacts,12V trig",{"$f":"IF(ISNA(INDEX('DO NOT OPEN'!D:D,MATCH(C20,'DO NOT OPEN'!A:A,0),0)),\"No Stock\",INDEX('DO NOT OPEN'!D:D,MATCH(C20,'DO NOT OPEN'!A:A,0),0))","v":17},{"$f":"HYPERLINK(\"http://www.sapphireav.com/Sapphire-Dedicated-Electric-Recessed-Screen-Viewing-Area-3048mm-x-1715mm-Approx-Case-Dimensions-Not-Including-Surround-L-3198-x-H-122-x-D-135mm_p_483.html\", \"Click for Web Link\")","v":"Click for Web Link"},19,30]
[null,null,"SESC400BWSF-A2",5060558503540,"Electric Screen","In-Ceiling Screen","4000mm","16by9","Matt White Front","Infra-red","RS232,Contacts,12V trig",{"$f":"IF(ISNA(INDEX('DO NOT OPEN'!D:D,MATCH(C21,'DO NOT OPEN'!A:A,0),0)),\"No Stock\",INDEX('DO NOT OPEN'!D:D,MATCH(C21,'DO NOT OPEN'!A:A,0),0))","v":0},{"$f":"HYPERLINK(\"http://www.sapphireav.com/Sapphire-Dedicated-Electric-Recessed-Screen-Viewing-Area-3985mm-x-2241mm-Approx-_p_682.html\",\"Click for Web Link\")","v":"Click for Web Link"},38,30]
[71,null,"SETC200WSF-ATR",5060558503519,"Electric Screen","In-Ceiling Tab Tension","2000mm","16by9","Matt White Front","Infra-red","RS232,Contacts,12V trig",{"$f":"IF(ISNA(INDEX('DO NOT OPEN'!D:D,MATCH(C22,'DO NOT OPEN'!A:A,0),0)),\"No Stock\",INDEX('DO NOT OPEN'!D:D,MATCH(C22,'DO NOT OPEN'!A:A,0),0))","v":8},{"$f":"HYPERLINK(\"http://www.sapphireav.com/Sapphire-In-Ceiling-Tab-Tensioned-Screen-Viewing-Area-2030mm-x-1140mm-Approx-Case-Dimensions-Not-Including-Surround-L-2625mm-x-H-180mm-x-D-155mm_p_558.html\", \"Click for Web Link\")","v":"Click for Web Link"},29,15]
[72,null,"SETC240WSF-ATR",5060558501003,"Electric Screen","In-Ceiling Tab Tension","2400mm","16by9","Matt White Front","Infra-red","RS232,Contacts,12V trig",{"$f":"IF(ISNA(INDEX('DO NOT OPEN'!D:D,MATCH(C23,'DO NOT OPEN'!A:A,0),0)),\"No Stock\",INDEX('DO NOT OPEN'!D:D,MATCH(C23,'DO NOT OPEN'!A:A,0),0))","v":4},{"$f":"HYPERLINK(\"http://www.sapphireav.com/Sapphire-In-Ceiling-Tab-Tensioned-Screen-Viewing-Area-2340mm-x-1320mm-Approx-Case-Dimensions-Not-Including-Surround-L-2935mm-x-H-180mm-x-D-155mm_p_559.html\", \"Click for Web Link\")","v":"Click for Web Link"},34.299999999999997,15]
[74,null,"SETC240WSF-AWOVEN",5060558501423,"Electric Screen","In-Ceiling Tab Tension","2400mm","16by9","Accoustic Weave","Infra-red","RS232,Contacts,12V trig",{"$f":"IF(ISNA(INDEX('DO NOT OPEN'!D:D,MATCH(C24,'DO NOT OPEN'!A:A,0),0)),\"No Stock\",INDEX('DO NOT OPEN'!D:D,MATCH(C24,'DO NOT OPEN'!A:A,0),0))","v":2},{"$f":"HYPERLINK(\"http://www.sapphireav.com/Sapphire-In-Ceiling-Tab-Tensioned-Woven-Acoustic-Screen-Viewing-Area-2340mm-x-1320mm-Approx-Case-Dimensions-Not-Including-Surround-L-2935mm-x-H-180mm-x-D-155mm_p_663.html\",\"Click for Web Link\")","v":"Click for Web Link"},34.299999999999997,15]
[75,null,"SETC270WSF-ATR",5060558501027,"Electric Screen","In-Ceiling Tab Tension","2700mm ","16by9","Matt White Front","Infra-red","RS232,Contacts,12V trig",{"$f":"IF(ISNA(INDEX('DO NOT OPEN'!D:D,MATCH(C25,'DO NOT OPEN'!A:A,0),0)),\"No Stock\",INDEX('DO NOT OPEN'!D:D,MATCH(C25,'DO NOT OPEN'!A:A,0),0))","v":6},{"$f":"HYPERLINK(\"http://www.sapphireav.com/Sapphire-In-Ceiling-Tab-Tensioned-Screen-Viewing-Area-2670mm-x-1500mm-_p_560.html\", \"Click for Web Link\")","v":"Click for Web Link"},34.299999999999997,20]
[76,null,"SETTS200BV-AW",5060558502048,"Electric Screen","Tab Tensioned Ch Fix ","2000mm","4by3","Matt White Front","Infra-red","RS232,Contacts,12V trig",{"$f":"IF(ISNA(INDEX('DO NOT OPEN'!D:D,MATCH(C26,'DO NOT OPEN'!A:A,0),0)),\"No Stock\",INDEX('DO NOT OPEN'!D:D,MATCH(C26,'DO NOT OPEN'!A:A,0),0))","v":0},{"$f":"HYPERLINK(\"http://www.sapphireav.com/Sapphire-Tab-Tension-Electric-Screen-Infra-Red-Viewing-Area-2037mm-x-1524mm-Approx-Case-Dimensions-L-2490mm-x-H-145mm-x-D-137mm_p_267.html\", \"Click for Web Link\")","v":"Click for Web Link"},19.600000000000001,15]
[77,null,"SETTS200WSF-AW",5060558502055,"Electric Screen","Tab Tensioned Ch Fix ","2000mm","16by9","Matt White Front","Infra-red","RS232,Contacts,12V trig",{"$f":"IF(ISNA(INDEX('DO NOT OPEN'!D:D,MATCH(C27,'DO NOT OPEN'!A:A,0),0)),\"No Stock\",INDEX('DO NOT OPEN'!D:D,MATCH(C27,'DO NOT OPEN'!A:A,0),0))","v":1},{"$f":"HYPERLINK(\"http://www.sapphireav.com/Sapphire-Tab-Tension-Electric-Screen-Infra-Red-Viewing-Area-2037mm-x-1145mm-Approx-Case-Dimensions-L-2490mm-x-H-145mm-x-D-137mm_p_278.html\", \"Click for Web Link\")","v":"Click for Web Link"},19.600000000000001,15,"               Click images for link weblinks"]
[78,null,"SETTS200WSF-AW10",5060558501119,"Electric Screen","Tab Tensioned Ch Fix ","2000mm","16by10","Matt White Front","Infra-red","RS232,Contacts,12V trig",{"$f":"IF(ISNA(INDEX('DO NOT OPEN'!D:D,MATCH(C28,'DO NOT OPEN'!A:A,0),0)),\"No Stock\",INDEX('DO NOT OPEN'!D:D,MATCH(C28,'DO NOT OPEN'!A:A,0),0))","v":11},{"$f":"HYPERLINK(\"http://www.sapphireav.com/Sapphire-Tab-Tension-Electric-Infra-Red-Screen-Viewing-Area-2037mm-x-1273mm-Approx-Case-Dimensions-L-2490mm-x-H-145mm-x-D-137mm_p_528.html\", \"Click for Web Link\")","v":"Click for Web Link"},19.600000000000001,15]
[79,null,"SETTS200WSF-AW-WOVEN",5060558501416,"Electric Screen","Tab Tensioned Ch Fix ","2000mm","16by9","Matt White Front","Infra-red","RS232,Contacts,12V trig",{"$f":"IF(ISNA(INDEX('DO NOT OPEN'!D:D,MATCH(C29,'DO NOT OPEN'!A:A,0),0)),\"No Stock\",INDEX('DO NOT OPEN'!D:D,MATCH(C29,'DO NOT OPEN'!A:A,0),0))","v":3},{"$f":"HYPERLINK(\"http://www.sapphireav.com/Sapphire-Tab-Tension-Electric-Screen-Infra-Red-Viewing-Area-2037mm-x-1145mm-Woven-Approx-Case-Dimensions-L-2490mm-x-H-145mm-x-D-137mm_p_589.html\", \"Click for Web Link\")","v":"Click for Web Link"},19.600000000000001,15]
[80,null,"SETTS240BV-AW",5060558502062,"Electric Screen","Tab Tensioned Ch Fix ","2400mm","4by3","Matt White Front","Infra-red","RS232,Contacts,12V trig",{"$f":"IF(ISNA(INDEX('DO NOT OPEN'!D:D,MATCH(C30,'DO NOT OPEN'!A:A,0),0)),\"No Stock\",INDEX('DO NOT OPEN'!D:D,MATCH(C30,'DO NOT OPEN'!A:A,0),0))","v":1},{"$f":"HYPERLINK(\"http://www.sapphireav.com/Sapphire-Tab-Tension-Electric-Screen-Infra-Red-Viewing-Area-2436mm-x-1829mm-Approx-Case-Dimensions-L-2834mm-x-H-134mm-x-D-135mm_p_266.html\", \"Click for Web Link\")","v":"Click for Web Link"},23,15]
[81,null,"SETTS240WSF-AW",5060558502079,"Electric Screen","Tab Tensioned Ch Fix ","2400mm","16by9","Matt White Front","Infra-red","RS232,Contacts,12V trig",{"$f":"IF(ISNA(INDEX('DO NOT OPEN'!D:D,MATCH(C31,'DO NOT OPEN'!A:A,0),0)),\"No Stock\",INDEX('DO NOT OPEN'!D:D,MATCH(C31,'DO NOT OPEN'!A:A,0),0))","v":18},{"$f":"HYPERLINK(\"http://www.sapphireav.com/Sapphire-Tab-Tension-Electric-Screen-Infra-Red-Viewing-Area-2346mm-x-1320mm-Approx-Case-Dimensions-L-2834mm-x-H-134mm-x-D-135mm_p_279.html\", \"Click for Web Link\")","v":"Click for Web Link"},23,15]
[82,null,"SETTS240WSF-AW10",5060558501140,"Electric Screen","Tab Tensioned Ch Fix ","2400mm","16by10","Matt White Front","Infra-red","RS232,Contacts,12V trig",{"$f":"IF(ISNA(INDEX('DO NOT OPEN'!D:D,MATCH(C32,'DO NOT OPEN'!A:A,0),0)),\"No Stock\",INDEX('DO NOT OPEN'!D:D,MATCH(C32,'DO NOT OPEN'!A:A,0),0))","v":11},{"$f":"HYPERLINK(\"http://www.sapphireav.com/Sapphire-Tab-Tension-Electric-Infra-Red-Screen-Viewing-Area-2346mm-x-1466mm-Approx-Case-Dimensions-L-2834mm-x-H-134mm-x-D-135mm_p_529.html\", \"Click for Web Link\")","v":"Click for Web Link"},23,15]
[83,null,"SETTS240WSF-AW-WOVEN",5060558501553,"Electric Screen","Tab Tensioned Ch Fix ","2400mm","16by9","Matt White Front","Infra-red","RS232,Contacts,12V trig",{"$f":"IF(ISNA(INDEX('DO NOT OPEN'!D:D,MATCH(C33,'DO NOT OPEN'!A:A,0),0)),\"No Stock\",INDEX('DO NOT OPEN'!D:D,MATCH(C33,'DO NOT OPEN'!A:A,0),0))","v":3},{"$f":"HYPERLINK(\"http://www.sapphireav.com/Sapphire-Tab-Tension-Electric-Screen-Infra-Red-Viewing-Area-2346mm-x-1320mm-Woven-Approx-Case-Dimensions-L-2834mm-x-H-134mm-x-D-135mm_p_590.html\", \"Click for Web Link\")","v":"Click for Web Link"},23,12]
[84,null,"SETTS300BV-AW",5060558502086,"Electric Screen","Tab Tensioned Ch Fix ","3000mm","4by3","Matt White Front","Infra-red","RS232,Contacts,12V trig",{"$f":"IF(ISNA(INDEX('DO NOT OPEN'!D:D,MATCH(C34,'DO NOT OPEN'!A:A,0),0)),\"No Stock\",INDEX('DO NOT OPEN'!D:D,MATCH(C34,'DO NOT OPEN'!A:A,0),0))","v":1},{"$f":"HYPERLINK(\"http://www.sapphireav.com/Sapphire-Tab-Tension-Electric-Screen-Infra-Red-Viewing-Area-3010mm-x-2286mm-Approx-Case-Dimensions-L-3538mm-x-H-143mm-x-D-135mm_p_265.html\", \"Click for Web Link\")","v":"Click for Web Link"},35,30]
[85,null,"SETTS300WSF-AW",5060558502093,"Electric Screen","Tab Tensioned Ch Fix ","3000mm","16by9","Matt White Front","Infra-red","RS232,Contacts,12V trig",{"$f":"IF(ISNA(INDEX('DO NOT OPEN'!D:D,MATCH(C35,'DO NOT OPEN'!A:A,0),0)),\"No Stock\",INDEX('DO NOT OPEN'!D:D,MATCH(C35,'DO NOT OPEN'!A:A,0),0))","v":5},{"$f":"HYPERLINK(\"http://www.sapphireav.com/Sapphire-Teb-Tension-Electric-Infra-Red-Screen-Viewing-Area-3010mm-x-1693mm-Approx-Case-Dimensions-L-3538mm-x-H-143mm-x-D-135mm_p_277.html\", \"Click for Web Link\")","v":"Click for Web Link"},35,30]
[86,null,"SETTS300WSF-AW10",5060558503618,"Electric Screen","Tab Tensioned Ch Fix ","3000mm","16by10","Matt White Front","Infra-red","RS232,Contacts,12V trig",{"$f":"IF(ISNA(INDEX('DO NOT OPEN'!D:D,MATCH(C36,'DO NOT OPEN'!A:A,0),0)),\"No Stock\",INDEX('DO NOT OPEN'!D:D,MATCH(C36,'DO NOT OPEN'!A:A,0),0))","v":12},{"$f":"HYPERLINK(\"http://www.sapphireav.com/Sapphire-Tab-Tension-Electric-Infra-Red-Screen-Viewing-Area-3010mm-x-1881mm-Approx-Case-Dimensions-L-3538mm-x-H-143mm-x-D-135mm_p_530.html\", \"Click for Web Link\")","v":"Click for Web Link"},35,30]
[88,null,"SETTS300WSF-AW-WOVEN",5060558501584,"Electric Screen","Tab Tensioned Ch Fix ","3000mm","16by9","Matt White Front","Infra-red","RS232,Contacts,12V trig",{"$f":"IF(ISNA(INDEX('DO NOT OPEN'!D:D,MATCH(C37,'DO NOT OPEN'!A:A,0),0)),\"No Stock\",INDEX('DO NOT OPEN'!D:D,MATCH(C37,'DO NOT OPEN'!A:A,0),0))","v":1},{"$f":"HYPERLINK(\"http://www.sapphireav.com/Sapphire-Teb-Tension-Electric-Infra-Red-Screen-Viewing-Area-3010mm-x-1693mm-Woven-Approx-Case-Dimensions-L-3538mm-x-H-143mm-x-D-135mm_p_591.html\", \"Click for Web Link\")","v":"Click for Web Link"},35,30]
[89,null,"SETTS350WSF-AW",5060558503038,"Electric Screen","Tab Tensioned Ch Fix ","3500mm","16by9","Matt White Front","Radio","RS232,Contacts,12V trig",{"$f":"IF(ISNA(INDEX('DO NOT OPEN'!D:D,MATCH(C38,'DO NOT OPEN'!A:A,0),0)),\"No Stock\",INDEX('DO NOT OPEN'!D:D,MATCH(C38,'DO NOT OPEN'!A:A,0),0))","v":2},{"$f":"HYPERLINK(\"http://www.sapphireav.com/Sapphire-Tab-Tension-Electric-Infra-Red-Screen-3498mm-x-1966mm-Approx-Case-Dimensions-L-3988mm-x-H-143mm-x-D-135mm_p_331.html\", \"Click for Web Link\")","v":"Click for Web Link"},40,30]
[91,null,"SETTS350WSF-AW10",5060558503632,"Electric Screen","Tab Tensioned Ch Fix ","3500mm","16by10","Matt White Front","Radio","RS232,Contacts,12V trig",{"$f":"IF(ISNA(INDEX('DO NOT OPEN'!D:D,MATCH(C39,'DO NOT OPEN'!A:A,0),0)),\"No Stock\",INDEX('DO NOT OPEN'!D:D,MATCH(C39,'DO NOT OPEN'!A:A,0),0))","v":6},{"$f":"HYPERLINK(\"http://www.sapphireav.com/Sapphire-Tab-Tension-Electric-Infra-Red-Screen-3498mm-x-2181mm-Approx-Case-Dimensions-L-3988mm-x-H-143mm-x-D-135mm_p_531.html\", \"Click for Web Link\")","v":"Click for Web Link"},40,30]
[null,null,"SETTS400WSF-AW",5060558501300,"Electric Screen","Tab Tensioned Ch Fix ","4000mm","16by9","Matt White Front","Radio","RS232,Contacts,12V trig",{"$f":"IF(ISNA(INDEX('DO NOT OPEN'!D:D,MATCH(C40,'DO NOT OPEN'!A:A,0),0)),\"No Stock\",INDEX('DO NOT OPEN'!D:D,MATCH(C40,'DO NOT OPEN'!A:A,0),0))","v":2},{"$f":"HYPERLINK(\"http://www.sapphireav.com/search.asp?keyword=SETTS400WSF-AW&search.x=11&search.y=4ges/tabtension-white-750p.jpg,\", \"Click for Web Link\")","v":"Click for Web Link"},50,30]
[92,null,"SETTS400WSF-AW10",5060558500952,"Electric Screen","Tab Tensioned Ch Fix ","4000mm","16by10","Matt White Front","Radio","RS232,Contacts,12V trig",{"$f":"IF(ISNA(INDEX('DO NOT OPEN'!D:D,MATCH(C41,'DO NOT OPEN'!A:A,0),0)),\"No Stock\",INDEX('DO NOT OPEN'!D:D,MATCH(C41,'DO NOT OPEN'!A:A,0),0))","v":0},{"$f":"HYPERLINK(\"http://www.sapphireav.com/Sapphire-Tab-Tension-Infra-Red-Electric-Screen-Viewing-area-3985-x-2490mm-Approx-Case-Dimensions-L-4449-x-H-145-x-D-137mm_p_683.html\",\"Click for Web Link\")","v":"Click for Web Link"},50,30]
[93,null,"SEWS150BV-A",5060558502116,"Electric Screen","Wall/ceiling fixing","1500mm","4by3","Matt White Front","Infra-red","Needs Optional STR",{"$f":"IF(ISNA(INDEX('DO NOT OPEN'!D:D,MATCH(C42,'DO NOT OPEN'!A:A,0),0)),\"No Stock\",INDEX('DO NOT OPEN'!D:D,MATCH(C42,'DO NOT OPEN'!A:A,0),0))","v":1},{"$f":"HYPERLINK(\"http://www.sapphireav.com/Sapphire-Electric-Screen-Infra-Red-Viewing-Area-1463mm-x-1097mm-Approx-Case-Dimensions-L-1744mm-x-H-93mm-x-D-79mm_p_66.html\", \"Click for Web Link\")","v":"Click for Web Link"},8.5,12]
[94,null,"SEWS150R-A",5060558502109,"Electric Screen","Wall/ceiling fixing","1500mm","Square","Matt White Front","Infra-red","Needs Optional STR",{"$f":"IF(ISNA(INDEX('DO NOT OPEN'!D:D,MATCH(C43,'DO NOT OPEN'!A:A,0),0)),\"No Stock\",INDEX('DO NOT OPEN'!D:D,MATCH(C43,'DO NOT OPEN'!A:A,0),0))","v":0},{"$f":"HYPERLINK(\"http://www.sapphireav.com/Sapphire-Electric-Screen-Infra-Red-Viewing-Area-1520mm-x-1520mm-Approx-Case-Dimensions-L-1794mm-x-H-93mm-x-D-79mm_p_67.html\", \"Click for Web Link\")","v":"Click for Web Link"},9.5,12]
[95,null,"SEWS150RAD-BV-A",5060558502123,"Electric Screen","Wall/ceiling fixing","1500mm","4by3","Matt White Front","Radio","RS232,Contacts",{"$f":"IF(ISNA(INDEX('DO NOT OPEN'!D:D,MATCH(C44,'DO NOT OPEN'!A:A,0),0)),\"No Stock\",INDEX('DO NOT OPEN'!D:D,MATCH(C44,'DO NOT OPEN'!A:A,0),0))","v":2},{"$f":"HYPERLINK(\"http://www.sapphireav.com/Sapphire-Electric-Screen-Radio-Frequency-Viewing-Area-1463mm-x-1097mm-Approx-Case-Dimensions-L-1744mm-x-H-93mm-x-D-79mm_p_68.html\", \"Click for Web Link\")","v":"Click for Web Link"},8.5,12,"              Click images for link weblinks"]
[109,null,"SEWS150RAD-RWSF-A10",5060558503625,"Electric Screen","Wall/ceiling fixing","1500mm","16by10","Matt White Front","Radio","RS232,Contacts",{"$f":"IF(ISNA(INDEX('DO NOT OPEN'!D:D,MATCH(C45,'DO NOT OPEN'!A:A,0),0)),\"No Stock\",INDEX('DO NOT OPEN'!D:D,MATCH(C45,'DO NOT OPEN'!A:A,0),0))","v":2},{"$f":"HYPERLINK(\"http://www.sapphireav.com/Sapphire-Electric-Screen-Radio-Frequency-Viewing-Area-1460mm-x-913mm-Approx-Case-Dimensions-L-1744mm-x-H-93mm-x-D-79mm_p_467.html\", \"Click for Web Link\")","v":"Click for Web Link"},8.5,12]
[111,null,"SEWS150RWSF-ATR",5060558501362,"Electric Screen","Wall/ceiling fixing","1500mm","16by9","Matt White Front","Infra-red","RS232,Contacts,12V trig",{"$f":"IF(ISNA(INDEX('DO NOT OPEN'!D:D,MATCH(C46,'DO NOT OPEN'!A:A,0),0)),\"No Stock\",INDEX('DO NOT OPEN'!D:D,MATCH(C46,'DO NOT OPEN'!A:A,0),0))","v":14},{"$f":"HYPERLINK(\"http://www.sapphireav.com/Sapphire-Electric-Screen-Infra-Red-Viewing-Area-1460mm-x-821mm-Approx-Case-Dimensions-L-1744mm-x-H-93mm-x-D-79mm_p_69.html\", \"Click for Web Link\")","v":"Click for Web Link"},8.5,12]
[112,null,"SEWS150RWSF-ATR10",5060558501379,"Electric Screen","Wall/ceiling fixing","1500mm","16by10","Matt White Front","Infra-red","RS232,Contacts,12V trig",{"$f":"IF(ISNA(INDEX('DO NOT OPEN'!D:D,MATCH(C47,'DO NOT OPEN'!A:A,0),0)),\"No Stock\",INDEX('DO NOT OPEN'!D:D,MATCH(C47,'DO NOT OPEN'!A:A,0),0))","v":5},{"$f":"HYPERLINK(\"http://www.sapphireav.com/Sapphire-Electric-Screen-Infra-Red-Viewing-Area-1460mm-x-913mm-Approx-Case-Dimensions-L-1744mm-x-H-93mm-x-D-79mm_p_652.html\", \"Click for Web Link\")","v":"Click for Web Link"},8.5,12]
[113,null,"SEWS180RAD-BV-A",5060558502147,"Electric Screen","Wall/ceiling fixing","1800mm","4by3","Matt White Front","Infra-red","RS232,Contacts",{"$f":"IF(ISNA(INDEX('DO NOT OPEN'!D:D,MATCH(C48,'DO NOT OPEN'!A:A,0),0)),\"No Stock\",INDEX('DO NOT OPEN'!D:D,MATCH(C48,'DO NOT OPEN'!A:A,0),0))","v":2},{"$f":"HYPERLINK(\"http://www.sapphireav.com/Sapphire-Electric-Screen-Radio-Frequency-Viewing-Area-1707mm-x-1280mm-Approx-Case-Dimensions-L-1952mm-x-H-93mm-x-D-79mm_p_71.html\", \"Click for Web Link\")","v":"Click for Web Link"},10.5,12]
[115,null,"SEWS180RAD-RWSF-A",5060558503601,"Electric Screen","Wall/ceiling fixing","1800mm","16by9","Matt White Front","Infra-red","RS232,Contacts",{"$f":"IF(ISNA(INDEX('DO NOT OPEN'!D:D,MATCH(C49,'DO NOT OPEN'!A:A,0),0)),\"No Stock\",INDEX('DO NOT OPEN'!D:D,MATCH(C49,'DO NOT OPEN'!A:A,0),0))","v":2},{"$f":"HYPERLINK(\"http://www.sapphireav.com/Sapphire-Electric-Screen-Radio-Frequency-Viewing-Area-1074mm-x-958mm-Approx-Case-Dimensions-L-1952mm-x-H-93mm-x-D-79mm_p_462.html\", \"Click for Web Link\")","v":"Click for Web Link"},10.5,12]
[117,null,"SEWS180RAD-RWSF-A10",5060558503335,"Electric Screen","Wall/ceiling fixing","1800mm","16by10","Matt White Front","Infra-red","RS232,Contacts",{"$f":"IF(ISNA(INDEX('DO NOT OPEN'!D:D,MATCH(C50,'DO NOT OPEN'!A:A,0),0)),\"No Stock\",INDEX('DO NOT OPEN'!D:D,MATCH(C50,'DO NOT OPEN'!A:A,0),0))","v":2},{"$f":"HYPERLINK(\"http://www.sapphireav.com/Sapphire-Electric-Screen-Radio-Frequency-Viewing-Area-1704mm-x-1065mm-Approx-Case-Dimensions-L-1952mm-x-H-93mm-x-D-79mm_p_463.html\", \"Click for Web Link\")","v":"Click for Web Link"},10.5,12]
[119,null,"SEWS180RBV-ATR",5060558500990,"Electric Screen","Wall/ceiling fixing","1800mm","4by3","Matt White Front","Infra-red","RS232,Contacts,12V trig",{"$f":"IF(ISNA(INDEX('DO NOT OPEN'!D:D,MATCH(C51,'DO NOT OPEN'!A:A,0),0)),\"No Stock\",INDEX('DO NOT OPEN'!D:D,MATCH(C51,'DO NOT OPEN'!A:A,0),0))","v":14},{"$f":"HYPERLINK(\"http://www.sapphireav.com/Sapphire-Electric-Projection-Screen-With-Trigger-Viewing-Area-1707mm-x-1280mm-Approx-Case-Dimensions-L-1952mm-x-H-93mm-x-D-79mm_p_72.html\", \"Click for Web Link\")","v":"Click for Web Link"},10.5,12]
[120,null,"SEWS180RWSF-A10",5060558503359,"Electric Screen","Wall/ceiling fixing","1800mm","16by10","Matt White Front","Infra-red","Needs Optional STR",{"$f":"IF(ISNA(INDEX('DO NOT OPEN'!D:D,MATCH(C52,'DO NOT OPEN'!A:A,0),0)),\"No Stock\",INDEX('DO NOT OPEN'!D:D,MATCH(C52,'DO NOT OPEN'!A:A,0),0))","v":12},{"$f":"HYPERLINK(\"http://www.sapphireav.com/Sapphire-Electric-Screen-Infra-Red-Viewing-Area-1704mm-x-1065mm-Approx-Case-Dimensions-L-1952mm-x-H-93mm-x-D-79mm_p_493.html\", \"Click for Web Link\")","v":"Click for Web Link"},10.5,12]
[121,null,"SEWS180RWSF-ATR",5060558502154,"Electric Screen","Wall/ceiling fixing","1800mm","16by9","Matt White Front","Infra-red","RS232,Contacts,12V trig",{"$f":"IF(ISNA(INDEX('DO NOT OPEN'!D:D,MATCH(C53,'DO NOT OPEN'!A:A,0),0)),\"No Stock\",INDEX('DO NOT OPEN'!D:D,MATCH(C53,'DO NOT OPEN'!A:A,0),0))","v":53},{"$f":"HYPERLINK(\"http://www.sapphireav.com/Sapphire-Electric-Screen-with-Trigger-Viewing-Area-1704mm-x-958mm-Approx-Case-Dimensions-L-1952mm-x-H-93mm-x-D-79mm_p_75.html\", \"Click for Web Link\")","v":"Click for Web Link"},10.5,12]
[122,null,"SEWS180RWSF-ATR10",5060558503342,"Electric Screen","Wall/ceiling fixing","1800mm","16by10","Matt White Front","Infra-red","RS232,Contacts,12V trig",{"$f":"IF(ISNA(INDEX('DO NOT OPEN'!D:D,MATCH(C54,'DO NOT OPEN'!A:A,0),0)),\"No Stock\",INDEX('DO NOT OPEN'!D:D,MATCH(C54,'DO NOT OPEN'!A:A,0),0))","v":16},{"$f":"HYPERLINK(\"http://www.sapphireav.com/Sapphire-Electric-Screen-with-Trigger-Viewing-Area-1704mm-x-1065mm-Approx-Case-Dimensions-L-1952mm-x-H-93mm-x-D-79mm_p_76.html\", \"Click for Web Link\")","v":"Click for Web Link"},10.5,12]
[124,null,"SEWS180WSF-ATRAC",5060558502963,"Electric Screen","Wall/ceiling fixing","1800mm","16by9","Accoustic top border","Infra-red","RS232,Contacts,12V trig",{"$f":"IF(ISNA(INDEX('DO NOT OPEN'!D:D,MATCH(C55,'DO NOT OPEN'!A:A,0),0)),\"No Stock\",INDEX('DO NOT OPEN'!D:D,MATCH(C55,'DO NOT OPEN'!A:A,0),0))","v":3},{"$f":"HYPERLINK(\"http://www.sapphireav.com/Sapphire-Electric-Acoustic-Transparent-Screen-Viewing-Area-1704mm-x-958mm-with-ATR-Approx-Case-Dimensions-L-1952mm-x-H-93mm-x-D-79mm_p_543.html\", \"Click for Web Link\")","v":"Click for Web Link"},10.5,12]
[126,null,"SEWS200RAD-BV-A",5060558502161,"Electric Screen","Wall/ceiling fixing","2000mm","4by3","Matt White Front","Radio","RS232,Contacts",{"$f":"IF(ISNA(INDEX('DO NOT OPEN'!D:D,MATCH(C56,'DO NOT OPEN'!A:A,0),0)),\"No Stock\",INDEX('DO NOT OPEN'!D:D,MATCH(C56,'DO NOT OPEN'!A:A,0),0))","v":2},{"$f":"HYPERLINK(\"http://www.sapphireav.com/Sapphire-Electric-Screen-Radio-Control-2032mm-x-1524mm_p_78.html\", \"Click for Web Link\")","v":"Click for Web Link"},12,12]
[136,null,"SEWS200RAD-RWSF-A10",5060558503366,"Electric Screen","Wall/ceiling fixing","2000mm","16by10","Matt White Front","Radio","RS232,Contacts",{"$f":"IF(ISNA(INDEX('DO NOT OPEN'!D:D,MATCH(C57,'DO NOT OPEN'!A:A,0),0)),\"No Stock\",INDEX('DO NOT OPEN'!D:D,MATCH(C57,'DO NOT OPEN'!A:A,0),0))","v":2},{"$f":"HYPERLINK(\"http://www.sapphireav.com/Sapphire-Electric-Screen-Radio-Viewing-Area-2037mm-x-1273mm-Approx-Case-Dimensions-L-2354mm-x-H-93-x-D-79mm_p_488.html\", \"Click for Web Link\")","v":"Click for Web Link"},12,12,"              Click images for link weblinks"]
[137,null,"SEWS200RAD-WSF-A",5060558503526,"Electric Screen","Wall/ceiling fixing","2000mm","16by9","Matt White Front","Radio","RS232,Contacts",{"$f":"IF(ISNA(INDEX('DO NOT OPEN'!D:D,MATCH(C58,'DO NOT OPEN'!A:A,0),0)),\"No Stock\",INDEX('DO NOT OPEN'!D:D,MATCH(C58,'DO NOT OPEN'!A:A,0),0))","v":2},{"$f":"HYPERLINK(\"http://www.sapphireav.com/Sapphire-Electric-Screen-Radio-Frequency-Viewing-Area-2037mm-x-1145mm-Approx-Case-Dimensions-L-2354mm-x-H-93-x-D-79mm_p_487.html\", \"Click for Web Link\")","v":"Click for Web Link"},12,12]
[140,null,"SEWS200RBV-ATR",5060558501058,"Electric Screen","Wall/ceiling fixing","2000mm","4by3","Matt White Front","Infra-red","RS232,Contacts,12V trig",{"$f":"IF(ISNA(INDEX('DO NOT OPEN'!D:D,MATCH(C59,'DO NOT OPEN'!A:A,0),0)),\"No Stock\",INDEX('DO NOT OPEN'!D:D,MATCH(C59,'DO NOT OPEN'!A:A,0),0))","v":17},{"$f":"HYPERLINK(\"http://www.sapphireav.com/Sapphire-Electric-Screen-with-Trigger-Viewing-Area-2030mm-x-1524mm-Approx-Case-Dimensions-L-2354mm-x-H-93-x-D-79mm_p_80.html\", \"Click for Web Link\")","v":"Click for Web Link"},12,12]
[141,null,"SEWS200RWSF-ATR",5060558502178,"Electric Screen","Wall/ceiling fixing","2000mm","16by9","Matt White Front","Infra-red","RS232,Contacts,12V trig",{"$f":"IF(ISNA(INDEX('DO NOT OPEN'!D:D,MATCH(C60,'DO NOT OPEN'!A:A,0),0)),\"No Stock\",INDEX('DO NOT OPEN'!D:D,MATCH(C60,'DO NOT OPEN'!A:A,0),0))","v":71},{"$f":"HYPERLINK(\"http://www.sapphireav.com/Sapphire-Electric-Screen-with-Trigger-Viewing-Area-2037mm-x-1145mm-Approx-Case-Dimensions-L-2354mm-x-H-93-x-D-79mm_p_83.html\", \"Click for Web Link\")","v":"Click for Web Link"},11.8,12]
[142,null,"SEWS200RWSF-ATR10",5060558503373,"Electric Screen","Wall/ceiling fixing","2000mm","16by10","Matt White Front","Infra-red","RS232,Contacts,12V trig",{"$f":"IF(ISNA(INDEX('DO NOT OPEN'!D:D,MATCH(C61,'DO NOT OPEN'!A:A,0),0)),\"No Stock\",INDEX('DO NOT OPEN'!D:D,MATCH(C61,'DO NOT OPEN'!A:A,0),0))","v":58},{"$f":"HYPERLINK(\"http://www.sapphireav.com/Sapphire-Electric-Screen-with-Trigger-Viewing-Area-2037mm-x-1273mm-Approx-Case-Dimensions-L-2354mm-x-H-93-x-D-79mm_p_494.html\", \"Click for Web Link\")","v":"Click for Web Link"},11.8,12]
[144,null,"SEWS200WSF-ATRAC",5060558502970,"Electric Screen","Wall/ceiling fixing","2000mm","16by9","Accoustic top border","Infra-red","RS232,Contacts,12V trig",{"$f":"IF(ISNA(INDEX('DO NOT OPEN'!D:D,MATCH(C62,'DO NOT OPEN'!A:A,0),0)),\"No Stock\",INDEX('DO NOT OPEN'!D:D,MATCH(C62,'DO NOT OPEN'!A:A,0),0))","v":3},{"$f":"HYPERLINK(\"http://www.sapphireav.com/Sapphire-Electric-Acoustic-Transparent-Screen-Viewing-Area-2037mm-x-1145mm-with-ATR-Approx-Case-Dimensions-L-2354mm-x-H-93-x-D-79mm_p_544.html\", \"Click for Web Link\")","v":"Click for Web Link"},11.8,12]
[145,null,"SEWS240RAD-A",5060558502185,"Electric Screen","Wall/ceiling fixing","2400mm","4by3","Matt White Front","Radio","RS232,Contacts",{"$f":"IF(ISNA(INDEX('DO NOT OPEN'!D:D,MATCH(C63,'DO NOT OPEN'!A:A,0),0)),\"No Stock\",INDEX('DO NOT OPEN'!D:D,MATCH(C63,'DO NOT OPEN'!A:A,0),0))","v":2},{"$f":"HYPERLINK(\"http://www.sapphireav.com/Sapphire-Electric-Screen-Radio-Frequency-2400mm-x-1800mm-Approx-Case-Dimensions-L-2724mm-x-H-93mm-x-D-79mm_p_84.html\", \"Click for Web Link\")","v":"Click for Web Link"},14.7,12]
[146,null,"SEWS240RAD-RWSF-A",5060558503649,"Electric Screen","Wall/ceiling fixing","2400mm","16by9","Matt White Front","Radio","RS232,Contacts",{"$f":"IF(ISNA(INDEX('DO NOT OPEN'!D:D,MATCH(C64,'DO NOT OPEN'!A:A,0),0)),\"No Stock\",INDEX('DO NOT OPEN'!D:D,MATCH(C64,'DO NOT OPEN'!A:A,0),0))","v":2},{"$f":"HYPERLINK(\"http://www.sapphireav.com/Sapphire-Electric-Screen-Radio-Frequency-Viewing-Area-2346mm-x-1319mm_p_492.html\", \"Click for Web Link\")","v":"Click for Web Link"},14.7,12]
[149,null,"SEWS240RADRWSF-A10",5060558503380,"Electric Screen","Wall/ceiling fixing","2400mm","16by10","Matt White Front","Radio","RS232,Contacts",{"$f":"IF(ISNA(INDEX('DO NOT OPEN'!D:D,MATCH(C65,'DO NOT OPEN'!A:A,0),0)),\"No Stock\",INDEX('DO NOT OPEN'!D:D,MATCH(C65,'DO NOT OPEN'!A:A,0),0))","v":2},{"$f":"HYPERLINK(\"http://www.sapphireav.com/Sapphire-Electric-Screen-Radio-Frequency-Viewing-Area-2346mm-x-1466mm-Approx-Case-Dimensions-L-2658mm-x-H-96mm-x-D-91mm_p_495.html\", \"Click for Web Link\")","v":"Click for Web Link"},14.7,12]
[153,null,"SEWS240RBV-ATR",5060558501072,"Electric Screen","Wall/ceiling fixing","2400mm","4by3","Matt White Front","Infra-red","RS232,Contacts,12V trig",{"$f":"IF(ISNA(INDEX('DO NOT OPEN'!D:D,MATCH(C66,'DO NOT OPEN'!A:A,0),0)),\"No Stock\",INDEX('DO NOT OPEN'!D:D,MATCH(C66,'DO NOT OPEN'!A:A,0),0))","v":12},{"$f":"HYPERLINK(\"http://www.sapphireav.com/Sapphire-Electric-Screen-with-Trigger-Viewing-Area-2400mm-x-1800mm-Approx-Case-Dimensions-L-2724mm-x-H-96mm-x-D-91mm_p_85.html\", \"Click for Web Link\")","v":"Click for Web Link"},14.7,12]
[156,null,"SEWS240RWSF-ATR",5060558502192,"Electric Screen","Wall/ceiling fixing","2400mm","16by9","Matt White Front","Infra-red","RS232,Contacts,12V trig",{"$f":"IF(ISNA(INDEX('DO NOT OPEN'!D:D,MATCH(C67,'DO NOT OPEN'!A:A,0),0)),\"No Stock\",INDEX('DO NOT OPEN'!D:D,MATCH(C67,'DO NOT OPEN'!A:A,0),0))","v":142},{"$f":"HYPERLINK(\"http://www.sapphireav.com/Sapphire-Electric-Screen-with-Trigger-Viewing-Area-2346mm-x-1319mm-Approx-Case-Dimensions-L-2658mm-x-H-96mm-x-D-91mm_p_88.html\", \"Click for Web Link\")","v":"Click for Web Link"},14.7,12]
[158,null,"SEWS240RWSF-ATR10",5060558503397,"Electric Screen","Wall/ceiling fixing","2400mm","16by10","Matt White Front","Infra-red","RS232,Contacts,12V trig",{"$f":"IF(ISNA(INDEX('DO NOT OPEN'!D:D,MATCH(C68,'DO NOT OPEN'!A:A,0),0)),\"No Stock\",INDEX('DO NOT OPEN'!D:D,MATCH(C68,'DO NOT OPEN'!A:A,0),0))","v":79},{"$f":"HYPERLINK(\"http://www.sapphireav.com/Sapphire-Electric-Screen-Infra-Red-Viewing-Area-2346mm-x-1466mm-Approx-Case-Dimensions-L-2658mm-x-H-96mm-x-D-91mm_p_89.html\", \"Click for Web Link\")","v":"Click for Web Link"},14.7,12]
[160,null,"SEWS240WSF-ATRAC",5060558502987,"Electric Screen","Wall/ceiling fixing","2400mm","16by9","Accoustic top border","Infra-red","RS232,Contacts,12V trig",{"$f":"IF(ISNA(INDEX('DO NOT OPEN'!D:D,MATCH(C69,'DO NOT OPEN'!A:A,0),0)),\"No Stock\",INDEX('DO NOT OPEN'!D:D,MATCH(C69,'DO NOT OPEN'!A:A,0),0))","v":6},{"$f":"HYPERLINK(\"http://www.sapphireav.com/Sapphire-Electric-Acoustic-Transparent-Screen-Viewing-Area-2346mm-x-1319mm-with-ATR-Approx-Case-Dimensions-L-2658mm-x-H-96mm-x-D-91mm_p_545.html\", \"Click for Web Link\")","v":"Click for Web Link"},14.7,12]
[161,null,"SEWS270RAD-A",5060558504011,"Electric Screen","Wall/ceiling fixing","2700mm","4by3","Matt White Front","Infra-red","RS232,Contacts",{"$f":"IF(ISNA(INDEX('DO NOT OPEN'!D:D,MATCH(C70,'DO NOT OPEN'!A:A,0),0)),\"No Stock\",INDEX('DO NOT OPEN'!D:D,MATCH(C70,'DO NOT OPEN'!A:A,0),0))","v":2},{"$f":"HYPERLINK(\"http://www.sapphireav.com/-Viewing-Area-2703mm-x-2027mm-Sapphire-Electric-Screen-43-Format-Approx-Case-Dimensions-L-2953mm-x-H-126mm-x-D-120mm_p_573.html\", \"Click for Web Link\")","v":"Click for Web Link"},26,15]
[162,null,"SEWS270RBV-ATR",5060558503403,"Electric Screen","Wall/ceiling fixing","2700mm","4by3","Matt White Front","Infra-red","RS232,Contacts,12V trig",{"$f":"IF(ISNA(INDEX('DO NOT OPEN'!D:D,MATCH(C71,'DO NOT OPEN'!A:A,0),0)),\"No Stock\",INDEX('DO NOT OPEN'!D:D,MATCH(C71,'DO NOT OPEN'!A:A,0),0))","v":12},{"$f":"HYPERLINK(\"http://www.sapphireav.com/Sapphire-Electric-Screen-with-Trigger-2700mm-x-2027mm-Approx-Case-Dimensions-L-2953mm-x-H-126mm-x-D-120mm_p_518.html\", \"Click for Web Link\")","v":"Click for Web Link"},26,15]
[165,null,"SEWS270RWSF-ATR",5060558503410,"Electric Screen","Wall/ceiling fixing","2700mm ","16by9","Matt White Front","Infra-red","RS232,Contacts,12V trig",{"$f":"IF(ISNA(INDEX('DO NOT OPEN'!D:D,MATCH(C72,'DO NOT OPEN'!A:A,0),0)),\"No Stock\",INDEX('DO NOT OPEN'!D:D,MATCH(C72,'DO NOT OPEN'!A:A,0),0))","v":50},{"$f":"HYPERLINK(\"http://www.sapphireav.com/Sapphire-Electric-Screen-with-Trigger-Viewing-Area-2701mm-x-1518mm-Approx-Case-Dimensions-L-2953mm-x-H-126mm-x-D-120mm_p_519.html\", \"Click for Web Link\")","v":"Click for Web Link"},26,15]
[171,null,"SEWS270RWSF-ATR10",5060558501065,"Electric Screen","Wall/ceiling fixing","2700mm ","16by10","Matt White Front","Infra-red","RS232,Contacts,12V trig",{"$f":"IF(ISNA(INDEX('DO NOT OPEN'!D:D,MATCH(C73,'DO NOT OPEN'!A:A,0),0)),\"No Stock\",INDEX('DO NOT OPEN'!D:D,MATCH(C73,'DO NOT OPEN'!A:A,0),0))","v":47},{"$f":"HYPERLINK(\"http://www.sapphireav.com/Sapphire-Electric-Screen-with-Trigger-Viewing-Area-2701mm-x-1687mm-Approx-Case-Dimensions-L-2953mm-x-H-126mm-x-D-120mm_p_563.html\", \"Click for Web Link\")","v":"Click for Web Link"},26,15]
[176,null,"SEWS300BS-A",5060558501034,"Electric Screen","Wall/ceiling fixing","3000mm","Square","Matt White Front","Radio","RS232,Contacts",{"$f":"IF(ISNA(INDEX('DO NOT OPEN'!D:D,MATCH(C74,'DO NOT OPEN'!A:A,0),0)),\"No Stock\",INDEX('DO NOT OPEN'!D:D,MATCH(C74,'DO NOT OPEN'!A:A,0),0))","v":0},{"$f":"HYPERLINK(\"http://www.sapphireav.com/Sapphire-Electric-Screen-Radio-Frequency-Viewing-Area-3050mm-x-3050mm-Approx-Case-Dimensions-L-3367mm-x-H-126mm-x-D-120mm_p_91.html\", \"Click for Web Link\")","v":"Click for Web Link"},29.4,30]
[193,null,"SEWS300BV-A",5060558502208,"Electric Screen","Wall/ceiling fixing","3000mm","4by3","Matt White Front","Radio","RS232,Contacts",{"$f":"IF(ISNA(INDEX('DO NOT OPEN'!D:D,MATCH(C75,'DO NOT OPEN'!A:A,0),0)),\"No Stock\",INDEX('DO NOT OPEN'!D:D,MATCH(C75,'DO NOT OPEN'!A:A,0),0))","v":23},{"$f":"HYPERLINK(\"http://www.sapphireav.com/Sapphire-Electric-Screen-Radio-Frequency-Viewing-Area-3050mm-x-2286mm-Approx-Case-Dimensions-L-3367mm-x-H-126mm-x-D-120mm_p_27.html\", \"Click for Web Link\")","v":"Click for Web Link"},24.8,30]
[223,null,"SEWS300BWSF-A",5060558502215,"Electric Screen","Wall/ceiling fixing","3000mm","16by9","Matt White Front","Radio","RS232,Contacts",{"$f":"IF(ISNA(INDEX('DO NOT OPEN'!D:D,MATCH(C76,'DO NOT OPEN'!A:A,0),0)),\"No Stock\",INDEX('DO NOT OPEN'!D:D,MATCH(C76,'DO NOT OPEN'!A:A,0),0))","v":5},{"$f":"HYPERLINK(\"http://www.sapphireav.com/Sapphire-Electric-Screen-Radio-Frequency-Viewing-Area-3010mm-x-1693mm-Approx-Case-Dimensions-L-3330mm-x-H-126mm-x-D-120mm_p_92.html\", \"Click for Web Link\")","v":"Click for Web Link"},24.8,30]
[224,null,"SEWS300BWSF-A10",5060558503427,"Electric Screen","Wall/ceiling fixing","3000mm","16by10","Matt White Front","Radio","RS232,Contacts",{"$f":"IF(ISNA(INDEX('DO NOT OPEN'!D:D,MATCH(C77,'DO NOT OPEN'!A:A,0),0)),\"No Stock\",INDEX('DO NOT OPEN'!D:D,MATCH(C77,'DO NOT OPEN'!A:A,0),0))","v":102},{"$f":"HYPERLINK(\"http://www.sapphireav.com/Sapphire-Electric-Screen-Radio-Frequency-Viewing-Area-3010-x-1881mm-Approx-Case-Dimensions-L-3330mm-x-H-126mm-x-D-120mm_p_465.html\", \"Click for Web Link\")","v":"Click for Web Link"},24.8,30]
[227,null,"SEWS350BV-A",5060558502222,"Electric Screen","Wall/ceiling fixing","3500mm","4by3","Matt White Front","Radio","RS232,Contacts",{"$f":"IF(ISNA(INDEX('DO NOT OPEN'!D:D,MATCH(C78,'DO NOT OPEN'!A:A,0),0)),\"No Stock\",INDEX('DO NOT OPEN'!D:D,MATCH(C78,'DO NOT OPEN'!A:A,0),0))","v":13},{"$f":"HYPERLINK(\"http://www.sapphireav.com/Sapphire-Electric-Screen-Radio-Frequency-Viewing-Area-3495mm-x-2621mm-Approx-Case-Dimensions-L-3824mm-x-H-126mm-x-D-120mm_p_93.html\", \"Click for Web Link\")","v":"Click for Web Link"},40,30]
[231,null,"SEWS350BWSF-A",5060558502239,"Electric Screen","Wall/ceiling fixing","3500mm","16by9","Matt White Front","Radio","RS232,Contacts",{"$f":"IF(ISNA(INDEX('DO NOT OPEN'!D:D,MATCH(C79,'DO NOT OPEN'!A:A,0),0)),\"No Stock\",INDEX('DO NOT OPEN'!D:D,MATCH(C79,'DO NOT OPEN'!A:A,0),0))","v":34},{"$f":"HYPERLINK(\"http://www.sapphireav.com/Sapphire-Electric-Screen-Radio-Frequency-Viewing-Area-3495mm-x-1966-Approx-Case-Dimensions-L-3824mm-x-H-126mm-x-D-120mm_p_94.html\", \"Click for Web Link\")","v":"Click for Web Link"},40,30]
[233,null,"SEWS350BWSF-A10",5060558503434,"Electric Screen","Wall/ceiling fixing","3500mm","16by10","Matt White Front","Radio","RS232,Contacts",{"$f":"IF(ISNA(INDEX('DO NOT OPEN'!D:D,MATCH(C80,'DO NOT OPEN'!A:A,0),0)),\"No Stock\",INDEX('DO NOT OPEN'!D:D,MATCH(C80,'DO NOT OPEN'!A:A,0),0))","v":21},{"$f":"HYPERLINK(\"http://www.sapphireav.com/Sapphire-Electric-Screen-Radio-Frequency-Viewing-Area-3495-x-2181mm-Approx-Case-Dimensions-L-3824mm-x-H-126mm-x-D-120mm_p_464.html\", \"Click for Web Link\")","v":"Click for Web Link"},40,30]
[237,null,"SEWS400BS",5060558502246,"Electric Screen","Wall/ceiling fixing","4000mm","Square","Matt White Front","Radio","RS232,Contacts",{"$f":"IF(ISNA(INDEX('DO NOT OPEN'!D:D,MATCH(C81,'DO NOT OPEN'!A:A,0),0)),\"No Stock\",INDEX('DO NOT OPEN'!D:D,MATCH(C81,'DO NOT OPEN'!A:A,0),0))","v":2},{"$f":"HYPERLINK(\"http://www.sapphireav.com/Sapphire-Electric-Screen-Viewing-Area-3988mm-x-3988mm-not-Channel-Fix-Approx-Case-Dimensions-L-4335mm-x-H-180mm-x-D-140mm_p_95.html\", \"Click for Web Link\")","v":"Click for Web Link"},50,30]
[238,null,"SEWS400BV-A",5060558502253,"Electric Screen","Wall/ceiling fixing","4000mm","4by3","Matt White Front","Radio","RS232,Contacts",{"$f":"IF(ISNA(INDEX('DO NOT OPEN'!D:D,MATCH(C82,'DO NOT OPEN'!A:A,0),0)),\"No Stock\",INDEX('DO NOT OPEN'!D:D,MATCH(C82,'DO NOT OPEN'!A:A,0),0))","v":11},{"$f":"HYPERLINK(\"http://www.sapphireav.com/Sapphire-Electric-Screen-Radio-Frequency-Viewing-Area-4020mm-x-3015mm-Approx-Case-Dimensions-L-4377mm-x-H-126mm-x-D-120mm_p_96.html\", \"Click for Web Link\")","v":"Click for Web Link"},44,30]
[240,null,"SEWS400BWSF-A",5060558502260,"Electric Screen","Wall/ceiling fixing","4000mm","16by9","Matt White Front","Radio","RS232,Contacts",{"$f":"IF(ISNA(INDEX('DO NOT OPEN'!D:D,MATCH(C83,'DO NOT OPEN'!A:A,0),0)),\"No Stock\",INDEX('DO NOT OPEN'!D:D,MATCH(C83,'DO NOT OPEN'!A:A,0),0))","v":22},{"$f":"HYPERLINK(\"http://www.sapphireav.com/Sapphire-Electric-Screen-Radio-Frequency-Viewing-Area-3985mm-x-2240mm-Approx-Case-Dimensions-L-4300mm-x-H-126mm-x-D-120mm_p_97.html\", \"Click for Web Link\")","v":"Click for Web Link"},44,30]
[243,null,"SEWS400BWSF-A10",5060558503441,"Electric Screen","Wall/ceiling fixing","4000mm","16by10","Matt White Front","Radio","RS232,Contacts",{"$f":"IF(ISNA(INDEX('DO NOT OPEN'!D:D,MATCH(C84,'DO NOT OPEN'!A:A,0),0)),\"No Stock\",INDEX('DO NOT OPEN'!D:D,MATCH(C84,'DO NOT OPEN'!A:A,0),0))","v":11},{"$f":"HYPERLINK(\"http://www.sapphireav.com/Sapphire-Electric-Screen-Radio-Frequency-Viewing-Area-3985-x-2490mm-Approx-Case-Dimensions-L-4300mm-x-H-126mm-x-D-120mm_p_466.html\", \"Click for Web Link\")","v":"Click for Web Link"},44,30]
[244,null,"SEWS450BV",5060558502277,"Electric Screen","Wall/ceiling fixing","4500mm","4by3","Matt White Front","Radio","RS232,Contacts NON CHAN FIX",{"$f":"IF(ISNA(INDEX('DO NOT OPEN'!D:D,MATCH(C85,'DO NOT OPEN'!A:A,0),0)),\"No Stock\",INDEX('DO NOT OPEN'!D:D,MATCH(C85,'DO NOT OPEN'!A:A,0),0))","v":2},{"$f":"HYPERLINK(\"http://www.sapphireav.com/Sapphire-Electric-Screen-Radio-Frequency-Viewing-Area-4491mm-x-3638mm-not-channel-fix-Approx-Case-Dimensions-L-4836mm-x-H-180mm-x-D-140mm_p_98.html\", \"Click for Web Link\")","v":"Click for Web Link"},50,90]
[245,null,"SEWS450BWSF",5060558501089,"Electric Screen","Wall/ceiling fixing","4500mm","16by9","Matt White Front","Radio","RS232,Contacts NON CHAN FIX",{"$f":"IF(ISNA(INDEX('DO NOT OPEN'!D:D,MATCH(C86,'DO NOT OPEN'!A:A,0),0)),\"No Stock\",INDEX('DO NOT OPEN'!D:D,MATCH(C86,'DO NOT OPEN'!A:A,0),0))","v":3},{"$f":"HYPERLINK(\"http://www.sapphireav.com/Viewing-Area-4491mm-x-2525mm-45m-Electric-Screen-169-Format-Approx-Case-Dimensions-L-4836mm-x-H-180mm-x-D-140mm_p_574.html\", \"Click for Web Link\")","v":"Click for Web Link"},50,90]
[246,null,"SEWS450BWSF-10",5060558501386,"Electric Screen","Wall/ceiling fixing","4500mm","16by10","Matt White Front","Radio","RS232,Contacts NON CHAN FIX",{"$f":"IF(ISNA(INDEX('DO NOT OPEN'!D:D,MATCH(C87,'DO NOT OPEN'!A:A,0),0)),\"No Stock\",INDEX('DO NOT OPEN'!D:D,MATCH(C87,'DO NOT OPEN'!A:A,0),0))","v":7},{"$f":"HYPERLINK(\"http://www.sapphireav.com/Viewing-Area-4491mm-x-2807mm-45m-Electric-Screen-1610-Format-Approx-Case-Dimensions-L-4836mm-x-H-180mm-x-D-140mm_p_654.html\", \"Click for Web Link\")","v":"Click for Web Link"},50,90]
[250,null,"SEWS488BV",5060558501096,"Electric Screen","Wall/ceiling fixing","4880mm","4by3","Matt White Front","Radio","RS232,Contacts NON CHAN FIX",{"$f":"IF(ISNA(INDEX('DO NOT OPEN'!D:D,MATCH(C88,'DO NOT OPEN'!A:A,0),0)),\"No Stock\",INDEX('DO NOT OPEN'!D:D,MATCH(C88,'DO NOT OPEN'!A:A,0),0))","v":6},{"$f":"HYPERLINK(\"http://www.sapphireav.com/Sapphire-Electric-Screen-Radio-Frequency-Viewing-Area-4878mm-x-3652mm-not-channel-fix-Approx-Case-Dimensions-L-5283mm-x-H-232mm-x-D-217mm_p_534.html\", \"Click for Web Link\")","v":"Click for Web Link"},52,120]
[261,null,"SEWS488BWSF",5060558501041,"Electric Screen","Wall/ceiling fixing","4880mm","16by9","Matt White Front","Radio","RS232,Contacts NON CHAN FIX",{"$f":"IF(ISNA(INDEX('DO NOT OPEN'!D:D,MATCH(C89,'DO NOT OPEN'!A:A,0),0)),\"No Stock\",INDEX('DO NOT OPEN'!D:D,MATCH(C89,'DO NOT OPEN'!A:A,0),0))","v":1},{"$f":"HYPERLINK(\"http://www.sapphireav.com/Sapphire-Electric-Screen-Radio-Frequency-Viewing-Area-4878mm-x-2739mm-not-channel-fix-Approx-Case-Dimensions-L-5283mm-x-H-232mm-x-D-217mm_p_546.html\", \"Click for Web Link\")","v":"Click for Web Link"},52,120]
[265,null,"SEWS488BWSF-10",5060558501126,"Electric Screen","Wall/ceiling fixing","4880mm","16by10","Matt White Front","Radio","RS232,Contacts NON CHAN FIX",{"$f":"IF(ISNA(INDEX('DO NOT OPEN'!D:D,MATCH(C90,'DO NOT OPEN'!A:A,0),0)),\"No Stock\",INDEX('DO NOT OPEN'!D:D,MATCH(C90,'DO NOT OPEN'!A:A,0),0))","v":4},{"$f":"HYPERLINK(\"http://www.sapphireav.com/Sapphire-Electric-Screen-Radio-Frequency-Viewing-Area-4878mm-x-3048mm-not-channel-fix-Approx-Case-Dimensions-L-5283mm-x-H-232mm-x-D-217mm_p_523.html\", \"Click for Web Link\")","v":"Click for Web Link"},52,120]
[266,null,"SEWS500BV-A",5060558502284,"Electric Screen","Wall/ceiling fixing","5000mm","4by3","Matt White Front","Radio/Ceiling Eyelet","RS232,Contacts",{"$f":"IF(ISNA(INDEX('DO NOT OPEN'!D:D,MATCH(C91,'DO NOT OPEN'!A:A,0),0)),\"No Stock\",INDEX('DO NOT OPEN'!D:D,MATCH(C91,'DO NOT OPEN'!A:A,0),0))","v":0},{"$f":"HYPERLINK(\"http://www.sapphireav.com/Sapphire-Electric-Screen-Radio-Frequency-Viewing-Area-5080mm-x-3810mm-not-channel-fix-Approx-Case-Dimensions-L-5470mm-x-H-232mm-x-D-217mm_p_311.html\", \"Click for Web Link\")","v":"Click for Web Link"},125,"POA"]
[267,null,"SEWS500BWSF-A10",5060558503465,"Electric Screen","Wall/ceiling fixing","5000mm","16by10","Matt White Front","Radio/Ceiling Eyelet","RS232,Contacts",{"$f":"IF(ISNA(INDEX('DO NOT OPEN'!D:D,MATCH(C92,'DO NOT OPEN'!A:A,0),0)),\"No Stock\",INDEX('DO NOT OPEN'!D:D,MATCH(C92,'DO NOT OPEN'!A:A,0),0))","v":0},{"$f":"HYPERLINK(\"http://www.sapphireav.com/Sapphire-Electric-Screen-Radio-Frequency-Viewing-Area-5070mm-x-3125mm-not-channel-fix-Approx-Case-Dimensions-L-5470mm-x-H-232mm-x-D-217mm_p_504.html\", \"Click for Web Link\")","v":"Click for Web Link"},125,"POA"]
[268,null,"SEWS500WSF-A",5060558503458,"Electric Screen","Wall/ceiling fixing","5000mm","16by9","Matt White Front","Radio/Ceiling Eyelet","RS232,Contacts",{"$f":"IF(ISNA(INDEX('DO NOT OPEN'!D:D,MATCH(C93,'DO NOT OPEN'!A:A,0),0)),\"No Stock\",INDEX('DO NOT OPEN'!D:D,MATCH(C93,'DO NOT OPEN'!A:A,0),0))","v":0},{"$f":"HYPERLINK(\"http://www.sapphireav.com/Sapphire-Electric-Screen-Radio-Frequency-Viewing-Area-5070mm-x-2852mm-not-channel-fix-Approx-Case-Dimensions-L-5470mm-x-H-232mm-x-D-217mm_p_496.html\", \"Click for Web Link\")","v":"Click for Web Link"},125,"POA"]
[269,null,"SEWS600BV-A",5060558502291,"Electric Screen","Wall/ceiling fixing","6000mm","4by3","Matt White Front","Radio/Ceiling Eyelet","RS232,Contacts",{"$f":"IF(ISNA(INDEX('DO NOT OPEN'!D:D,MATCH(C94,'DO NOT OPEN'!A:A,0),0)),\"No Stock\",INDEX('DO NOT OPEN'!D:D,MATCH(C94,'DO NOT OPEN'!A:A,0),0))","v":0},{"$f":"HYPERLINK(\"http://www.sapphireav.com/Sapphire-Electric-Screen-Radio-Frequency-Viewing-Area-6000mm-x-4500mm-not-channel-fix-Approx-Case-Dimensions-L-6390mm-x-H-232mm-x-D-217mm_p_312.html\", \"Click for Web Link\")","v":"Click for Web Link"},155,"POA"]
[270,null,"SFFS203FR",5060558502703,"Portable Screen","Rapid Fold Events","2030mm","4by3","Matt White Front","Flight case and fabric",null,{"$f":"IF(ISNA(INDEX('DO NOT OPEN'!D:D,MATCH(C95,'DO NOT OPEN'!A:A,0),0)),\"No Stock\",INDEX('DO NOT OPEN'!D:D,MATCH(C95,'DO NOT OPEN'!A:A,0),0))","v":3},{"$f":"HYPERLINK(\"http://www.sapphireav.com/Sapphire-Rapidfold-Front-Projection-Viewing-Area-2032mm-x-1524mm_p_138.html\", \"Click for Web Link\")","v":"Click for Web Link"},24.5,15]
[271,null,"SFFS203FR10",5060558501485,"Portable Screen","Rapid Fold Events","2030mm","16by10","Matt White Front","Flight case and fabric",null,{"$f":"IF(ISNA(INDEX('DO NOT OPEN'!D:D,MATCH(C96,'DO NOT OPEN'!A:A,0),0)),\"No Stock\",INDEX('DO NOT OPEN'!D:D,MATCH(C96,'DO NOT OPEN'!A:A,0),0))","v":4},{"$f":"HYPERLINK(\"http://www.sapphireav.com/Sapphire-2m-Front-Rapid-Fold-1610_p_697.html\",\"Click for Web Link\")","v":"Click for Web Link"},24.5,15]
[274,null,"SFFS203FR10-Fabric",5060558501751,"Portable Screen Fabric","Portable Screen","2030mm","16by10","Matt White Front","FABRIC ONLY",null,{"$f":"IF(ISNA(INDEX('DO NOT OPEN'!D:D,MATCH(C97,'DO NOT OPEN'!A:A,0),0)),\"No Stock\",INDEX('DO NOT OPEN'!D:D,MATCH(C97,'DO NOT OPEN'!A:A,0),0))","v":0},{"$f":"HYPERLINK(\"http://www.sapphireav.com/Sapphire-2m-Rapid-Fold-Front-Fabric-Only-1610_p_685.html\", \"Click for Web Link\")","v":"Click for Web Link"},3.6,12]
[275,null,"SFFS203FRFabric",5060558503847,"Portable Screen Fabric","Rapid Fold Events","2030mm","4by3","Matt White Front","FABRIC ONLY",null,{"$f":"IF(ISNA(INDEX('DO NOT OPEN'!D:D,MATCH(C98,'DO NOT OPEN'!A:A,0),0)),\"No Stock\",INDEX('DO NOT OPEN'!D:D,MATCH(C98,'DO NOT OPEN'!A:A,0),0))","v":5},{"$f":"HYPERLINK(\"http://www.sapphireav.com/Rapid-Fold-203-Front-Projection-Fabric_p_159.html\", \"Click for Web Link\")","v":"Click for Web Link"},3.6,12]
[278,null,"SFFS203FR-WSF",5060558502710,"Portable Screen","Rapid Fold Events","2030mm","16by9","Matt White Front","Flight case and fabric",null,{"$f":"IF(ISNA(INDEX('DO NOT OPEN'!D:D,MATCH(C99,'DO NOT OPEN'!A:A,0),0)),\"No Stock\",INDEX('DO NOT OPEN'!D:D,MATCH(C99,'DO NOT OPEN'!A:A,0),0))","v":5},{"$f":"HYPERLINK(\"http://www.sapphireav.com/Sapphire-Rapidfold-Front-Projection-Viewing-Area-2030mm-x-1141mm-169-Format_p_430.html\", \"Click for Web Link\")","v":"Click for Web Link"},24.5,15]
[279,null,"SFFS203FR-WSF-fabric",5060558501720,"Portable Screen Fabric","Rapid Fold Events","2030mm","16by9","Matt White Front","FABRIC ONLY",null,{"$f":"IF(ISNA(INDEX('DO NOT OPEN'!D:D,MATCH(C100,'DO NOT OPEN'!A:A,0),0)),\"No Stock\",INDEX('DO NOT OPEN'!D:D,MATCH(C100,'DO NOT OPEN'!A:A,0),0))","v":6},{"$f":"HYPERLINK(\"http://www.sapphireav.com/Sapphire-2m-Front-Rapid-Fold-Fabric-only-169_p_678.html\",\"Click for Web Link\")","v":"Click for Web Link"},3.6,12]
[294,null,"SFFS203RP",5060558502727,"Portable Screen","Rapid Fold Events","2030mm","4by3","Rear Projection","Flight case and fabric",null,{"$f":"IF(ISNA(INDEX('DO NOT OPEN'!D:D,MATCH(C101,'DO NOT OPEN'!A:A,0),0)),\"No Stock\",INDEX('DO NOT OPEN'!D:D,MATCH(C101,'DO NOT OPEN'!A:A,0),0))","v":2},{"$f":"HYPERLINK(\"http://www.sapphireav.com/Sapphire-Rapidfold-Rear-Projection-Viewing-Area-2032mm-x-1524mm_p_139.html\", \"Click for Web Link\")","v":"Click for Web Link"},24.5,15]
[311,null,"SFFS203RP10",5060558501775,"Portable Screen","Rapid Fold Events","2030mm","16by10","Rear Projection","Flight case and fabric",null,{"$f":"IF(ISNA(INDEX('DO NOT OPEN'!D:D,MATCH(C102,'DO NOT OPEN'!A:A,0),0)),\"No Stock\",INDEX('DO NOT OPEN'!D:D,MATCH(C102,'DO NOT OPEN'!A:A,0),0))","v":0},{"$f":"HYPERLINK(\"http://www.sapphireav.com/Sapphire-2m-Rapid-Fold-Rear-Projection-1610_p_687.html\",\"Click for Web Link\")","v":"Click for Web Link"},24.5,15]
[312,null,"SFFS203RP10-Fabric",5060558501768,"Portable Screen Fabric","Portable Screen","2030mm","16by10","Rear Projection","FABRIC ONLY",null,{"$f":"IF(ISNA(INDEX('DO NOT OPEN'!D:D,MATCH(C103,'DO NOT OPEN'!A:A,0),0)),\"No Stock\",INDEX('DO NOT OPEN'!D:D,MATCH(C103,'DO NOT OPEN'!A:A,0),0))","v":0},{"$f":"HYPERLINK(\"http://www.sapphireav.com/Sapphire-2m-Rapid-Fold-Rear-1610-Fabric_p_686.html\",\"Click for Web Link\")","v":"Click for Web Link"},3.6,12]
[315,null,"SFFS203RPFabric",5060558502734,"Portable Screen Fabric","Rapid Fold Events","2030mm","4by3","Rear Projection","FABRIC ONLY",null,{"$f":"IF(ISNA(INDEX('DO NOT OPEN'!D:D,MATCH(C104,'DO NOT OPEN'!A:A,0),0)),\"No Stock\",INDEX('DO NOT OPEN'!D:D,MATCH(C104,'DO NOT OPEN'!A:A,0),0))","v":2},{"$f":"HYPERLINK(\"http://www.sapphireav.com/Rapid-Fold-Rear-Projection-fabric-for-SFFS203-Screen_p_150.html\", \"Click for Web Link\")","v":"Click for Web Link"},3.6,12]
[320,null,"SFFS203RP-WSF",5060558503854,"Portable Screen","Rapid Fold Events","2030mm","16by9","Rear Projection","Flight case and fabric",null,{"$f":"IF(ISNA(INDEX('DO NOT OPEN'!D:D,MATCH(C105,'DO NOT OPEN'!A:A,0),0)),\"No Stock\",INDEX('DO NOT OPEN'!D:D,MATCH(C105,'DO NOT OPEN'!A:A,0),0))","v":2},{"$f":"HYPERLINK(\"http://www.sapphireav.com/Sapphire-Rapidfold-Rear-Projection-Viewing-Area-2030mm-x-1141mm-169-Format_p_549.html\", \"Click for Web Link\")","v":"Click for Web Link"},24.5,15]
[324,null,"SFFS203RP-WSF-Fabric",5060558503861,"Portable Screen Fabric","Rapid Fold Events","2030mm","16by9","Rear Projection","FABRIC ONLY",null,{"$f":"IF(ISNA(INDEX('DO NOT OPEN'!D:D,MATCH(C106,'DO NOT OPEN'!A:A,0),0)),\"No Stock\",INDEX('DO NOT OPEN'!D:D,MATCH(C106,'DO NOT OPEN'!A:A,0),0))","v":2},{"$f":"HYPERLINK(\"http://www.sapphireav.com/Sapphire-2m-Rear-Projection-Rapid-Fold-Fabric-Only-169-Format_p_664.html\", \"Click for Web Link\")","v":"Click for Web Link"},3.6,12]
[325,null,"SFFS244FR",5060558502741,"Portable Screen","Rapid Fold Events","2440mm","4by3","Matt White Front","Flight case and fabric"," ",{"$f":"IF(ISNA(INDEX('DO NOT OPEN'!D:D,MATCH(C107,'DO NOT OPEN'!A:A,0),0)),\"No Stock\",INDEX('DO NOT OPEN'!D:D,MATCH(C107,'DO NOT OPEN'!A:A,0),0))","v":3},{"$f":"HYPERLINK(\"http://www.sapphireav.com/Sapphire-Rapidfold-Front-Projection-Viewing-Area-2438mm-x-1828mm_p_140.html\", \"Click for Web Link\")","v":"Click for Web Link"},27,15]
[326,null,"SFFS244FR10",5060558503304,"Portable Screen","Rapid Fold Events","2440mm","16by10","Matt White Front","Flight case and fabric"," ",{"$f":"IF(ISNA(INDEX('DO NOT OPEN'!D:D,MATCH(C108,'DO NOT OPEN'!A:A,0),0)),\"No Stock\",INDEX('DO NOT OPEN'!D:D,MATCH(C108,'DO NOT OPEN'!A:A,0),0))","v":0},{"$f":"HYPERLINK(\"http://www.sapphireav.com/Rapid-Fold-24-Front-Projection-1610-Projection-Screen_p_141.html\", \"Click for Web Link\")","v":"Click for Web Link"},27,15]
[328,null,"SFFS244FRFabric",5060558503823,"Portable Screen Fabric","Rapid Fold Events","2440mm","4by3","Matt White Front","FABRIC ONLY"," ",{"$f":"IF(ISNA(INDEX('DO NOT OPEN'!D:D,MATCH(C109,'DO NOT OPEN'!A:A,0),0)),\"No Stock\",INDEX('DO NOT OPEN'!D:D,MATCH(C109,'DO NOT OPEN'!A:A,0),0))","v":1},{"$f":"HYPERLINK(\"http://www.sapphireav.com/Rapid-fold-244-Front-Projection-Fabric_p_160.html\", \"Click for Web Link\")","v":"Click for Web Link"},4.0999999999999996,12]
[329,null,"SFFS244FR-WSF",5060558502758,"Portable Screen","Rapid Fold Events","2440mm","16by9","Matt White Front","Flight case and fabric"," ",{"$f":"IF(ISNA(INDEX('DO NOT OPEN'!D:D,MATCH(C110,'DO NOT OPEN'!A:A,0),0)),\"No Stock\",INDEX('DO NOT OPEN'!D:D,MATCH(C110,'DO NOT OPEN'!A:A,0),0))","v":5},{"$f":"HYPERLINK(\"http://www.sapphireav.com/Sapphire-Rapidfold-Front-Projection-Viewing-Area-2440mm-x-1372mm-169-Format_p_431.html\", \"Click for Web Link\")","v":"Click for Web Link"},27,15]
[335,null,"SFFS244FR-WSF-Fabric",5060558503878,"Portable Screen Fabric","Rapid Fold Events","2440mm","16by9","Matt White Front","FABRIC ONLY",null,{"$f":"IF(ISNA(INDEX('DO NOT OPEN'!D:D,MATCH(C111,'DO NOT OPEN'!A:A,0),0)),\"No Stock\",INDEX('DO NOT OPEN'!D:D,MATCH(C111,'DO NOT OPEN'!A:A,0),0))","v":0},{"$f":"HYPERLINK(\"http://www.sapphireav.com/24m-Front-Projection-169-Fabric-only_p_673.html\", \"Click for Web Link\")","v":"Click for Web Link"},4.0999999999999996,12]
[336,null,"SFFS244RP",5060558501102,"Portable Screen","Rapid Fold Events","2440mm","4by3","Rear Projection","Flight case and fabric"," ",{"$f":"IF(ISNA(INDEX('DO NOT OPEN'!D:D,MATCH(C112,'DO NOT OPEN'!A:A,0),0)),\"No Stock\",INDEX('DO NOT OPEN'!D:D,MATCH(C112,'DO NOT OPEN'!A:A,0),0))","v":0},{"$f":"HYPERLINK(\"http://www.sapphireav.com/Sapphire-Rapidfold-Rear-Projection-Viewing-Area-2438mm-x-1828mm_p_142.html\", \"Click for Web Link\")","v":"Click for Web Link"},27,15]
[null,null,"SFFS244RP10",5060558501492,"Portable Screen","Rapid Fold Events","2440mm","16by10","Rear Projection","Flight case and fabric",null,{"$f":"IF(ISNA(INDEX('DO NOT OPEN'!D:D,MATCH(C113,'DO NOT OPEN'!A:A,0),0)),\"No Stock\",INDEX('DO NOT OPEN'!D:D,MATCH(C113,'DO NOT OPEN'!A:A,0),0))","v":1},{"$f":"HYPERLINK(\"http://www.sapphireav.com/Sapphire-24m-Raapid-Fold-Rear-1610_p_700.html\", \"Click for Web Link\")","v":"Click for Web Link"},27,15]
[338,null,"SFFS244RP-10-Fabric",5060558501621,"Portable Screen Fabric","Rapid Fold Events","2440mm","16by10","Rear Projection","FABRIC ONLY",null,{"$f":"IF(ISNA(INDEX('DO NOT OPEN'!D:D,MATCH(C114,'DO NOT OPEN'!A:A,0),0)),\"No Stock\",INDEX('DO NOT OPEN'!D:D,MATCH(C114,'DO NOT OPEN'!A:A,0),0))","v":1},{"$f":"HYPERLINK(\"http://www.sapphireav.com/Sapphire-24m-1610-Rear-Projection-Rapid-Fold-Fabric-Only_p_676.html\",\"Click for Web Link\")","v":"Click for Web Link"},4.0999999999999996,12]
[428,null,"SFFS244RPFabric",5060558502765,"Portable Screen Fabric","Rapid Fold Events","2440mm","4by3","Rear Projection","FABRIC ONLY"," ",{"$f":"IF(ISNA(INDEX('DO NOT OPEN'!D:D,MATCH(C115,'DO NOT OPEN'!A:A,0),0)),\"No Stock\",INDEX('DO NOT OPEN'!D:D,MATCH(C115,'DO NOT OPEN'!A:A,0),0))","v":4},{"$f":"HYPERLINK(\"http://www.sapphireav.com/Rapid-Fold-244-Rear-Projection-Fabric_p_153.html\", \"Click for Web Link\")","v":"Click for Web Link"},4.0999999999999996,12]
[430,null,"SFFS244RP-WSF",5060558503885,"Portable Screen","Rapid Fold Events","2440mm","16by9","Rear Projection","Flight case and fabric"," ",{"$f":"IF(ISNA(INDEX('DO NOT OPEN'!D:D,MATCH(C116,'DO NOT OPEN'!A:A,0),0)),\"No Stock\",INDEX('DO NOT OPEN'!D:D,MATCH(C116,'DO NOT OPEN'!A:A,0),0))","v":0},{"$f":"HYPERLINK(\"http://www.sapphireav.com/Sapphire-Rapidfold-Rear-Projection-Viewing-Area-2440mm-x-1372mm-169-Format_p_550.html\", \"Click for Web Link\")","v":"Click for Web Link"},27,15]
[431,null,"SFFS244RP-WSF-Fabric",5060558501188,"Portable Screen Fabric","Rapid Fold Events","2440mm","16by9","Rear Projection","FABRIC ONLY"," ",{"$f":"IF(ISNA(INDEX('DO NOT OPEN'!D:D,MATCH(C117,'DO NOT OPEN'!A:A,0),0)),\"No Stock\",INDEX('DO NOT OPEN'!D:D,MATCH(C117,'DO NOT OPEN'!A:A,0),0))","v":3},{"$f":"HYPERLINK(\"http://www.sapphireav.com/Rapid-Fold-Rear-Projection-fabric-for-SFFS244WSF_p_506.html\", \"Click for Web Link\")","v":"Click for Web Link"},4.0999999999999996,12]
[432,null,"SFFS244FRWSF-10-Fabric",5060558501607,"Portable Screen Fabric","Rapid Fold Events","2440mm","16by10","Matt White Front","FABRIC ONLY",null,{"$f":"IF(ISNA(INDEX('DO NOT OPEN'!D:D,MATCH(C118,'DO NOT OPEN'!A:A,0),0)),\"No Stock\",INDEX('DO NOT OPEN'!D:D,MATCH(C118,'DO NOT OPEN'!A:A,0),0))","v":0},{"$f":"HYPERLINK(\"http://www.sapphireav.com/Rapid-Fold-Front-Projection-fabric-only-for-24m-1610_p_669.html\", \"Click for Web Link\")","v":"Click for Web Link"},4.0999999999999996,12]
[433,null,"SFFS305FR",5060558502772,"Portable Screen","Rapid Fold Events","3050mm","4by3","Matt White Front","Flight case and fabric"," ",{"$f":"IF(ISNA(INDEX('DO NOT OPEN'!D:D,MATCH(C119,'DO NOT OPEN'!A:A,0),0)),\"No Stock\",INDEX('DO NOT OPEN'!D:D,MATCH(C119,'DO NOT OPEN'!A:A,0),0))","v":6},{"$f":"HYPERLINK(\"http://www.sapphireav.com/Sapphire-Rapidfold-Front-Projection-Viewing-Area-3048mm-x-2286mm_p_143.html\", \"Click for Web Link\")","v":"Click for Web Link"},30,30]
[null,null,"SFFS305RP10",5060558501645,"Portable Screen","Rapid Fold Events","3050mm","16by10","Rear Projection","Flight case and fabric",null,{"$f":"IF(ISNA(INDEX('DO NOT OPEN'!D:D,MATCH(C120,'DO NOT OPEN'!A:A,0),0)),\"No Stock\",INDEX('DO NOT OPEN'!D:D,MATCH(C120,'DO NOT OPEN'!A:A,0),0))","v":1},{"$f":"HYPERLINK(\"http://www.sapphireav.com/Sapphire-3m-Rear-Rapid-Fold-1610_p_698.html\", \"Click for Web Link\")","v":"Click for Web Link"},30,30]
[437,null,"SFFS305FR10",5060558503892,"Portable Screen","Rapid Fold Events","3050mm","16by10","Matt White Front","Flight case and fabric"," ",{"$f":"IF(ISNA(INDEX('DO NOT OPEN'!D:D,MATCH(C121,'DO NOT OPEN'!A:A,0),0)),\"No Stock\",INDEX('DO NOT OPEN'!D:D,MATCH(C121,'DO NOT OPEN'!A:A,0),0))","v":1},{"$f":"HYPERLINK(\"http://www.sapphireav.com/Sapphire-Rapidfold-Front-Projection-Viewing-Area-3050mm-x-1906mm-1610-Format_p_578.html\", \"Click for Web Link\")","v":"Click for Web Link"},30,30]
[438,null,"SFFS305FR10-Fabric",5060558501638,"Portable Screen Fabric","Rapid Fold Events","3050mm","16by10","Matt White Front","FABRIC ONLY",null,{"$f":"IF(ISNA(INDEX('DO NOT OPEN'!D:D,MATCH(C122,'DO NOT OPEN'!A:A,0),0)),\"No Stock\",INDEX('DO NOT OPEN'!D:D,MATCH(C122,'DO NOT OPEN'!A:A,0),0))","v":0},{"$f":"HYPERLINK(\"http://www.sapphireav.com/3m-Rapid-Fold-Front-Projection-1610-Fabric-Only_p_677.html\",\"Click for Web Link\")","v":"Click for Web Link"},5.0999999999999996,12]
[439,null,"SFFS305FRFabric",5060558503830,"Portable Screen Fabric","Rapid Fold Events","3050mm","4by3","Matt White Front","FABRIC ONLY"," ",{"$f":"IF(ISNA(INDEX('DO NOT OPEN'!D:D,MATCH(C123,'DO NOT OPEN'!A:A,0),0)),\"No Stock\",INDEX('DO NOT OPEN'!D:D,MATCH(C123,'DO NOT OPEN'!A:A,0),0))","v":3},{"$f":"HYPERLINK(\"http://www.sapphireav.com/Rapid-Fold-305-Front-Projection-Fabric_p_161.html\", \"Click for Web Link\")","v":"Click for Web Link"},5.0999999999999996,12]
[440,null,"SFFS305FR-WSF",5060558502789,"Portable Screen","Rapid Fold Events","3050mm","16by9","Matt White Front","Flight case and fabric"," ",{"$f":"IF(ISNA(INDEX('DO NOT OPEN'!D:D,MATCH(C124,'DO NOT OPEN'!A:A,0),0)),\"No Stock\",INDEX('DO NOT OPEN'!D:D,MATCH(C124,'DO NOT OPEN'!A:A,0),0))","v":12},{"$f":"HYPERLINK(\"http://www.sapphireav.com/Sapphire-Rapidfold-Front-Projection-Viewing-Area-3050mm-x-1715mm-169-Format_p_432.html\", \"Click for Web Link\")","v":"Click for Web Link"},30,30]
[441,null,"SFFS305FR-WSF-Fabric",5060558503908,"Portable Screen Fabric","Rapid Fold Events","3050mm","16by9","Matt White Front","FABRIC ONLY",null,{"$f":"IF(ISNA(INDEX('DO NOT OPEN'!D:D,MATCH(C125,'DO NOT OPEN'!A:A,0),0)),\"No Stock\",INDEX('DO NOT OPEN'!D:D,MATCH(C125,'DO NOT OPEN'!A:A,0),0))","v":6},{"$f":"HYPERLINK(\"http://www.sapphireav.com/3m-Front-Projection-169-Fabric-Only_p_670.html\", \"Click for Web Link\")","v":"Click for Web Link"},5.0999999999999996,12]
[442,null,"SFFS305RP",5060558503533,"Portable Screen","Rapid Fold Events","3050mm","4by3","Rear Projection","Flight case and fabric"," ",{"$f":"IF(ISNA(INDEX('DO NOT OPEN'!D:D,MATCH(C126,'DO NOT OPEN'!A:A,0),0)),\"No Stock\",INDEX('DO NOT OPEN'!D:D,MATCH(C126,'DO NOT OPEN'!A:A,0),0))","v":1},{"$f":"HYPERLINK(\"http://www.sapphireav.com/Sapphire-Rapidfold-Rear-Projection-Viewing-Area-3048mm-x-2286mm_p_144.html\", \"Click for Web Link\")","v":"Click for Web Link"},30,30]
[445,null,"SFFS305RP10-Fabric",5060558501652,"Portable Screen Fabric","Rapid Fold Events","3050mm","16by10","Rear Projection","FABRIC ONLY",null,{"$f":"IF(ISNA(INDEX('DO NOT OPEN'!D:D,MATCH(C127,'DO NOT OPEN'!A:A,0),0)),\"No Stock\",INDEX('DO NOT OPEN'!D:D,MATCH(C127,'DO NOT OPEN'!A:A,0),0))","v":0},{"$f":"HYPERLINK(\"http://www.sapphireav.com/Sapphire-3m-Rear-Rapid-Fold-Fabric-only-1610_p_695.html\",\"Click for Web Link\")","v":"Click for Web Link"},5.0999999999999996,12]
[446,null,"SFFS305RPFabric",5060558502796,"Portable Screen Fabric","Rapid Fold Events","3050mm","4by3","Matt White Front","FABRIC ONLY"," ",{"$f":"IF(ISNA(INDEX('DO NOT OPEN'!D:D,MATCH(C128,'DO NOT OPEN'!A:A,0),0)),\"No Stock\",INDEX('DO NOT OPEN'!D:D,MATCH(C128,'DO NOT OPEN'!A:A,0),0))","v":5},{"$f":"HYPERLINK(\"http://www.sapphireav.com/Rapid-Fold-305-Rear-Projection-Fabric_p_156.html\", \"Click for Web Link\")","v":"Click for Web Link"},5.0999999999999996,12]
[447,null,"SFFS305RP-WSF",5060558501195,"Portable Screen","Rapid Fold Events","3050mm","16by9","Rear Projection","Flight case and fabric"," ",{"$f":"IF(ISNA(INDEX('DO NOT OPEN'!D:D,MATCH(C129,'DO NOT OPEN'!A:A,0),0)),\"No Stock\",INDEX('DO NOT OPEN'!D:D,MATCH(C129,'DO NOT OPEN'!A:A,0),0))","v":1},{"$f":"HYPERLINK(\"http://www.sapphireav.com/Sapphire-Rapidfold-Rear-Projection-Viewing-Area-3050mm-x-1715mm-169-Format_p_551.html\", \"Click for Web Link\")","v":"Click for Web Link"},30,30]
[448,null,"SFFS305RP-WSF-Fabric",5060558503915,"Portable Screen Fabric","Rapid Fold Events","3050mm","16by9","Rear Projection","FABRIC ONLY",null,{"$f":"IF(ISNA(INDEX('DO NOT OPEN'!D:D,MATCH(C130,'DO NOT OPEN'!A:A,0),0)),\"No Stock\",INDEX('DO NOT OPEN'!D:D,MATCH(C130,'DO NOT OPEN'!A:A,0),0))","v":1},{"$f":"HYPERLINK(\"http://www.sapphireav.com/3m-Rear-Projection-169-Fabric-Only_p_671.html\", \"Click for Web Link\")","v":"Click for Web Link"},5.0999999999999996,12]
[449,null,"SFFS365FR",5060558502802,"Portable Screen","Rapid Fold Events","3650mm","4by3","Matt White Front","Flight case and fabric"," ",{"$f":"IF(ISNA(INDEX('DO NOT OPEN'!D:D,MATCH(C131,'DO NOT OPEN'!A:A,0),0)),\"No Stock\",INDEX('DO NOT OPEN'!D:D,MATCH(C131,'DO NOT OPEN'!A:A,0),0))","v":5},{"$f":"HYPERLINK(\"http://www.sapphireav.com/Sapphire-Rapidfold-Front-Projection-Viewing-Area-3657mm-x-2743mm_p_145.html\", \"Click for Web Link\")","v":"Click for Web Link"},33,30]
[450,null,"SFFS365FR10",5060558501201,"Portable Screen","Rapid Fold Events","3650mm","16by10","Matt White Front","Flight case and fabric"," ",{"$f":"IF(ISNA(INDEX('DO NOT OPEN'!D:D,MATCH(C132,'DO NOT OPEN'!A:A,0),0)),\"No Stock\",INDEX('DO NOT OPEN'!D:D,MATCH(C132,'DO NOT OPEN'!A:A,0),0))","v":0},{"$f":"HYPERLINK(\"http://www.sapphireav.com/Sapphire-Rapidfold-Front-Projection-Viewing-Area-3650mm-x-2281mm-1610-Format_p_579.html\", \"Click for Web Link\")","v":"Click for Web Link"},33,30]
[451,null,"SFFS365FR10-Fabric",5060558501829,"Portable Screen Fabric","Rapid Fold Events","3650mm","16by10","Matt White Front","FABRIC ONLY",null,{"$f":"IF(ISNA(INDEX('DO NOT OPEN'!D:D,MATCH(C133,'DO NOT OPEN'!A:A,0),0)),\"No Stock\",INDEX('DO NOT OPEN'!D:D,MATCH(C133,'DO NOT OPEN'!A:A,0),0))","v":0},{"$f":"HYPERLINK(\"http://www.sapphireav.com/Sapphire-36m-Rapid-Fold-Front-Fabric-Only-1610_p_688.html\",\"Click for Web Link\")","v":"Click for Web Link"},7,12]
[453,null,"SFFS365FR-Fabric",5060558503922,"Portable Screen Fabric","Rapid Fold Events","3650mm","4by3","Matt White Front","FABRIC ONLY"," ",{"$f":"IF(ISNA(INDEX('DO NOT OPEN'!D:D,MATCH(C134,'DO NOT OPEN'!A:A,0),0)),\"No Stock\",INDEX('DO NOT OPEN'!D:D,MATCH(C134,'DO NOT OPEN'!A:A,0),0))","v":2},{"$f":"HYPERLINK(\"http://www.sapphireav.com/Rapid-Fold-365-Front-Projection-Fabric_p_162.html\", \"Click for Web Link\")","v":"Click for Web Link"},7,12]
[456,null,"SFFS365FR-WSF",5060558502819,"Portable Screen","Rapid Fold Events","3650mm","16by9","Matt White Front","Flight case and fabric"," ",{"$f":"IF(ISNA(INDEX('DO NOT OPEN'!D:D,MATCH(C135,'DO NOT OPEN'!A:A,0),0)),\"No Stock\",INDEX('DO NOT OPEN'!D:D,MATCH(C135,'DO NOT OPEN'!A:A,0),0))","v":4},{"$f":"HYPERLINK(\"http://www.sapphireav.com/Sapphire-Rapidfold-Front-Projection-Viewing-Area-3650mm-x-2053mm-169-Format_p_433.html\", \"Click for Web Link\")","v":"Click for Web Link"},33,30]
[458,null,"SFFS365FR-WSF-Fabric",5060558504134,"Portable Screen Fabric","Rapid Fold Events","3650mm","16by9","Matt White Front","FABRIC ONLY",null,{"$f":"IF(ISNA(INDEX('DO NOT OPEN'!D:D,MATCH(C136,'DO NOT OPEN'!A:A,0),0)),\"No Stock\",INDEX('DO NOT OPEN'!D:D,MATCH(C136,'DO NOT OPEN'!A:A,0),0))","v":1},{"$f":"HYPERLINK(\"http://www.sapphireav.com/Sapphire-36m-Rapid-Fold-Front-fabric-only-169_p_693.html\",\"Click for Web Link\")","v":"Click for Web Link"},7,12]
[459,null,"SFFS365RP",5060558503557,"Portable Screen","Rapid Fold Events","3650mm","4by3","Rear Projection","Flight case and fabric"," ",{"$f":"IF(ISNA(INDEX('DO NOT OPEN'!D:D,MATCH(C137,'DO NOT OPEN'!A:A,0),0)),\"No Stock\",INDEX('DO NOT OPEN'!D:D,MATCH(C137,'DO NOT OPEN'!A:A,0),0))","v":3},{"$f":"HYPERLINK(\"http://www.sapphireav.com/Sapphire-Rapidfold-Rear-Projection-Viewing-Area-3657mm-x-2743mm_p_146.html\", \"Click for Web Link\")","v":"Click for Web Link"},33,30]
[460,null,"SFFS365RP10",5060558501782,"Portable Screen","Rapid Fold Events","3650mm","16by10","Rear Projection","Flight case and fabric",null,{"$f":"IF(ISNA(INDEX('DO NOT OPEN'!D:D,MATCH(C138,'DO NOT OPEN'!A:A,0),0)),\"No Stock\",INDEX('DO NOT OPEN'!D:D,MATCH(C138,'DO NOT OPEN'!A:A,0),0))","v":0},{"$f":"HYPERLINK(\"http://www.sapphireav.com/Sapphire-Rapidfold-Rear-Projection-Viewing-Area-3650mm-x-2281mm-1610-Format_p_692.html\",\"Click for Web Link\")","v":"Click for Web Link"},33,30]
[461,null,"SFFS365RP10-Fabric",5060558501676,"Portable Screen Fabric","Rapid Fold Events","3650mm","16by10","Matt White Front","FABRIC ONLY",null,{"$f":"IF(ISNA(INDEX('DO NOT OPEN'!D:D,MATCH(C139,'DO NOT OPEN'!A:A,0),0)),\"No Stock\",INDEX('DO NOT OPEN'!D:D,MATCH(C139,'DO NOT OPEN'!A:A,0),0))","v":1},{"$f":"HYPERLINK(\"http://www.sapphireav.com/Sapphire-36m-Rear-Projecion-Rapid-Fold-Fabric-Only-1610_p_696.html\",\"Click for Web Link\")","v":"Click for Web Link"},7,12]
[462,null,"SFFS365RP-Fabric",5060558502826,"Portable Screen Fabric","Rapid Fold Events","3650mm","4by3","Rear Projection","FABRIC ONLY"," ",{"$f":"IF(ISNA(INDEX('DO NOT OPEN'!D:D,MATCH(C140,'DO NOT OPEN'!A:A,0),0)),\"No Stock\",INDEX('DO NOT OPEN'!D:D,MATCH(C140,'DO NOT OPEN'!A:A,0),0))","v":4},{"$f":"HYPERLINK(\"http://www.sapphireav.com/Rapid-Fold-365-Rear-Projection-Fabric_p_157.html\", \"Click for Web Link\")","v":"Click for Web Link"},7,12]
[463,null,"SFFS365RP-WSF",5060558503939,"Portable Screen","Rapid Fold Events","3650mm","16by9","Rear Projection","Flight case and fabric"," ",{"$f":"IF(ISNA(INDEX('DO NOT OPEN'!D:D,MATCH(C141,'DO NOT OPEN'!A:A,0),0)),\"No Stock\",INDEX('DO NOT OPEN'!D:D,MATCH(C141,'DO NOT OPEN'!A:A,0),0))","v":2},{"$f":"HYPERLINK(\"http://www.sapphireav.com/Sapphire-Rapidfold-Rear-Projection-Viewing-Area-3650mm-x-2053mm-169-Format_p_552.html\", \"Click for Web Link\")","v":"Click for Web Link"},33,30]
[464,null,"SFFS365RP-WSF-Fabric",5060558503946,"Portable Screen Fabric","Rapid Fold Events","3650mm","16by9","Rear Projection","FABRIC ONLY",null,{"$f":"IF(ISNA(INDEX('DO NOT OPEN'!D:D,MATCH(C142,'DO NOT OPEN'!A:A,0),0)),\"No Stock\",INDEX('DO NOT OPEN'!D:D,MATCH(C142,'DO NOT OPEN'!A:A,0),0))","v":2},{"$f":"HYPERLINK(\" http://www.sapphireav.com/36m-Rear-Projection-169-Fabric-Only_p_672.html\", \"Click for Web Link\")","v":"Click for Web Link"},7,12]
[465,null,"SFFS404FR",5060558502833,"Portable Screen","Rapid Fold Events","4040mm","4by3","Matt White Front","Flight case and fabric"," ",{"$f":"IF(ISNA(INDEX('DO NOT OPEN'!D:D,MATCH(C143,'DO NOT OPEN'!A:A,0),0)),\"No Stock\",INDEX('DO NOT OPEN'!D:D,MATCH(C143,'DO NOT OPEN'!A:A,0),0))","v":3},{"$f":"HYPERLINK(\"http://www.sapphireav.com/Sapphire-Rapidfold-Front-Projection-Viewing-Area-4046mm-x-3048mm_p_147.html\", \"Click for Web Link\")","v":"Click for Web Link"},34,30]
[466,null,"SFFS404FR10",5060558501690,"Portable Screen","Rapid Fold Events","4040mm","16by10","Matt White Front","Flight case and fabric",null,{"$f":"IF(ISNA(INDEX('DO NOT OPEN'!D:D,MATCH(C144,'DO NOT OPEN'!A:A,0),0)),\"No Stock\",INDEX('DO NOT OPEN'!D:D,MATCH(C144,'DO NOT OPEN'!A:A,0),0))","v":6},{"$f":"HYPERLINK(\"http://www.sapphireav.com/Sapphire-Rapid-Fold-4m-1610_p_699.html\",\"Click for Web Link\")","v":"Click for Web Link"},34,30]
[467,null,"SFFS404FR10-Fabric",5060558501799,"Portable Screen Fabric","Rapid Fold Events","4040mm","16by10","Matt White Front","FABRIC ONLY",null,{"$f":"IF(ISNA(INDEX('DO NOT OPEN'!D:D,MATCH(C145,'DO NOT OPEN'!A:A,0),0)),\"No Stock\",INDEX('DO NOT OPEN'!D:D,MATCH(C145,'DO NOT OPEN'!A:A,0),0))","v":0},{"$f":"HYPERLINK(\"http://www.sapphireav.com/4m-Front-Projection-1610-Fabric-Only_p_691.html\",\"Click for Web Link\")","v":"Click for Web Link"},7.6,12]
[480,null,"SFFS404FR-Fabric",5060558503953,"Portable Screen Fabric","Rapid Fold Events","4040mm","4by3","Matt White Front","FABRIC ONLY",null,{"$f":"IF(ISNA(INDEX('DO NOT OPEN'!D:D,MATCH(C146,'DO NOT OPEN'!A:A,0),0)),\"No Stock\",INDEX('DO NOT OPEN'!D:D,MATCH(C146,'DO NOT OPEN'!A:A,0),0))","v":2},{"$f":"HYPERLINK(\"http://www.sapphireav.com/Rapid-Fold-404-Front-Projection-Fabric-43_p_665.html\", \"Click for Web Link\")","v":"Click for Web Link"},7.6,12]
[481,null,"SFFS404FR-WSF",5060558502840,"Portable Screen","Rapid Fold Events","4040mm","16by9","Matt White Front","Flight case and fabric"," ",{"$f":"IF(ISNA(INDEX('DO NOT OPEN'!D:D,MATCH(C147,'DO NOT OPEN'!A:A,0),0)),\"No Stock\",INDEX('DO NOT OPEN'!D:D,MATCH(C147,'DO NOT OPEN'!A:A,0),0))","v":3},{"$f":"HYPERLINK(\"http://www.sapphireav.com/Sapphire-Rapidfold-Front-Projection-Viewing-Area-4046mm-x-2276mm-169-Format_p_525.html\", \"Click for Web Link\")","v":"Click for Web Link"},34,30]
[null,null,"SFFS404FR-WSF-Fabric",5060558503960,"Portable Screen Fabric","Rapid Fold Events","4040mm","16by9","Matt White Front","FABRIC ONLY",null,{"$f":"IF(ISNA(INDEX('DO NOT OPEN'!D:D,MATCH(C148,'DO NOT OPEN'!A:A,0),0)),\"No Stock\",INDEX('DO NOT OPEN'!D:D,MATCH(C148,'DO NOT OPEN'!A:A,0),0))","v":0},{"$f":"HYPERLINK(\"http://www.sapphireav.com/4m-Front-Projection-169-Fabric-Only_p_694.html\",\"Click for Web Link\")","v":"Click for Web Link"},7.6,12]
[483,null,"SFFS404RP",5060558503564,"Portable Screen","Rapid Fold Events","4040mm","4by3","Rear Projection","Flight case and fabric"," ",{"$f":"IF(ISNA(INDEX('DO NOT OPEN'!D:D,MATCH(C149,'DO NOT OPEN'!A:A,0),0)),\"No Stock\",INDEX('DO NOT OPEN'!D:D,MATCH(C149,'DO NOT OPEN'!A:A,0),0))","v":0},{"$f":"HYPERLINK(\"http://www.sapphireav.com/Sapphire-Rapidfold-Rear-Projection-Viewing-Area-4046mm-x-3048mm_p_148.html\", \"Click for Web Link\")","v":"Click for Web Link"},34,30]
[484,null,"SFFS404RP10",5060558501805,"Portable Screen","Rapid Fold Events","4040mm","16by10","Rear Projection","Flight case and fabric",null,{"$f":"IF(ISNA(INDEX('DO NOT OPEN'!D:D,MATCH(C150,'DO NOT OPEN'!A:A,0),0)),\"No Stock\",INDEX('DO NOT OPEN'!D:D,MATCH(C150,'DO NOT OPEN'!A:A,0),0))","v":0},{"$f":"HYPERLINK(\"http://www.sapphireav.com/Sapphire-Rapidfold-Rear-Projection-Viewing-Area-4046mm-x-2528mm-1610-Format_p_689.html\",\"Click for Web Link\")","v":"Click for Web Link"},34,30]
[485,null,"SFFS404RP10-Fabric",5060558501812,"Portable Screen Fabric","Rapid Fold Events","4040mm","16by10","Rear Projection","FABRIC ONLY",null,{"$f":"IF(ISNA(INDEX('DO NOT OPEN'!D:D,MATCH(C151,'DO NOT OPEN'!A:A,0),0)),\"No Stock\",INDEX('DO NOT OPEN'!D:D,MATCH(C151,'DO NOT OPEN'!A:A,0),0))","v":0},{"$f":"HYPERLINK(\"http://www.sapphireav.com/4m-Rear-Projection-1610-Fabric-Only_p_690.html\",\"Click for Web Link\")","v":"Click for Web Link"},7.6,12]
[486,null,"SFFS404RP-Fabric",5060558502857,"Portable Screen Fabric","Rapid Fold Events","4040mm","4by3","Rear Projection","FABRIC ONLY",null,{"$f":"IF(ISNA(INDEX('DO NOT OPEN'!D:D,MATCH(C152,'DO NOT OPEN'!A:A,0),0)),\"No Stock\",INDEX('DO NOT OPEN'!D:D,MATCH(C152,'DO NOT OPEN'!A:A,0),0))","v":0},{"$f":"HYPERLINK(\"http://www.sapphireav.com/Rapid-Fold-404-Rear-Projection-Fabric_p_158.html\", \"Click for Web Link\")","v":"Click for Web Link"},7.6,12]
[487,null,"SFFS404RP-WSF",5060558503977,"Portable Screen","Rapid Fold Events","4040mm","16by9","Rear Projection","Flight case and fabric"," ",{"$f":"IF(ISNA(INDEX('DO NOT OPEN'!D:D,MATCH(C153,'DO NOT OPEN'!A:A,0),0)),\"No Stock\",INDEX('DO NOT OPEN'!D:D,MATCH(C153,'DO NOT OPEN'!A:A,0),0))","v":0},{"$f":"HYPERLINK(\"http://www.sapphireav.com/Sapphire-Rapidfold-Rear-Projection-Viewing-Area-4046mm-x-2276mm-169-Format_p_553.html\", \"Click for Web Link\")","v":"Click for Web Link"},34,30]
[488,null,"SFFS404RP-WSF-Fabric",5060558503984,"Portable Screen Fabric","Rapid Fold Events","4040mm","16by9","Rear Projection","FABRIC ONLY",null,{"$f":"IF(ISNA(INDEX('DO NOT OPEN'!D:D,MATCH(C154,'DO NOT OPEN'!A:A,0),0)),\"No Stock\",INDEX('DO NOT OPEN'!D:D,MATCH(C154,'DO NOT OPEN'!A:A,0),0))","v":0},{"$f":"HYPERLINK(\"http://www.sapphireav.com/4m-Rear-Projection-169-Fabric-Only_p_666.html\", \"Click for Web Link\")","v":"Click for Web Link"},7.6,12]
[492,null,"SFFS508FR",5060558502864,"Portable Screen","Rapid Fold Events","5080mm","4by3","Matt White Front","Flight case and fabric"," ",{"$f":"IF(ISNA(INDEX('DO NOT OPEN'!D:D,MATCH(C155,'DO NOT OPEN'!A:A,0),0)),\"No Stock\",INDEX('DO NOT OPEN'!D:D,MATCH(C155,'DO NOT OPEN'!A:A,0),0))","v":0},{"$f":"HYPERLINK(\"http://www.sapphireav.com/Sapphire-Rapid-Fold-Front-Projection-Viewing-Area-5000mm-x-3750mm_p_149.html\", \"Click for Web Link\")","v":"Click for Web Link"},52,"POA"]
[493,null,"SFFS508FR-Fabric",5060558503991,"Portable Screen Fabric","Rapid Fold Events","5080mm","4by3","Matt White Front","FABRIC ONLY",null,{"$f":"IF(ISNA(INDEX('DO NOT OPEN'!D:D,MATCH(C156,'DO NOT OPEN'!A:A,0),0)),\"No Stock\",INDEX('DO NOT OPEN'!D:D,MATCH(C156,'DO NOT OPEN'!A:A,0),0))","v":1},{"$f":"HYPERLINK(\"http://www.sapphireav.com/Sapphire-5m-Rapid-Fold-Front-Fabric-Only-43-format_p_667.html\", \"Click for Web Link\")","v":"Click for Web Link"},9.8000000000000007,12]
[494,null,"SFFS508RP",5060558503663,"Portable Screen","Rapid Fold Events","5080mm","4by3","Matt White Front","Flight case and fabric"," ",{"$f":"IF(ISNA(INDEX('DO NOT OPEN'!D:D,MATCH(C157,'DO NOT OPEN'!A:A,0),0)),\"No Stock\",INDEX('DO NOT OPEN'!D:D,MATCH(C157,'DO NOT OPEN'!A:A,0),0))","v":1},{"$f":"HYPERLINK(\"http://www.sapphireav.com/Sapphire-Rear-Projection-Rapid-Fold-Viewing-Area-5080mm-x-3810mm_p_527.html\", \"Click for Web Link\")","v":"Click for Web Link"},76,"POA"]
[495,null,"SFFS508RP-Fabric",5060558502871,"Portable Screen Fabric","Rapid Fold Events","5080mm","4by3","Rear Projection","FABRIC ONLY",null,{"$f":"IF(ISNA(INDEX('DO NOT OPEN'!D:D,MATCH(C158,'DO NOT OPEN'!A:A,0),0)),\"No Stock\",INDEX('DO NOT OPEN'!D:D,MATCH(C158,'DO NOT OPEN'!A:A,0),0))","v":0},{"$f":"HYPERLINK(\"http://www.sapphireav.com/Sapphire-5m-Rapid-Fold-Rear-Fabric-Only-43-Format_p_668.html\", \"Click for Web Link\")","v":"Click for Web Link"},9.8000000000000007,12]
[496,null,"SFL122",5060558502536,"Portable Screen","Premium Portable","1220mm","4by3","Matt White Front","Tensioned arms",null,{"$f":"IF(ISNA(INDEX('DO NOT OPEN'!D:D,MATCH(C159,'DO NOT OPEN'!A:A,0),0)),\"No Stock\",INDEX('DO NOT OPEN'!D:D,MATCH(C159,'DO NOT OPEN'!A:A,0),0))","v":18},{"$f":"HYPERLINK(\"http://www.sapphireav.com/Sapphire-Portable-Pull-up-Screen-Viewing-Area-1220-x-900-Approx-Case-Dimensions-L-1380mm-x-H-83mm-x-D-61mm_p_243.html\", \"Click for Web Link\")","v":"Click for Web Link"},4.5999999999999996,12]
[497,null,"SFL122P",5060558502543,"Portable Screen","Premium Portable","1220mm","4by3","Matt White Front","Pole Support",null,{"$f":"IF(ISNA(INDEX('DO NOT OPEN'!D:D,MATCH(C160,'DO NOT OPEN'!A:A,0),0)),\"No Stock\",INDEX('DO NOT OPEN'!D:D,MATCH(C160,'DO NOT OPEN'!A:A,0),0))","v":0},{"$f":"HYPERLINK(\"http://www.sapphireav.com/Sapphire-Portable-Pull-up-Projection-Screen-VALUE-RANGE-Approx-Case-Dimensions-L-1380mm-x-H-83mm-x-D-61mm_p_268.html\", \"Click for Web Link\")","v":"Click for Web Link"},4.5999999999999996,12]
[498,null,"SFL122WSF",5060558502550,"Portable Screen","Premium Portable","1220mm","16by9","Matt White Front","Tensioned arms",null,{"$f":"IF(ISNA(INDEX('DO NOT OPEN'!D:D,MATCH(C161,'DO NOT OPEN'!A:A,0),0)),\"No Stock\",INDEX('DO NOT OPEN'!D:D,MATCH(C161,'DO NOT OPEN'!A:A,0),0))","v":6},{"$f":"HYPERLINK(\"http://www.sapphireav.com/Sapphire-Portable-Pull-up-Screen-Viewing-Area-1328-x-747-Approx-Case-Dimensions-L-1380mm-x-H-83mm-x-D-61mm_p_245.html\", \"Click for Web Link\")","v":"Click for Web Link"},4.7,12]
[499,null,"SFL122WSF10",5060558501256,"Portable Screen","Premium Portable","1220mm","16by10","Matt White Front","Tensioned arms",null,{"$f":"IF(ISNA(INDEX('DO NOT OPEN'!D:D,MATCH(C162,'DO NOT OPEN'!A:A,0),0)),\"No Stock\",INDEX('DO NOT OPEN'!D:D,MATCH(C162,'DO NOT OPEN'!A:A,0),0))","v":0},{"$f":"HYPERLINK(\"http://www.sapphireav.com/Sapphire-Portable-Pull-up-Screen-Viewing-Area-1292-x-808mm-Approx-Case-Dimensions-L-1380mm-x-H-83mm-x-D-61mm_p_585.html\", \"Click for Web Link\")","v":"Click for Web Link"},4.7,12]
[503,null,"SFL162",5060558502567,"Portable Screen","Premium Portable","1620mm","4by3","Matt White Front","Tensioned arms",null,{"$f":"IF(ISNA(INDEX('DO NOT OPEN'!D:D,MATCH(C163,'DO NOT OPEN'!A:A,0),0)),\"No Stock\",INDEX('DO NOT OPEN'!D:D,MATCH(C163,'DO NOT OPEN'!A:A,0),0))","v":15},{"$f":"HYPERLINK(\"http://www.sapphireav.com/Sapphire-Portable-Pull-up-Screen-Viewing-Area-1630-x-1220-Approx-Case-Dimensions-L-1930mm-x-H-83mm-x-D-61mm_p_244.html\", \"Click for Web Link\")","v":"Click for Web Link"},7.67,12]
[504,null,"SFL162P",5060558502574,"Portable Screen","Premium Portable","1620mm","4by3","Matt White Front","Pole Support",null,{"$f":"IF(ISNA(INDEX('DO NOT OPEN'!D:D,MATCH(C164,'DO NOT OPEN'!A:A,0),0)),\"No Stock\",INDEX('DO NOT OPEN'!D:D,MATCH(C164,'DO NOT OPEN'!A:A,0),0))","v":1},{"$f":"HYPERLINK(\"http://www.sapphireav.com/Sapphire-Portable-Pull-up-80-Projection-Screen-1625m-x-122m-VALUE-RANGE-Approx-Case-Dimensions-L-1785mm-x-H-83mm-x-D-61mm_p_270.html\", \"Click for Web Link\")","v":"Click for Web Link"},6,12]
[505,null,"SFL162WSF",5060558502581,"Portable Screen","Premium Portable","1620mm","16by9","Matt White Front","Tensioned arms",null,{"$f":"IF(ISNA(INDEX('DO NOT OPEN'!D:D,MATCH(C165,'DO NOT OPEN'!A:A,0),0)),\"No Stock\",INDEX('DO NOT OPEN'!D:D,MATCH(C165,'DO NOT OPEN'!A:A,0),0))","v":15},{"$f":"HYPERLINK(\"http://www.sapphireav.com/Sapphire-Portable-Pull-up-Screen-Viewing-Area-1770-x-995-Approx-Case-Dimensions-L-1930mm-x-H-83mm-x-D-61mm_p_246.html\", \"Click for Web Link\")","v":"Click for Web Link"},7.95,12]
[506,null,"SFL162WSF10",5060558501270,"Portable Screen","Premium Portable","1620mm","16by10","Matt White Front","Tensioned arms",null,{"$f":"IF(ISNA(INDEX('DO NOT OPEN'!D:D,MATCH(C166,'DO NOT OPEN'!A:A,0),0)),\"No Stock\",INDEX('DO NOT OPEN'!D:D,MATCH(C166,'DO NOT OPEN'!A:A,0),0))","v":9},{"$f":"HYPERLINK(\"http://www.sapphireav.com/Sapphire-Portable-Pull-up-Screen-Viewing-Area-1723-x-1077mm-Approx-Case-Dimensions-L-1930mm-x-H-83mm-x-D-61mm_p_586.html\", \"Click for Web Link\")","v":"Click for Web Link"},7.95,12]
[null,null,"SFL162WSFP",5060558502598,"Portable Screen","Premium Portable","1620mm","16by9","Matt White Front","Tensioned arms",null,{"$f":"IF(ISNA(INDEX('DO NOT OPEN'!D:D,MATCH(C167,'DO NOT OPEN'!A:A,0),0)),\"No Stock\",INDEX('DO NOT OPEN'!D:D,MATCH(C167,'DO NOT OPEN'!A:A,0),0))","v":5},{"$f":"HYPERLINK(\"http://www.sapphireav.com/Sapphire-Portable-Pull-up-80-Projection-Screen-Viewing-Area-1770-x-995-VALUE-RANGE-Approx-Case-Dimensions-L-1930mm-x-H-83mm-x-D-61mm_p_271.html\", \"Click for Web Link\")","v":"Click for Web Link"},6.1,12]
[null,null,"SFL200",5060558502604,"Portable Screen","Premium Portable","2000mm","4by3","Matt White Front","Tensioned arms",null,{"$f":"IF(ISNA(INDEX('DO NOT OPEN'!D:D,MATCH(C168,'DO NOT OPEN'!A:A,0),0)),\"No Stock\",INDEX('DO NOT OPEN'!D:D,MATCH(C168,'DO NOT OPEN'!A:A,0),0))","v":13},{"$f":"HYPERLINK(\"http://www.sapphireav.com/Sapphire-20m-wide-self-supporting-mobile-screen-Approx-Case-Dimensions-L-2192mm-x-H-83mm-x-61mm_p_18.html\", \"Click for Web Link\")","v":"Click for Web Link"},9.67,12]
[507,null,"SFL200P",5060558502611,"Portable Screen","Premium Portable","2000mm","4by3","Matt White Front","Pole Support",null,{"$f":"IF(ISNA(INDEX('DO NOT OPEN'!D:D,MATCH(C169,'DO NOT OPEN'!A:A,0),0)),\"No Stock\",INDEX('DO NOT OPEN'!D:D,MATCH(C169,'DO NOT OPEN'!A:A,0),0))","v":7},{"$f":"HYPERLINK(\"http://www.sapphireav.com/Sapphire-Portable-Pull-up-100-Projection-Screen-198m-x-149m-VALUE-RANGE-Approx-Case-Dimensions-L-2192mm-x-H-83mm-x-61mm_p_269.html\", \"Click for Web Link\")","v":"Click for Web Link"},7.9,12]
[null,null,"SFL200WSF",5060558502628,"Portable Screen","Premium Portable","2000mm","16by9","Matt White Front","Tensioned arms",null,{"$f":"IF(ISNA(INDEX('DO NOT OPEN'!D:D,MATCH(C170,'DO NOT OPEN'!A:A,0),0)),\"No Stock\",INDEX('DO NOT OPEN'!D:D,MATCH(C170,'DO NOT OPEN'!A:A,0),0))","v":25},{"$f":"HYPERLINK(\"http://www.sapphireav.com/Sapphire-Pull-up-screen-92-widescreen-Viewing-Area-2030mm-x-1145mm-Approx-Case-Dimensions-L-2192mm-x-H-83mm-x-61mm_p_250.html\", \"Click for Web Link\")","v":"Click for Web Link"},8.7799999999999994,15]
[508,null,"SFL200WSF10",5060558501515,"Portable Screen","Premium Portable","2000mm","16by10","Matt White Front","Tensioned arms",null,{"$f":"IF(ISNA(INDEX('DO NOT OPEN'!D:D,MATCH(C171,'DO NOT OPEN'!A:A,0),0)),\"No Stock\",INDEX('DO NOT OPEN'!D:D,MATCH(C171,'DO NOT OPEN'!A:A,0),0))","v":19},{"$f":"HYPERLINK(\"http://www.sapphireav.com/Sapphire-Pull-up-screen-1610-Viewing-Area-1982mm-x-1239mm-Approx-Case-Dimensions-L-2192mm-x-H-83mm-x-61mm_p_626.html\", \"Click for Web Link\")","v":"Click for Web Link"},8.7799999999999994,12]
[509,null,"SFL200WSFP",5060558502635,"Portable Screen","Premium Portable","2000mm","16by9","Matt White Front","Pole Support",null,{"$f":"IF(ISNA(INDEX('DO NOT OPEN'!D:D,MATCH(C172,'DO NOT OPEN'!A:A,0),0)),\"No Stock\",INDEX('DO NOT OPEN'!D:D,MATCH(C172,'DO NOT OPEN'!A:A,0),0))","v":1},{"$f":"HYPERLINK(\"http://www.sapphireav.com/Sapphire-Portable-Pull-up-92-Projection-Screen-2030-x-1145-VALUE-RANGE-Approx-Case-Dimensions-L-2192mm-x-H-83mm-x-61mm_p_272.html\", \"Click for Web Link\")","v":"Click for Web Link"},8.4,12]
[510,null,"SFS171V",5060558502895,"Fixed Frame Screen",null,"1710mm","4by3","Rear Projection",null,null,{"$f":"IF(ISNA(INDEX('DO NOT OPEN'!D:D,MATCH(C173,'DO NOT OPEN'!A:A,0),0)),\"No Stock\",INDEX('DO NOT OPEN'!D:D,MATCH(C173,'DO NOT OPEN'!A:A,0),0))","v":2},{"$f":"HYPERLINK(\"http://www.sapphireav.com/Sapphire-Fixed-Frame-Rear-Projection-Screen-Viewing-Area-1707mm-x-1280mm-43-Format_p_165.html\", \"Click for Web Link\")","v":"Click for Web Link"},10,12]
[512,null,"SFS305V",5060558502901,"Fixed Frame Screen",null,"3050mm","4by3","Rear Projection",null," ",{"$f":"IF(ISNA(INDEX('DO NOT OPEN'!D:D,MATCH(C174,'DO NOT OPEN'!A:A,0),0)),\"No Stock\",INDEX('DO NOT OPEN'!D:D,MATCH(C174,'DO NOT OPEN'!A:A,0),0))","v":1},{"$f":"HYPERLINK(\"http://www.sapphireav.com/Sapphire-Fixed-Frame-Rear-Projection-Screen-Viewing-Area-3048mm-x-2286mm-43-Format-Approx-Overall-Dimensions-L-3500mm-x-H-2446mm-x-D-35mm_p_231.html\", \"Click for Web Link\")","v":"Click for Web Link"},18.5,30]
[516,null,"SFSC171",5060558502925,"Fixed Frame Screen",null,"1710mm","16by9","Matt White Front",null,null,{"$f":"IF(ISNA(INDEX('DO NOT OPEN'!D:D,MATCH(C175,'DO NOT OPEN'!A:A,0),0)),\"No Stock\",INDEX('DO NOT OPEN'!D:D,MATCH(C175,'DO NOT OPEN'!A:A,0),0))","v":15},{"$f":"HYPERLINK(\"http://www.sapphireav.com/Sapphire-Fixed-Frame-Front-Projection-Screen-Viewing-Area-1710x-960mm-169-Format_p_261.html\", \"Click for Web Link\")","v":"Click for Web Link"},8.9,12]
[518,null,"SFSC171-10",5060558503045,"Fixed Frame Screen",null,"1710mm","16by10","Matt White Front",null,null,{"$f":"IF(ISNA(INDEX('DO NOT OPEN'!D:D,MATCH(C176,'DO NOT OPEN'!A:A,0),0)),\"No Stock\",INDEX('DO NOT OPEN'!D:D,MATCH(C176,'DO NOT OPEN'!A:A,0),0))","v":25},{"$f":"HYPERLINK(\"http://www.sapphireav.com/Sapphire-Fixed-Frame-Front-Projection-Screen-Viewing-Area-1710mm-x-1068mm-1610-Format_p_427.html\", \"Click for Web Link\")","v":"Click for Web Link"},8.9,12]
[519,null,"SFSC171-AT",5060558501737,"Fixed Frame Screen",null,"1710mm","16by9","Accoustic Weave",null,null,{"$f":"IF(ISNA(INDEX('DO NOT OPEN'!D:D,MATCH(C177,'DO NOT OPEN'!A:A,0),0)),\"No Stock\",INDEX('DO NOT OPEN'!D:D,MATCH(C177,'DO NOT OPEN'!A:A,0),0))","v":2},{"$f":"HYPERLINK(\"HTTP://www.sapphireav.com/Acoustically-Transparent-Sapphire-Fixed-Frame-Front-Projection-Screen-Viewing-Area-1707mm-x-960mm-169-Format_p_680.html\",\"Click for Web Link\")","v":"Click for Web Link"},8.9,12]
[521,null,"SFSC203",5060558502932,"Fixed Frame Screen",null,"2030mm","16by9","Matt White Front",null,null,{"$f":"IF(ISNA(INDEX('DO NOT OPEN'!D:D,MATCH(C178,'DO NOT OPEN'!A:A,0),0)),\"No Stock\",INDEX('DO NOT OPEN'!D:D,MATCH(C178,'DO NOT OPEN'!A:A,0),0))","v":10},{"$f":"HYPERLINK(\"http://www.sapphireav.com/Sapphire-Fixed-Frame-Front-Projection-Screen-Viewing-Area-2037mm-x-1145mm-169-Format_p_241.html\", \"Click for Web Link\")","v":"Click for Web Link"},11,12]
[523,null,"SFSC203-10",5060558503052,"Fixed Frame Screen",null,"2030mm","16by10","Matt White Front",null,null,{"$f":"IF(ISNA(INDEX('DO NOT OPEN'!D:D,MATCH(C179,'DO NOT OPEN'!A:A,0),0)),\"No Stock\",INDEX('DO NOT OPEN'!D:D,MATCH(C179,'DO NOT OPEN'!A:A,0),0))","v":26},{"$f":"HYPERLINK(\"http://www.sapphireav.com/Sapphire-Fixed-Frame-Front-Projection-Screen-Viewing-Area-2037mm-x-1273mm-1610-Format_p_335.html\", \"Click for Web Link\")","v":"Click for Web Link"},11,12]
[524,null,"SFSC203-10SB",5060558501454,"Fixed Frame Screen",null,"2030mm","16by10","Matt White Front",null,null,{"$f":"IF(ISNA(INDEX('DO NOT OPEN'!D:D,MATCH(C180,'DO NOT OPEN'!A:A,0),0)),\"No Stock\",INDEX('DO NOT OPEN'!D:D,MATCH(C180,'DO NOT OPEN'!A:A,0),0))","v":7},{"$f":"HYPERLINK(\"http://www.sapphireav.com/Sapphire-Slim-Bezel-Fixed-Frame-Screen-Viewing-Area-2037-x-1273mm-1610-format_p_629.html\", \"Click for Web Link\")","v":"Click for Web Link"},6.9,12]
[525,null,"SFSC203-2D3D",5060558503472,"Fixed Frame Screen",null,"2030mm","16by9","Matt White Front",null,null,{"$f":"IF(ISNA(INDEX('DO NOT OPEN'!D:D,MATCH(C181,'DO NOT OPEN'!A:A,0),0)),\"No Stock\",INDEX('DO NOT OPEN'!D:D,MATCH(C181,'DO NOT OPEN'!A:A,0),0))","v":1},{"$f":"HYPERLINK(\"http://www.sapphireav.com/Sapphire-Fixed-Frame-Front-Projection-2D-and-3D-2037mm-x-1145mm-169-Format_p_554.html\", \"Click for Web Link\")","v":"Click for Web Link"},18,12]
[527,null,"SFSC203AT",5060558503755,"Fixed Frame Screen",null,"2030mm","16by9","Accoustic Weave",null,null,{"$f":"IF(ISNA(INDEX('DO NOT OPEN'!D:D,MATCH(C182,'DO NOT OPEN'!A:A,0),0)),\"No Stock\",INDEX('DO NOT OPEN'!D:D,MATCH(C182,'DO NOT OPEN'!A:A,0),0))","v":4},{"$f":"HYPERLINK(\"http://www.sapphireav.com/Acoustically-Transparent-Sapphire-Fixed-Frame-Front-Projection-Screen-Viewing-Area-2037mm-x-1145mm-169-Format_p_571.html\", \"Click for Web Link\")","v":"Click for Web Link"},11,12]
[528,null,"SFSC220-2D3D",5060558503489,"Fixed Frame Screen",null,"2200mm","16by9","Matt White Front",null,null,{"$f":"IF(ISNA(INDEX('DO NOT OPEN'!D:D,MATCH(C183,'DO NOT OPEN'!A:A,0),0)),\"No Stock\",INDEX('DO NOT OPEN'!D:D,MATCH(C183,'DO NOT OPEN'!A:A,0),0))","v":3},{"$f":"HYPERLINK(\"http://www.sapphireav.com/Sapphire-Fixed-Frame-Front-Projection-2D-and-3D-2214mm-x-1245mm-169-Format_p_555.html\", \"Click for Web Link\")","v":"Click for Web Link"},0,12]
[529,null,"SFSC234",5060558502949,"Fixed Frame Screen",null,"2340mm","16by9","Matt White Front",null,null,{"$f":"IF(ISNA(INDEX('DO NOT OPEN'!D:D,MATCH(C184,'DO NOT OPEN'!A:A,0),0)),\"No Stock\",INDEX('DO NOT OPEN'!D:D,MATCH(C184,'DO NOT OPEN'!A:A,0),0))","v":88},{"$f":"HYPERLINK(\"http://www.sapphireav.com/Sapphire-Fixed-Frame-Front-Projection-Screen-Viewing-Area-2340mm-x-1320mm-169-Format_p_237.html\", \"Click for Web Link\")","v":"Click for Web Link"},12.5,12]
[530,null,"SFSC234-10",5060558501171,"Fixed Frame Screen",null,"2340mm","16by10","Matt White Front",null,null,{"$f":"IF(ISNA(INDEX('DO NOT OPEN'!D:D,MATCH(C185,'DO NOT OPEN'!A:A,0),0)),\"No Stock\",INDEX('DO NOT OPEN'!D:D,MATCH(C185,'DO NOT OPEN'!A:A,0),0))","v":50},{"$f":"HYPERLINK(\"http://www.sapphireav.com/Sapphire-Fixed-Frame-Front-Projection-Screen-Viewing-Area-2340mm-x-1462mm-1610-Format_p_336.html\", \"Click for Web Link\")","v":"Click for Web Link"},12.5,12]
[531,null,"SFSC234-10SB",5060558501447,"Fixed Frame Screen",null,"2340mm","16by10","Matt White Front",null,null,{"$f":"IF(ISNA(INDEX('DO NOT OPEN'!D:D,MATCH(C186,'DO NOT OPEN'!A:A,0),0)),\"No Stock\",INDEX('DO NOT OPEN'!D:D,MATCH(C186,'DO NOT OPEN'!A:A,0),0))","v":40},{"$f":"HYPERLINK(\"http://www.sapphireav.com/Sapphire-Slim-Bezel-Fixed-Frame-Screen-Viewing-Area-2346-x-1466mm-1610-format_p_630.html\", \"Click for Web Link\")","v":"Click for Web Link"},9.5,12]
[532,null,"SFSC234AT",5060558503762,"Fixed Frame Screen",null,"2340mm","16by9","Accoustic Weave",null,null,{"$f":"IF(ISNA(INDEX('DO NOT OPEN'!D:D,MATCH(C187,'DO NOT OPEN'!A:A,0),0)),\"No Stock\",INDEX('DO NOT OPEN'!D:D,MATCH(C187,'DO NOT OPEN'!A:A,0),0))","v":17},{"$f":"HYPERLINK(\"http://www.sapphireav.com/Acoustically-Transparent-Sapphire-Fixed-Frame-Front-Projection-Screen-Viewing-Area-2340mm-x-1320mm-169-Format_p_485.html\", \"Click for Web Link\")","v":"Click for Web Link"},12.5,12]
[533,null,"SFSC266",5060558502956,"Fixed Frame Screen",null,"2660mm","16by9","Matt White Front",null," ",{"$f":"IF(ISNA(INDEX('DO NOT OPEN'!D:D,MATCH(C188,'DO NOT OPEN'!A:A,0),0)),\"No Stock\",INDEX('DO NOT OPEN'!D:D,MATCH(C188,'DO NOT OPEN'!A:A,0),0))","v":21},{"$f":"HYPERLINK(\"http://www.sapphireav.com/Sapphire-Fixed-Frame-Front-Projection-Screen-Viewing-Area-2660mm-x-1500mm-169-Format_p_238.html\", \"Click for Web Link\")","v":"Click for Web Link"},14.2,15]
[534,null,"SFSC266-10",5060558501171,"Fixed Frame Screen",null,"2660mm","16by10","Matt White Front",null," ",{"$f":"IF(ISNA(INDEX('DO NOT OPEN'!D:D,MATCH(C189,'DO NOT OPEN'!A:A,0),0)),\"No Stock\",INDEX('DO NOT OPEN'!D:D,MATCH(C189,'DO NOT OPEN'!A:A,0),0))","v":16},{"$f":"HYPERLINK(\"http://www.sapphireav.com/Sapphire-Fixed-Frame-Front-Projection-Screen-Viewing-Area-2656mm-x-1660mm-1610-Format-_p_532.html\", \"Click for Web Link\")","v":"Click for Web Link"},14.2,15]
[538,null,"SFSC266AT",5060558503786,"Fixed Frame Screen",null,"2660mm","16by9","Accoustic Weave",null," ",{"$f":"IF(ISNA(INDEX('DO NOT OPEN'!D:D,MATCH(C190,'DO NOT OPEN'!A:A,0),0)),\"No Stock\",INDEX('DO NOT OPEN'!D:D,MATCH(C190,'DO NOT OPEN'!A:A,0),0))","v":13},{"$f":"HYPERLINK(\"http://www.sapphireav.com/Acoustically-Transparent-Sapphire-Fixed-Frame-Front-Projection-Screen-Viewing-Area-2656mm-x-1494mm-169-Format_p_644.html\", \"Click for Web Link\")","v":"Click for Web Link"},14.2,15]
[543,null,"SFSC300",5060558503311,"Fixed Frame Screen",null,"3000mm","16by9","Matt White Front",null," ",{"$f":"IF(ISNA(INDEX('DO NOT OPEN'!D:D,MATCH(C191,'DO NOT OPEN'!A:A,0),0)),\"No Stock\",INDEX('DO NOT OPEN'!D:D,MATCH(C191,'DO NOT OPEN'!A:A,0),0))","v":20},{"$f":"HYPERLINK(\"http://www.sapphireav.com/Sapphire-Fixed-Frame-Front-Projection-Screen-Viewing-Area-3011mm-x-1693mm-169-Format_p_512.html\", \"Click for Web Link\")","v":"Click for Web Link"},17,30]
[544,null,"SFSC300-10",5060558503809,"Fixed Frame Screen",null,"3000mm","16by10","Matt White Front",null," ",{"$f":"IF(ISNA(INDEX('DO NOT OPEN'!D:D,MATCH(C192,'DO NOT OPEN'!A:A,0),0)),\"No Stock\",INDEX('DO NOT OPEN'!D:D,MATCH(C192,'DO NOT OPEN'!A:A,0),0))","v":30},{"$f":"HYPERLINK(\"http://www.sapphireav.com/Sapphire-Fixed-Frame-Front-Projection-Screen-Viewing-Area-3011mm-x-1882mm-1610-Format_p_533.html\", \"Click for Web Link\")","v":"Click for Web Link"},17,30]
[545,null,"SFSC300AT",5060558504165,"Fixed Frame Screen",null,"3000mm","16by9","Accoustic Weave",null," ",{"$f":"IF(ISNA(INDEX('DO NOT OPEN'!D:D,MATCH(C193,'DO NOT OPEN'!A:A,0),0)),\"No Stock\",INDEX('DO NOT OPEN'!D:D,MATCH(C193,'DO NOT OPEN'!A:A,0),0))","v":0},{"$f":"HYPERLINK(\"http://www.sapphireav.com/Acoustically-Transparent-Sapphire-Fixed-Frame-Front-Projection-Screen-Viewing-Area-3011mm-x-1693mm-169-Format_p_572.html\", \"Click for Web Link\")","v":"Click for Web Link"},17,30]
[null,null,"SFSC350-10",5060558501478,"Fixed Frame Screen",null,"3500mm","16by10","Matt White Front",null,null,{"$f":"IF(ISNA(INDEX('DO NOT OPEN'!D:D,MATCH(C194,'DO NOT OPEN'!A:A,0),0)),\"No Stock\",INDEX('DO NOT OPEN'!D:D,MATCH(C194,'DO NOT OPEN'!A:A,0),0))","v":9},{"$f":"HYPERLINK(\"http://www.sapphireav.com/Sapphire-Fixed-Frame-Front-Projection-Screen-Viewing-Area-3498mm-x-2181mm-1610-Format_p_679.html\", \"Click for Web Link\")","v":"Click for Web Link"},23,30]
[546,null,"SFSC350",5060558501225,"Fixed Frame Screen",null,"3500mm","16by9","Matt White Front",null," ",{"$f":"IF(ISNA(INDEX('DO NOT OPEN'!D:D,MATCH(C195,'DO NOT OPEN'!A:A,0),0)),\"No Stock\",INDEX('DO NOT OPEN'!D:D,MATCH(C195,'DO NOT OPEN'!A:A,0),0))","v":17},{"$f":"HYPERLINK(\"http://www.sapphireav.com/Sapphire-Fixed-Frame-Front-Projection-Screen-3498mm-x-1968mm-169-Format_p_569.html\", \"Click for Web Link\")","v":"Click for Web Link"},23,30]
[547,null,"SFSC350-AT",5060558501461,"Fixed Frame Screen",null,"3500mm","16by9","Accoustic Weave",null,null,{"$f":"IF(ISNA(INDEX('DO NOT OPEN'!D:D,MATCH(C196,'DO NOT OPEN'!A:A,0),0)),\"No Stock\",INDEX('DO NOT OPEN'!D:D,MATCH(C196,'DO NOT OPEN'!A:A,0),0))","v":0},{"$f":"HYPERLINK(\"http://www.sapphireav.com/Acoustically-Transparent-Sapphire-Fixed-Frame-Front-Projection-Screen-Viewing-Area-3498mm-x-1968mm-169-Format_p_674.html\",\"Click for Web Link\")","v":"Click for Web Link"},23,30]
[549,null,"SFSC400",5060558503328,"Fixed Frame Screen",null,"4000mm","16by9","Matt White Front",null,null,{"$f":"IF(ISNA(INDEX('DO NOT OPEN'!D:D,MATCH(C197,'DO NOT OPEN'!A:A,0),0)),\"No Stock\",INDEX('DO NOT OPEN'!D:D,MATCH(C197,'DO NOT OPEN'!A:A,0),0))","v":4},{"$f":"HYPERLINK(\"http://www.sapphireav.com/Sapphire-Fixed-Frame-Front-Projection-Screen-3984mm-x-2240mm-169-Format_p_561.html\",\"Click for Web Link\")","v":"Click for Web Link"},33.4,30]
[null,null,"SFSC400-AT",5060558501331,"Fixed Frame Screen",null,"4000mm","16by9","Accoustic Weave",null,null,{"$f":"IF(ISNA(INDEX('DO NOT OPEN'!D:D,MATCH(C198,'DO NOT OPEN'!A:A,0),0)),\"No Stock\",INDEX('DO NOT OPEN'!D:D,MATCH(C198,'DO NOT OPEN'!A:A,0),0))","v":0},{"$f":"HYPERLINK(\"http://www.sapphireav.com/Acoustically-Transparent-Sapphire-Fixed-Frame-Front-Projection-Screen-Viewing-Area-3948mm-x-2240mm-169-Format_p_681.html\", \"Click for Web Link\")","v":"Click for Web Link"},33.4,30]
[550,null,"SFSC400-10",5060558503816,"Fixed Frame Screen",null,"4000mm","16by10","Matt White Front",null," ",{"$f":"IF(ISNA(INDEX('DO NOT OPEN'!D:D,MATCH(C199,'DO NOT OPEN'!A:A,0),0)),\"No Stock\",INDEX('DO NOT OPEN'!D:D,MATCH(C199,'DO NOT OPEN'!A:A,0),0))","v":2},{"$f":"HYPERLINK(\"http://www.sapphireav.com/Sapphire-Fixed-Frame-Front-Projection-Screen-3984mm-x-2240mm-169-Format_p_561.html\", \"Click for Web Link\")","v":"Click for Web Link"},33.4,30]
[551,null,"SFSC450",5060558501744,"Fixed Frame Screen",null,"3500mm","16by9","Matt White Front",null,null,{"$f":"IF(ISNA(INDEX('DO NOT OPEN'!D:D,MATCH(C200,'DO NOT OPEN'!A:A,0),0)),\"No Stock\",INDEX('DO NOT OPEN'!D:D,MATCH(C200,'DO NOT OPEN'!A:A,0),0))","v":0},{"$f":"HYPERLINK(\"http://www.sapphireav.com/Sapphire-Fixed-Frame-Front-Projection-Screen-Viewing-Area-4500mm-x-2531mm-169-Format_p_684.html\",\"Click for Web Link\")","v":"Click for Web Link"},38,30]
[552,null,"SFSV300",5060558502918,"Fixed Frame Screen",null,"3000mm","4by3","Rear Projection",null," ",{"$f":"IF(ISNA(INDEX('DO NOT OPEN'!D:D,MATCH(C201,'DO NOT OPEN'!A:A,0),0)),\"No Stock\",INDEX('DO NOT OPEN'!D:D,MATCH(C201,'DO NOT OPEN'!A:A,0),0))","v":"No Stock"},{"$f":"HYPERLINK(\"http://www.sapphireav.com/Sapphire-Fixed-Frame-Front-Projection-Screen-Viewing-Area-3048mm-x-2286mm-43-Format_p_240.html\", \"Click for Web Link\")","v":"Click for Web Link"},18.5,30]
[553,null,"SPB1800",5060558503212,"Projection Board",null,"1800mm",null,"Matt White Front",null,null,{"$f":"IF(ISNA(INDEX('DO NOT OPEN'!D:D,MATCH(C202,'DO NOT OPEN'!A:A,0),0)),\"No Stock\",INDEX('DO NOT OPEN'!D:D,MATCH(C202,'DO NOT OPEN'!A:A,0),0))","v":0},{"$f":"HYPERLINK(\"http://www.sapphireav.com/Sapphire-Harmony-18-metre-Projection-Whiteboard_p_456.html\", \"Click for Web Link\")","v":"Click for Web Link"},16,12]
[555,null,"SPB2000",5060558501546,"Projection Board",null,"2000mm","n/a","Matt White Front",null,null,{"$f":"IF(ISNA(INDEX('DO NOT OPEN'!D:D,MATCH(C203,'DO NOT OPEN'!A:A,0),0)),\"No Stock\",INDEX('DO NOT OPEN'!D:D,MATCH(C203,'DO NOT OPEN'!A:A,0),0))","v":0},{"$f":"HYPERLINK(\"http://www.sapphireav.com/Sapphire-Harmony-2m-Projection-Whiteboard_p_655.html\", \"Click for Web Link\")","v":"Click for Web Link"},19,12]
[556,null,"SPPS1",5060558502307,"Portable Screen","Table Top","500mm","4by3","Matt White Front","Adjustable format"," ",{"$f":"IF(ISNA(INDEX('DO NOT OPEN'!D:D,MATCH(C204,'DO NOT OPEN'!A:A,0),0)),\"No Stock\",INDEX('DO NOT OPEN'!D:D,MATCH(C204,'DO NOT OPEN'!A:A,0),0))","v":8},{"$f":"HYPERLINK(\"http://www.sapphireav.com/Sapphire-50-Diagonal-Table-Top-Screen-Approx-Case-Dimension-L-1124mm-x-H-59mm-x-D-84mm_p_503.html\", \"Click for Web Link\")","v":"Click for Web Link"},2.8,7.5]
[558,null,"SPPS40",5060558503113,"Portable Screen","Table Top","400mm","4by3","Matt White Front","Adjustable format"," ",{"$f":"IF(ISNA(INDEX('DO NOT OPEN'!D:D,MATCH(C205,'DO NOT OPEN'!A:A,0),0)),\"No Stock\",INDEX('DO NOT OPEN'!D:D,MATCH(C205,'DO NOT OPEN'!A:A,0),0))","v":0},{"$f":"HYPERLINK(\"http://www.sapphireav.com/Sapphire-40-Diagonal-Table-Top-Screen-Approx-Case-Dimension-L-905mm-x-H-63mm-x-D-43mm_p_478.html\", \"Click for Web Link\")","v":"Click for Web Link"},1.3,7.5]
[559,null,"SSM200RADV",5060558502642,"Electric Screen","Smart Move 2 motor","2000mm","4by3","Matt White Front","Radio","RS232,Contacts",{"$f":"IF(ISNA(INDEX('DO NOT OPEN'!D:D,MATCH(C206,'DO NOT OPEN'!A:A,0),0)),\"No Stock\",INDEX('DO NOT OPEN'!D:D,MATCH(C206,'DO NOT OPEN'!A:A,0),0))","v":2},{"$f":"HYPERLINK(\"http://www.sapphireav.com/Sapphire-Smart-Move-2m-43-Viewing-Area-2327mm-x-1520mm-Two-Motor-Electric-Projection-Screen-Approx-Case-Dimensions-L-2327mm-x-H-173mm-x-D-133mm_p_64.html\", \"Click for Web Link\")","v":"Click for Web Link"},33.4,15]
[560,null,"SSM200RADWSF",5060558502659,"Electric Screen","Smart Move 2 motor","2000mm","16by9","Matt White Front","Radio","RS232,Contacts",{"$f":"IF(ISNA(INDEX('DO NOT OPEN'!D:D,MATCH(C207,'DO NOT OPEN'!A:A,0),0)),\"No Stock\",INDEX('DO NOT OPEN'!D:D,MATCH(C207,'DO NOT OPEN'!A:A,0),0))","v":3},{"$f":"HYPERLINK(\"http://www.sapphireav.com/Sapphire-Smart-Move-2m-1610-Viewing-Area-2327mm-x-1268mm-Two-Motor-Electric-Projection-Screen-Approx-Case-Dimensions-L-2327mm-x-H-173mm-x-D-133mm_p_576.html\", \"Click for Web Link\")","v":"Click for Web Link"},33.4,15]
[561,null,"SSM200RADWSF-10",5060558503700,"Electric Screen","Smart Move 2 motor","2000mm","16by10","Matt White Front","Radio","RS232,Contacts",{"$f":"IF(ISNA(INDEX('DO NOT OPEN'!D:D,MATCH(C208,'DO NOT OPEN'!A:A,0),0)),\"No Stock\",INDEX('DO NOT OPEN'!D:D,MATCH(C208,'DO NOT OPEN'!A:A,0),0))","v":3},{"$f":"HYPERLINK(\"http://www.sapphireav.com/Sapphire-Smart-Move-2m-1610-Viewing-Area-2327mm-x-1268mm-Two-Motor-Electric-Projection-Screen-Approx-Case-Dimensions-L-2327mm-x-H-173mm-x-D-133mm_p_576.html\", \"Click for Web Link\")","v":"Click for Web Link"},33.4,15]
[566,null,"SSM240RADV",5060558502666,"Electric Screen","Smart Move 2 motor","2400mm","4by3","Matt White Front","Radio","RS232,Contacts",{"$f":"IF(ISNA(INDEX('DO NOT OPEN'!D:D,MATCH(C209,'DO NOT OPEN'!A:A,0),0)),\"No Stock\",INDEX('DO NOT OPEN'!D:D,MATCH(C209,'DO NOT OPEN'!A:A,0),0))","v":4},{"$f":"HYPERLINK(\"http://www.sapphireav.com/Sapphire-Smart-Move-24m-43-Viewing-Area-2338mm-x-1755mm-Two-Motor-Electric-Projection-Screen-Approx-Case-Dimensions-L-2635mm-x-H-173mm-x-D-133mm_p_30.html\", \"Click for Web Link\")","v":"Click for Web Link"},38.299999999999997,15]
[567,null,"SSM240RADWSF",5060558502673,"Electric Screen","Smart Move 2 motor","2400mm","16by9","Matt White Front","Radio","RS232,Contacts",{"$f":"IF(ISNA(INDEX('DO NOT OPEN'!D:D,MATCH(C210,'DO NOT OPEN'!A:A,0),0)),\"No Stock\",INDEX('DO NOT OPEN'!D:D,MATCH(C210,'DO NOT OPEN'!A:A,0),0))","v":4},{"$f":"HYPERLINK(\"http://www.sapphireav.com/Sapphire-Smart-Move-24m-169-Viewing-Area-2338mm-x-1320mm-Two-Motor-Electric-Projection-Screen-Approx-Case-Dimensions-L-2635mm-x-H-173mm-x-D-133mm_p_31.html\", \"Click for Web Link\")","v":"Click for Web Link"},38.299999999999997,15]
[568,null,"SSM240RADWSF-10",5060558503717,"Electric Screen","Smart Move 2 motor","2400mm","16by10","Matt White Front","Radio","RS232,Contacts",{"$f":"IF(ISNA(INDEX('DO NOT OPEN'!D:D,MATCH(C211,'DO NOT OPEN'!A:A,0),0)),\"No Stock\",INDEX('DO NOT OPEN'!D:D,MATCH(C211,'DO NOT OPEN'!A:A,0),0))","v":13},{"$f":"HYPERLINK(\"http://www.sapphireav.com/Sapphire-Smart-Move-24m-1610-Viewing-Area-2338mm-x-1461mm-Two-Motor-Electric-Projection-Screen-Approx-Case-Dimensions-L-2635mm-x-H-173mm-x-D-133mm_p_565.html\", \"Click for Web Link\")","v":"Click for Web Link"},38.299999999999997,15]
[569,null,"SSM300RADV",5060558502680,"Electric Screen","Smart Move 2 motor","3000mm","4by3","Matt White Front","Radio","RS232,Contacts",{"$f":"IF(ISNA(INDEX('DO NOT OPEN'!D:D,MATCH(C212,'DO NOT OPEN'!A:A,0),0)),\"No Stock\",INDEX('DO NOT OPEN'!D:D,MATCH(C212,'DO NOT OPEN'!A:A,0),0))","v":6},{"$f":"HYPERLINK(\"http://www.sapphireav.com/Sapphire-Smart-Move-3m-43-Two-Motor-Electric-Projection-Screen-Approx-Case-Dimensions-L-3345mm-x-H-173mm-x-D-133mm_p_32.html\", \"Click for Web Link\")","v":"Click for Web Link"},50.1,30]
[570,null,"SSM300RADWSF",5060558502697,"Electric Screen","Smart Move 2 motor","3000mm","16by9","Matt White Front","Radio","RS232,Contacts",{"$f":"IF(ISNA(INDEX('DO NOT OPEN'!D:D,MATCH(C213,'DO NOT OPEN'!A:A,0),0)),\"No Stock\",INDEX('DO NOT OPEN'!D:D,MATCH(C213,'DO NOT OPEN'!A:A,0),0))","v":9},{"$f":"HYPERLINK(\"http://www.sapphireav.com/Sapphire-Smart-Move-3m-169-Two-Motor-Electric-Projection-Screen-Approx-Case-Dimensions-L-3345mm-x-H-173mm-x-D-133mm_p_33.html\", \"Click for Web Link\")","v":"Click for Web Link"},50.1,30]
[571,null,"SSM300RADWSF10",5060558503724,"Electric Screen","Smart Move 2 motor","3000mm","16by10","Matt White Front","Radio","RS232,Contacts",{"$f":"IF(ISNA(INDEX('DO NOT OPEN'!D:D,MATCH(C214,'DO NOT OPEN'!A:A,0),0)),\"No Stock\",INDEX('DO NOT OPEN'!D:D,MATCH(C214,'DO NOT OPEN'!A:A,0),0))","v":14},{"$f":"HYPERLINK(\"http://www.sapphireav.com/Sapphire-Smart-Move-3m-1610-Two-Motor-Electric-Projection-Screen-Approx-Case-Dimensions-L-3345mm-x-H-173mm-x-D-133mm_p_566.html\", \"Click for Web Link\")","v":"Click for Web Link"},50.1,30]
[572,null,"SSM350RADC10",5060558501430,"Electric Screen","Smart Move 2 motor","3500mm","16by10","Matt White Front","Radio","RS232,Contacts",{"$f":"IF(ISNA(INDEX('DO NOT OPEN'!D:D,MATCH(C215,'DO NOT OPEN'!A:A,0),0)),\"No Stock\",INDEX('DO NOT OPEN'!D:D,MATCH(C215,'DO NOT OPEN'!A:A,0),0))","v":3},{"$f":"HYPERLINK(\"http://www.sapphireav.com/Sapphire-Smart-Move-35m-1610-Two-Motor-Electric-Projection-Screen-Approx-Case-Dimensions-L-3994-x-H-254-x-D-168cm_p_651.html\", \"Click for Web Link\")","v":"Click for Web Link"},76,90]
[573,null,"SSM350RADV",5060558503731,"Electric Screen","Smart Move 2 motor","3500mm","4by3","Matt White Front","Radio","RS232,Contacts",{"$f":"IF(ISNA(INDEX('DO NOT OPEN'!D:D,MATCH(C216,'DO NOT OPEN'!A:A,0),0)),\"No Stock\",INDEX('DO NOT OPEN'!D:D,MATCH(C216,'DO NOT OPEN'!A:A,0),0))","v":0},{"$f":"HYPERLINK(\"http://www.sapphireav.com/Sapphire-Smart-Move-35m-43-Two-Motor-Electric-Projection-Screen-Approx-Case-Dimensions-L-3994mm-x-H-254mm-x-D-168mm_p_581.html\", \"Click for Web Link\")","v":"Click for Web Link"},76,90]
[574,null,"SSM350RADWSF",5060558503748,"Electric Screen","Smart Move 2 motor","3500mm","16by9","Matt White Front","Radio","RS232,Contacts",{"$f":"IF(ISNA(INDEX('DO NOT OPEN'!D:D,MATCH(C217,'DO NOT OPEN'!A:A,0),0)),\"No Stock\",INDEX('DO NOT OPEN'!D:D,MATCH(C217,'DO NOT OPEN'!A:A,0),0))","v":1},{"$f":"HYPERLINK(\"http://www.sapphireav.com/Sapphire-Smart-Move-35m-169-Two-Motor-Electric-Projection-Screen-Approx-Case-Dimensions-L-3994mm-x-H-254mm-x-D-168mm_p_580.html\", \"Click for Web Link\")","v":"Click for Web Link"},76,90]
[576,null,"SSM400RADC",5060558503694,"Electric Screen","Smart Move 2 motor","4000mm","16by9","Matt White Front","Radio","RS232,Contacts",{"$f":"IF(ISNA(INDEX('DO NOT OPEN'!D:D,MATCH(C218,'DO NOT OPEN'!A:A,0),0)),\"No Stock\",INDEX('DO NOT OPEN'!D:D,MATCH(C218,'DO NOT OPEN'!A:A,0),0))","v":5},{"$f":"HYPERLINK(\"http://www.sapphireav.com/Sapphire-Smart-Move-4m-169-Two-Motor-Electric-Projection-Screen-Approx-Case-Dimensions-L-4317mm-x-H-250mm-x-D-170mm_p_562.html\", \"Click for Web Link\")","v":"Click for Web Link"},99.5,90]
[577,null,"SSM400RADC-10",5060558503670,"Electric Screen","Smart Move 2 motor","4000mm","16by10","Matt White Front","Radio","RS232,Contacts",{"$f":"IF(ISNA(INDEX('DO NOT OPEN'!D:D,MATCH(C219,'DO NOT OPEN'!A:A,0),0)),\"No Stock\",INDEX('DO NOT OPEN'!D:D,MATCH(C219,'DO NOT OPEN'!A:A,0),0))","v":4},{"$f":"HYPERLINK(\"http://www.sapphireav.com/Sapphire-Smart-Move-4m-1610-Two-Motor-Electric-Projection-Screen-Approx-Case-Dimensions-L-4317mm-x-H-250mm-x-D-170mm_p_567.html\", \"Click for Web Link\")","v":"Click for Web Link"},99.5,90]
[578,null,"SSM400RADV",5060558503502,"Electric Screen","Smart Move 2 motor","4000mm","4by3","Matt White Front","Radio","RS232,Contacts",{"$f":"IF(ISNA(INDEX('DO NOT OPEN'!D:D,MATCH(C220,'DO NOT OPEN'!A:A,0),0)),\"No Stock\",INDEX('DO NOT OPEN'!D:D,MATCH(C220,'DO NOT OPEN'!A:A,0),0))","v":1},{"$f":"HYPERLINK(\"http://www.sapphireav.com/Sapphire-Smart-Move-4m-43-Two-Motor-Electric-Projection-Screen-Approx-Case-Dimensions-L-4317mm-x-H-250mm-x-D-170mm_p_524.html\", \"Click for Web Link\")","v":"Click for Web Link"},99.5,90]
[null,null,"STS125",5060558503076,"Portable Screen","Tripod Screen","1250mm","Square","Matt White Front","Adjustable format",null,{"$f":"IF(ISNA(INDEX('DO NOT OPEN'!D:D,MATCH(C221,'DO NOT OPEN'!A:A,0),0)),\"No Stock\",INDEX('DO NOT OPEN'!D:D,MATCH(C221,'DO NOT OPEN'!A:A,0),0))","v":3},{"$f":"HYPERLINK(\"http://www.sapphireav.com/Sapphire-Tripod-Screen-Viewing-Area-1250mm-x-1250mm-11-Format_p_101.html\", \"Click for Web Link\")","v":"Click for Web Link"},8.5,12]
[null,null,"STS150",5060558503083,"Portable Screen","Tripod Screen","1500mm","Square","Matt White Front","Adjustable format",null,{"$f":"IF(ISNA(INDEX('DO NOT OPEN'!D:D,MATCH(C222,'DO NOT OPEN'!A:A,0),0)),\"No Stock\",INDEX('DO NOT OPEN'!D:D,MATCH(C222,'DO NOT OPEN'!A:A,0),0))","v":3},{"$f":"HYPERLINK(\"http://www.sapphireav.com/Sapphire-Tripod-Screen-Viewing-Area-1500mm-x-1500mm-11-Format_p_99.html\", \"Click for Web Link\")","v":"Click for Web Link"},9.5,12]
[null,null,"STS180",5060558503090,"Portable Screen","Tripod Screen","1800mm","Square","Matt White Front","Adjustable format",null,{"$f":"IF(ISNA(INDEX('DO NOT OPEN'!D:D,MATCH(C223,'DO NOT OPEN'!A:A,0),0)),\"No Stock\",INDEX('DO NOT OPEN'!D:D,MATCH(C223,'DO NOT OPEN'!A:A,0),0))","v":4},{"$f":"HYPERLINK(\"http://www.sapphireav.com/Sapphire-Tripod-Screen-Viewing-Area-1800mm-x-1800mm-11-Format_p_103.html\", \"Click for Web Link\")","v":"Click for Web Link"},10,12]
[null,null,"STS200",5060558503106,"Portable Screen","Tripod Screen","2000mm","Square","Matt White Front","Adjustable format",null,{"$f":"IF(ISNA(INDEX('DO NOT OPEN'!D:D,MATCH(C224,'DO NOT OPEN'!A:A,0),0)),\"No Stock\",INDEX('DO NOT OPEN'!D:D,MATCH(C224,'DO NOT OPEN'!A:A,0),0))","v":15},{"$f":"HYPERLINK(\"http://www.sapphireav.com/Sapphire-Tripod-Screen-Viewing-Area-2000mm-x-2000mm-11-Format_p_104.html\", \"Click for Web Link\")","v":"Click for Web Link"},11,12]
[null,null,"SWS125B",5060558502314,"Manual Wall Screen","Standard Manual","1500mm","Square","Matt White Front",null,null,{"$f":"IF(ISNA(INDEX('DO NOT OPEN'!D:D,MATCH(C225,'DO NOT OPEN'!A:A,0),0)),\"No Stock\",INDEX('DO NOT OPEN'!D:D,MATCH(C225,'DO NOT OPEN'!A:A,0),0))","v":2},{"$f":"HYPERLINK(\"http://www.sapphireav.com/Sapphire-Manual-Screen-Viewing-Area-1270mm-x-1270mm-not-channel-fix-Approx-Case-Dimensions-L-1490mm-x-H-89mm-x-D-87mm_p_109.html\", \"Click for Web Link\")","v":"Click for Web Link"},7.3,12]
[null,null,"SWS150B",5060558502321,"Manual Wall Screen","Standard Manual","1500mm","Square","Matt White Front",null,null,{"$f":"IF(ISNA(INDEX('DO NOT OPEN'!D:D,MATCH(C226,'DO NOT OPEN'!A:A,0),0)),\"No Stock\",INDEX('DO NOT OPEN'!D:D,MATCH(C226,'DO NOT OPEN'!A:A,0),0))","v":15},{"$f":"HYPERLINK(\"http://www.sapphireav.com/Sapphire-Manual-Screen-Viewing-Area-1520mm-x-1520mm-not-channel-fix-Approx-Case-Dimensions-L-1690mm-x-H-89mm-x-D-87mm_p_110.html\", \"Click for Web Link\")","v":"Click for Web Link"},7.6,12]
[null,null,"SWS150BV",5060558502338,"Manual Wall Screen","Standard Manual","1500mm","4by3","Matt White Front",null,null,{"$f":"IF(ISNA(INDEX('DO NOT OPEN'!D:D,MATCH(C227,'DO NOT OPEN'!A:A,0),0)),\"No Stock\",INDEX('DO NOT OPEN'!D:D,MATCH(C227,'DO NOT OPEN'!A:A,0),0))","v":10},{"$f":"HYPERLINK(\"http://www.sapphireav.com/Sapphire-Manual-Screen-Viewing-Area-1460mm-x-1100mm-not-channel-fix-Approx-Case-Dimesnions-L-1634mm-x-H-89mm-x-D-87mm_p_111.html\", \"Click for Web Link\")","v":"Click for Web Link"},7.8,12]
[null,null,"SWS150WSF",5060558502345,"Manual Wall Screen","Standard Manual","1500mm","16by9","Matt White Front",null,null,{"$f":"IF(ISNA(INDEX('DO NOT OPEN'!D:D,MATCH(C228,'DO NOT OPEN'!A:A,0),0)),\"No Stock\",INDEX('DO NOT OPEN'!D:D,MATCH(C228,'DO NOT OPEN'!A:A,0),0))","v":0},{"$f":"HYPERLINK(\"http://www.sapphireav.com/Sapphire-Manul-Screen-Viewing-Area-1460mm-x-821mm-not-channel-fix-Approx-Case-Dimensions-L-1634mm-x-H-89mm-x-D-87mm_p_112.html\", \"Click for Web Link\")","v":"Click for Web Link"},7.3,12]
[null,null,"SWS150WSF10",5060558501348,"Manual Wall Screen","Standard Manual","1500mm","16by10","Matt White Front",null,null,{"$f":"IF(ISNA(INDEX('DO NOT OPEN'!D:D,MATCH(C229,'DO NOT OPEN'!A:A,0),0)),\"No Stock\",INDEX('DO NOT OPEN'!D:D,MATCH(C229,'DO NOT OPEN'!A:A,0),0))","v":1},{"$f":"HYPERLINK(\"http://www.sapphireav.com/Sapphire-15m-Manual-Screen-1610-Format-1460mm-x-9125mm-not-channel-fix-Approx-Case-Dimensions-L-1634mm-x-H-89mm-x-D-87mm_p_659.html\", \"Click for Web Link\")","v":"Click for Web Link"},7.3,12]
[null,null,"SWS180-ASR2",5060558502376,"Manual Wall Screen","Premium Manual","1800mm","4by3","Matt White Front","Channel fix/SR",null,{"$f":"IF(ISNA(INDEX('DO NOT OPEN'!D:D,MATCH(C230,'DO NOT OPEN'!A:A,0),0)),\"No Stock\",INDEX('DO NOT OPEN'!D:D,MATCH(C230,'DO NOT OPEN'!A:A,0),0))","v":0},{"$f":"HYPERLINK(\"http://www.sapphireav.com/Sapphire-Aluminum-Slow-Retraction-Manual-Screen-Viewing-Area-1710mm-x-1280mm-with-channel-fix-brackets-Approx-Case-Dimensions-L-1864mm-x-H-93mm-x-D-79mm_p_113.html\", \"Click for Web Link\")","v":"Click for Web Link"},8.5,12]
[null,null,"SWS180B",5060558502352,"Manual Wall Screen","Standard Manual","1800mm","Square","Matt White Front",null,null,{"$f":"IF(ISNA(INDEX('DO NOT OPEN'!D:D,MATCH(C231,'DO NOT OPEN'!A:A,0),0)),\"No Stock\",INDEX('DO NOT OPEN'!D:D,MATCH(C231,'DO NOT OPEN'!A:A,0),0))","v":5},{"$f":"HYPERLINK(\"http://www.sapphireav.com/Sapphire-Manual-Screen-Viewing-Area-1780mm-x-1780mm-not-channel-fix-Approx-Case-Dimensions-L-1946mm-x-H-89mm-x-D-87mm_p_114.html\", \"Click for Web Link\")","v":"Click for Web Link"},9.8000000000000007,12]
[null,null,"SWS180BV",5060558502369,"Manual Wall Screen","Standard Manual","1800mm","4by3","Matt White Front",null,null,{"$f":"IF(ISNA(INDEX('DO NOT OPEN'!D:D,MATCH(C232,'DO NOT OPEN'!A:A,0),0)),\"No Stock\",INDEX('DO NOT OPEN'!D:D,MATCH(C232,'DO NOT OPEN'!A:A,0),0))","v":35},{"$f":"HYPERLINK(\"http://www.sapphireav.com/Sapphire-Manual-Screen-Viewing-Area-1710mm-x-1280mm-not-channel-fix-Approx-Case-Dimensions-L-1946mm-x-H-89mm-x-D-87mm_p_115.html\", \"Click for Web Link\")","v":"Click for Web Link"},9.1999999999999993,12]
[null,null,"SWS180WSF",5060558502383,"Manual Wall Screen","Standard Manual","1800mm","16by9","Matt White Front",null,null,{"$f":"IF(ISNA(INDEX('DO NOT OPEN'!D:D,MATCH(C233,'DO NOT OPEN'!A:A,0),0)),\"No Stock\",INDEX('DO NOT OPEN'!D:D,MATCH(C233,'DO NOT OPEN'!A:A,0),0))","v":4},{"$f":"HYPERLINK(\"http://www.sapphireav.com/Sapphire-Projection-Screen-Viewing-Area-1704mm-x-958mm-not-channel-fix-Approx-Case-Dimensions-L-1946mm-x-H-89mm-x-D-87mm_p_117.html\", \"Click for Web Link\")","v":"Click for Web Link"},7.6,12]
[null,null,"SWS180WSF10",5060558503229,"Manual Wall Screen","Standard Manual","1800mm","16by10","Matt White Front",null,null,{"$f":"IF(ISNA(INDEX('DO NOT OPEN'!D:D,MATCH(C234,'DO NOT OPEN'!A:A,0),0)),\"No Stock\",INDEX('DO NOT OPEN'!D:D,MATCH(C234,'DO NOT OPEN'!A:A,0),0))","v":1},{"$f":"HYPERLINK(\"http://www.sapphireav.com/Sapphire-Manual-Screen-Viewing-Area-1710mm-x-1069mm-not-channel-fix-Approx-Case-Dimensions-L-1946mm-x-H-89mm-x-D-87mm_p_458.html\", \"Click for Web Link\")","v":"Click for Web Link"},7.6,12]
[null,null,"SWS180WSF10-ASR2",5060558503267,"Manual Wall Screen","Premium Manual","1800mm","16by10","Matt White Front","Channel fix/SR",null,{"$f":"IF(ISNA(INDEX('DO NOT OPEN'!D:D,MATCH(C235,'DO NOT OPEN'!A:A,0),0)),\"No Stock\",INDEX('DO NOT OPEN'!D:D,MATCH(C235,'DO NOT OPEN'!A:A,0),0))","v":29},{"$f":"HYPERLINK(\"http://www.sapphireav.com/Sapphire-Aluminum-Slow-Retraction-Manual-Screen-Viewing-Area-1704mm-x-1069mm-with-channel-fix-brackets-Approx-Case-Dimensions-L-1864mm-x-H-93mm-x-D-79mm_p_507.html\", \"Click for Web Link\")","v":"Click for Web Link"},7.8,12]
[null,null,"SWS180WSF-ASR2",5060558502390,"Manual Wall Screen","Premium Manual","1800mm","16by9","Matt White Front","Channel fix/SR",null,{"$f":"IF(ISNA(INDEX('DO NOT OPEN'!D:D,MATCH(C236,'DO NOT OPEN'!A:A,0),0)),\"No Stock\",INDEX('DO NOT OPEN'!D:D,MATCH(C236,'DO NOT OPEN'!A:A,0),0))","v":0},{"$f":"HYPERLINK(\"http://www.sapphireav.com/Sapphire-Aluminum-Slow-Retraction-Manual-Screen-Viewing-Area-1704mm-x-958mm-with-channel-fix-brackets-Approx-Case-Dimensions-L-1864mm-x-H-93mm-x-D-79mm_p_119.html\", \"Click for Web Link\")","v":"Click for Web Link"},7.8,12]
[null,null,"SWS200-ASR2",5060558502420,"Manual Wall Screen","Premium Manual","2000mm","4by3","Matt White Front","Channel fix/SR",null,{"$f":"IF(ISNA(INDEX('DO NOT OPEN'!D:D,MATCH(C237,'DO NOT OPEN'!A:A,0),0)),\"No Stock\",INDEX('DO NOT OPEN'!D:D,MATCH(C237,'DO NOT OPEN'!A:A,0),0))","v":4},{"$f":"HYPERLINK(\"http://www.sapphireav.com/Sapphire-Aluminum-Slow-Retraction-Manual-Screen-Viewing-Area-2030mm-x-1520mm-with-channel-fix-brackets-Approx-Case-Dimensions-L-2204mm-x-H-93mm-x-D-79mm_p_120.html\", \"Click for Web Link\")","v":"Click for Web Link"},10.3,12]
[null,null,"SWS200B",5060558502406,"Manual Wall Screen","Standard Manual","2000mm","Square","Matt White Front",null,null,{"$f":"IF(ISNA(INDEX('DO NOT OPEN'!D:D,MATCH(C238,'DO NOT OPEN'!A:A,0),0)),\"No Stock\",INDEX('DO NOT OPEN'!D:D,MATCH(C238,'DO NOT OPEN'!A:A,0),0))","v":1},{"$f":"HYPERLINK(\"http://www.sapphireav.com/Sapphire-Manual-Screen-Viewing-Area-2030mm-x-2030mm-not-channel-fix-Approx-Case-Dimensions-L-2250mm-x-H-89mm-x-D-87mm_p_121.html\", \"Click for Web Link\")","v":"Click for Web Link"},11.7,12]
[null,null,"SWS200BV",5060558502413,"Manual Wall Screen","Standard Manual","2000mm","4by3","Matt White Front",null,null,{"$f":"IF(ISNA(INDEX('DO NOT OPEN'!D:D,MATCH(C239,'DO NOT OPEN'!A:A,0),0)),\"No Stock\",INDEX('DO NOT OPEN'!D:D,MATCH(C239,'DO NOT OPEN'!A:A,0),0))","v":17},{"$f":"HYPERLINK(\"http://www.sapphireav.com/Sapphire-Manual-Screen-Viewing-Area-2030mm-x-1520mm-not-channel-fix_p_122.html\", \"Click for Web Link\")","v":"Click for Web Link"},11.2,12]
[null,null,"SWS200WSF",5060558502437,"Manual Wall Screen","Standard Manual","2000mm","16by9","Matt White Front",null,null,{"$f":"IF(ISNA(INDEX('DO NOT OPEN'!D:D,MATCH(C240,'DO NOT OPEN'!A:A,0),0)),\"No Stock\",INDEX('DO NOT OPEN'!D:D,MATCH(C240,'DO NOT OPEN'!A:A,0),0))","v":0},{"$f":"HYPERLINK(\"http://www.sapphireav.com/Sapphire-Manual-Screen-Viewing-Area-2033mm-x-1145mm-not-channel-fix-Approx-Case-Dimensions-L-2250mm-x-H-89mm-x-D-87mm_p_124.html\", \"Click for Web Link\")","v":"Click for Web Link"},11.3,12]
[null,null,"SWS200WSF10",5060558503236,"Manual Wall Screen","Standard Manual","2000mm","16by10","Matt White Front",null,null,{"$f":"IF(ISNA(INDEX('DO NOT OPEN'!D:D,MATCH(C241,'DO NOT OPEN'!A:A,0),0)),\"No Stock\",INDEX('DO NOT OPEN'!D:D,MATCH(C241,'DO NOT OPEN'!A:A,0),0))","v":27},{"$f":"HYPERLINK(\"http://www.sapphireav.com/Sapphire-Manual-Screen-Viewing-Area-2030mm-x-1269mm-not-channel-fix-Approx-Case-Dimensions-L-2250mm-x-H-89mm-x-D-87mm_p_459.html\", \"Click for Web Link\")","v":"Click for Web Link"},11.3,12]
[null,null,"SWS200WSF10-ASR2",5060558503274,"Manual Wall Screen","Premium Manual","2000mm","16by10","Matt White Front","Channel fix/SR",null,{"$f":"IF(ISNA(INDEX('DO NOT OPEN'!D:D,MATCH(C242,'DO NOT OPEN'!A:A,0),0)),\"No Stock\",INDEX('DO NOT OPEN'!D:D,MATCH(C242,'DO NOT OPEN'!A:A,0),0))","v":26},{"$f":"HYPERLINK(\"http://www.sapphireav.com/Sapphire-Aluminum-Slow-Retraction-Manual-Screen-Viewing-Area-2030mm-x-1269mm-with-channel-fix-brackets-Approx-Case-Dimensions-L-2204mm-x-H-93mm-x-D-79mm_p_508.html\", \"Click for Web Link\")","v":"Click for Web Link"},10.199999999999999,12]
[null,null,"SWS200WSF-ASR2",5060558502444,"Manual Wall Screen","Premium Manual","2000mm","16by9","Matt White Front","Channel fix/SR",null,{"$f":"IF(ISNA(INDEX('DO NOT OPEN'!D:D,MATCH(C243,'DO NOT OPEN'!A:A,0),0)),\"No Stock\",INDEX('DO NOT OPEN'!D:D,MATCH(C243,'DO NOT OPEN'!A:A,0),0))","v":37},{"$f":"HYPERLINK(\"http://www.sapphireav.com/Sapphire-Aluminum-Slow-Retraction-Manual-Screen-Viewing-Area-2030mm-x-1145mm-with-channel-fix-brackets-Approx-Case-Dimensions-L-2204mm-x-H-93mm-x-D-79mm_p_126.html\", \"Click for Web Link\")","v":"Click for Web Link"},10.3,12]
[null,null,"SWS240-ASR2",5060558502475,"Manual Wall Screen","Premium Manual","2400mm","4by3","Matt White Front","Channel fix/SR",null,{"$f":"IF(ISNA(INDEX('DO NOT OPEN'!D:D,MATCH(C244,'DO NOT OPEN'!A:A,0),0)),\"No Stock\",INDEX('DO NOT OPEN'!D:D,MATCH(C244,'DO NOT OPEN'!A:A,0),0))","v":15},{"$f":"HYPERLINK(\"http://www.sapphireav.com/Sapphire-Aluminum-Slow-Retraction-Manual-Screen-Viewing-Area-2340mm-x-1755mm-Approx-Case-Dimensions-L-2508mm-x-H-93mm-x-D-79mm_p_127.html\", \"Click for Web Link\")","v":"Click for Web Link"},13,12]
[null,null,"SWS240B-ASR2",5060558502451,"Manual Wall Screen","Premium Manual","2400mm","Square","Matt White Front","Channel fix/SR",null,{"$f":"IF(ISNA(INDEX('DO NOT OPEN'!D:D,MATCH(C245,'DO NOT OPEN'!A:A,0),0)),\"No Stock\",INDEX('DO NOT OPEN'!D:D,MATCH(C245,'DO NOT OPEN'!A:A,0),0))","v":5},{"$f":"HYPERLINK(\"http://www.sapphireav.com/Sapphire-Manual-Screen-Viewing-Area-2340mm-x-2340mm-slow-retraction-channel-fix-Approx-Case-Dimensions-L-2509mm-x-H-96mm-x-D-91mm_p_128.html\", \"Click for Web Link\")","v":"Click for Web Link"},13.7,12]
[null,null,"SWS240BV",5060558502468,"Manual Wall Screen","Standard Manual","2400mm","4by3","Matt White Front",null,null,{"$f":"IF(ISNA(INDEX('DO NOT OPEN'!D:D,MATCH(C246,'DO NOT OPEN'!A:A,0),0)),\"No Stock\",INDEX('DO NOT OPEN'!D:D,MATCH(C246,'DO NOT OPEN'!A:A,0),0))","v":3},{"$f":"HYPERLINK(\"http://www.sapphireav.com/Sapphire-Manual-Screen-Viewing-Area-2340mm-x-1755mm-not-channel-fix-Approx-Case-Dimensions-L-2562mm-x-H-89mm-x-D-87mm_p_14.html\", \"Click for Web Link\")","v":"Click for Web Link"},13.6,12]
[null,null,"SWS240WSF",5060558501010,"Manual Wall Screen","Standard Manual","2400mm","16by9","Matt White Front",null,null,{"$f":"IF(ISNA(INDEX('DO NOT OPEN'!D:D,MATCH(C247,'DO NOT OPEN'!A:A,0),0)),\"No Stock\",INDEX('DO NOT OPEN'!D:D,MATCH(C247,'DO NOT OPEN'!A:A,0),0))","v":1},{"$f":"HYPERLINK(\"http://www.sapphireav.com/Sapphire-Manual-Screen-Viewing-Area-2340mm-x-1320mm-not-channel-fix-Approx-Case-Dimensions-L-2554mm-x-H-89mm-x-D-87mm_p_130.html\", \"Click for Web Link\")","v":"Click for Web Link"},13.6,12]
[null,null,"SWS240WSF10",5060558503243,"Manual Wall Screen","Standard Manual","2400mm","16by10","Matt White Front",null,null,{"$f":"IF(ISNA(INDEX('DO NOT OPEN'!D:D,MATCH(C248,'DO NOT OPEN'!A:A,0),0)),\"No Stock\",INDEX('DO NOT OPEN'!D:D,MATCH(C248,'DO NOT OPEN'!A:A,0),0))","v":5},{"$f":"HYPERLINK(\"http://www.sapphireav.com/Sapphire-Manual-Screen-Viewing-Area-2340mm-x-1463mm-not-channel-fix-Approx-Case-Dimensions-L-2554mm-x-H-89mm-x-D-87mm_p_460.html\", \"Click for Web Link\")","v":"Click for Web Link"},13.6,12]
[null,null,"SWS240WSF10-ASR2",5060558503281,"Manual Wall Screen","Premium Manual","2400mm","16by10","Matt White Front","Channel fix/SR",null,{"$f":"IF(ISNA(INDEX('DO NOT OPEN'!D:D,MATCH(C249,'DO NOT OPEN'!A:A,0),0)),\"No Stock\",INDEX('DO NOT OPEN'!D:D,MATCH(C249,'DO NOT OPEN'!A:A,0),0))","v":33},{"$f":"HYPERLINK(\"http://www.sapphireav.com/Sapphire-Aluminum-Slow-Retraction-Manual-Screen-Viewing-Area-2340mm-x-1463mm-with-channel-fix-brackets-Approx-Case-Dimensions-L-2508mm-x-H-93mm-x-D-79mm_p_509.html\", \"Click for Web Link\")","v":"Click for Web Link"},13,12]
[null,null,"SWS240WSF-ASR2",5060558502482,"Manual Wall Screen","Premium Manual","2400mm","16by9","Matt White Front","Channel fix/SR",null,{"$f":"IF(ISNA(INDEX('DO NOT OPEN'!D:D,MATCH(C250,'DO NOT OPEN'!A:A,0),0)),\"No Stock\",INDEX('DO NOT OPEN'!D:D,MATCH(C250,'DO NOT OPEN'!A:A,0),0))","v":28},{"$f":"HYPERLINK(\"http://www.sapphireav.com/Sapphire-Aluminum-Slow-Retraction-Manual-Screen-Viewing-Area-2340mm-x-1320mm-with-channel-fix-brackets-Approx-Case-Dimensions-L-2508mm-x-H-93mm-x-D-79mm_p_132.html\", \"Click for Web Link\")","v":"Click for Web Link"},13,12]
[null,null,"SWS270-ASR2",5060558502505,"Manual Wall Screen","Premium Manual","2700mm","4by3","Matt White Front","Channel fix/SR"," ",{"$f":"IF(ISNA(INDEX('DO NOT OPEN'!D:D,MATCH(C251,'DO NOT OPEN'!A:A,0),0)),\"No Stock\",INDEX('DO NOT OPEN'!D:D,MATCH(C251,'DO NOT OPEN'!A:A,0),0))","v":7},{"$f":"HYPERLINK(\"http://www.sapphireav.com/Sapphire-Aluminum-Slow-Retraction-Manual-Screen-Viewing-Area-2700mm-x-2027mm-with-channel-fix-brackets-Approx-Case-Dimensions-L-2878mm-x-H-96mm-x-D-91mm_p_134.html\", \"Click for Web Link\")","v":"Click for Web Link"},15.8,15]
[null,null,"SWS270BV",5060558502499,"Manual Wall Screen","Standard Manual","2700mm","4by3","Matt White Front",null," ",{"$f":"IF(ISNA(INDEX('DO NOT OPEN'!D:D,MATCH(C252,'DO NOT OPEN'!A:A,0),0)),\"No Stock\",INDEX('DO NOT OPEN'!D:D,MATCH(C252,'DO NOT OPEN'!A:A,0),0))","v":0},{"$f":"HYPERLINK(\"http://www.sapphireav.com/Sapphire-Manual-Screen-Viewing-Area-2700mm-x-2027mm-not-channel-fix-Approx-Case-Dimensions-L-2964mm-x-H-117mm-x-D-117mm_p_12.html\", \"Click for Web Link\")","v":"Click for Web Link"},18,15]
[null,null,"SWS270WSF",5060558502529,"Manual Wall Screen","Standard Manual","2700mm","16by9","Matt White Front",null," ",{"$f":"IF(ISNA(INDEX('DO NOT OPEN'!D:D,MATCH(C253,'DO NOT OPEN'!A:A,0),0)),\"No Stock\",INDEX('DO NOT OPEN'!D:D,MATCH(C253,'DO NOT OPEN'!A:A,0),0))","v":9},{"$f":"HYPERLINK(\"http://www.sapphireav.com/Sapphire-Manual-Screen-Viewing-Area-2700mm-x-1518mm-not-channel-fix-Approx-Case-Dimensions-L-2700mm-x-H-117mm-x-D-117mm_p_136.html\", \"Click for Web Link\")","v":"Click for Web Link"},18,15]
[null,null,"SWS270WSF10",5060558503250,"Manual Wall Screen","Standard Manual","2700mm ","16by10","Matt White Front",null," ",{"$f":"IF(ISNA(INDEX('DO NOT OPEN'!D:D,MATCH(C254,'DO NOT OPEN'!A:A,0),0)),\"No Stock\",INDEX('DO NOT OPEN'!D:D,MATCH(C254,'DO NOT OPEN'!A:A,0),0))","v":23},{"$f":"HYPERLINK(\"http://www.sapphireav.com/Sapphire-Manual-Screen-Viewing-Area-2700mm-x-1688mm-not-channel-fix-Approx-Case-Dimensions-L-2700mm-x-H-117mm-x-D-117mm_p_505.html\", \"Click for Web Link\")","v":"Click for Web Link"},18,15]
[null,null,"SWS270WSF10-ASR2",5060558503298,"Manual Wall Screen","Premium Manual","2700mm ","16by10","Matt White Front","Channel fix/SR"," ",{"$f":"IF(ISNA(INDEX('DO NOT OPEN'!D:D,MATCH(C255,'DO NOT OPEN'!A:A,0),0)),\"No Stock\",INDEX('DO NOT OPEN'!D:D,MATCH(C255,'DO NOT OPEN'!A:A,0),0))","v":21},{"$f":"HYPERLINK(\"http://www.sapphireav.com/Sapphire-Aluminum-Slow-Retraction-Manual-Screen-Viewing-Area-2700mm-x-1688mm-with-channel-fix-brackets-Approx-Case-Dimensions-L-2878mm-x-H-96mm-x-D-91mm_p_510.html\", \"Click for Web Link\")","v":"Click for Web Link"},15.8,15]
[null,null,"SWS270WSF-ASR2",5060558502512,"Manual Wall Screen","Premium Manual","2700mm ","16by9","Matt White Front","Channel fix/SR"," ",{"$f":"IF(ISNA(INDEX('DO NOT OPEN'!D:D,MATCH(C256,'DO NOT OPEN'!A:A,0),0)),\"No Stock\",INDEX('DO NOT OPEN'!D:D,MATCH(C256,'DO NOT OPEN'!A:A,0),0))","v":13},{"$f":"HYPERLINK(\"http://www.sapphireav.com/Sapphire-Aluminum-Slow-Retraction-Manual-Screen-Viewing-Area-2700mm-x-1518mm-with-channel-fix-brackets-Approx-Case-Dimensions-L-2878mm-x-H-96mm-x-D-91mm_p_137.html\", \"Click for Web Link\")","v":"Click for Web Link"},15.8,15]
[null,null,"SESC180B1610-A2",5060558504202,"Electric Screen","In-Ceiling Screen","1800mm","16by10","Matt White Front","Infra-red","RS232,Contacts,12V trig",{"$f":"IF(ISNA(INDEX('DO NOT OPEN'!D:D,MATCH(C257,'DO NOT OPEN'!A:A,0),0)),\"No Stock\",INDEX('DO NOT OPEN'!D:D,MATCH(C257,'DO NOT OPEN'!A:A,0),0))","v":5},{"$f":"HYPERLINK(\"http://www.sapphireav.com/sapphire-dedicated-electric-recessed-screen-viewing-area-1705mm-x-1065mm-1610-approx-case-dimensions-not-including-surround-l-1867mm-x-h-122mm-x-d-135mm.html\", \"Click for Web Link\")","v":"Click for Web Link"},11,15]
[null,null,"SETTS240WSF-AW10RP",5060558504172,"Electric Screen","Tab Tensioned Ch Fix ","2400mm","16by10","Rear Projection","Infra-red","RS232,Contacts,12V trig",{"$f":"IF(ISNA(INDEX('DO NOT OPEN'!D:D,MATCH(C258,'DO NOT OPEN'!A:A,0),0)),\"No Stock\",INDEX('DO NOT OPEN'!D:D,MATCH(C258,'DO NOT OPEN'!A:A,0),0))","v":1},{"$f":"HYPERLINK(\"http://www.sapphireav.com/sapphire-rear-tab-tension-electric-infra-red-screen-viewing-area-2346mm-x-1466mm-approx-case-dimensions-l-2834mm-x-h-134mm-x-d-135mm.html\", \"Click for Web Link\")","v":"Click for Web Link"},23,30]
[null,null,"SETTS300WSF-AW10RP",5060558504189,"Electric Screen","Tab Tensioned Ch Fix ","3000mm","16by10","Rear Projection","Infra-red","RS232,Contacts,12V trig",{"$f":"IF(ISNA(INDEX('DO NOT OPEN'!D:D,MATCH(C259,'DO NOT OPEN'!A:A,0),0)),\"No Stock\",INDEX('DO NOT OPEN'!D:D,MATCH(C259,'DO NOT OPEN'!A:A,0),0))","v":2},{"$f":"HYPERLINK(\"http://www.sapphireav.com/sapphire-rear-tab-tension-electric-infra-red-screen-viewing-area-3010mm-x-1881mm-approx-case-dimensions-l-3538mm-x-h-143mm-x-d-135mm.html\", \"Click for Web Link\")","v":"Click for Web Link"},35,30]
[null,null,"SETTS350WSF-AW10RP",5060558504196,"Electric Screen","Tab Tensioned Ch Fix ","3500mm","16by10","Rear Projection","Infra-red","RS232,Contacts,12V trig",{"$f":"IF(ISNA(INDEX('DO NOT OPEN'!D:D,MATCH(C260,'DO NOT OPEN'!A:A,0),0)),\"No Stock\",INDEX('DO NOT OPEN'!D:D,MATCH(C260,'DO NOT OPEN'!A:A,0),0))","v":2},{"$f":"HYPERLINK(\"http://www.sapphireav.com/sapphire-rear-tab-tension-electric-infra-red-screen-viewing-area-3498mm-x-2181mm-approx-case-dimensions-l-3988mm-x-h-143mm-x-d-135mm.html\", \"Click for Web Link\")","v":"Click for Web Link"},40,30]

{"sheet":"Your Quote","index":1,"n_rows":282,"n_cols":257,"rows_kept":282,"cut":false,"hidden":false,"merged":[]}
[]
[]
[]
[]
[null,"Our recommendations are below. Cut and paste into your quote as required. **Note maximum of five products**"]
[]
[null,"Product Code('s)","SETTS240WSF-AW10RP","SETTS300WSF-AW10RP","SETTS350WSF-AW10RP",null,null,null,null,null,null,null,null,null,null,null,null,null,null,null,null,null,null,null,null,null,null,null,null,null,null,null,null,null,null,null,null,null,null,null,null,null,null,null,null,null,null,null,null,null,null,null,null,null,null,null,null,null,null,null,null,null,null,null,null,null,null,null,null,null,null,null,null,null,null,null,null,null,null,null,null,null,null,null,null,null,null,null,null,null,null,null,null,null,null,null,null,null,null,null,null,null,null,null,null,null,null,null,null,null,null,null,null,null,null,null,null,null,null,null,null,null,null,null,null,null,null,null,null,null,null,null,null,null,null,null,null,null,null,null,null,null,null,null,null,null,null,null,null,null,null,null,null,null,null,null,null,null,null,null,null,null,null,null,null,null,null,null,null,null,null,null,null,null,null,null,null,null,null,null,null,null,null,null,null,null,null,null,null,null,null,null,null,null,null,null,null,null,null,null,null,null,null,null,null,null,null,null,null,null,null,null,null,null,null,null,null,null,null,null,null,null,null,null,null,null,null,null,null,null,null,null,null,null,null,null,null,null,"SWS200WSF10-ASR2","SWS200WSF-ASR2","SWS240-ASR2","SWS240B-ASR2","SWS240BV","SWS240WSF","SWS240WSF10","SWS240WSF10-ASR2","SWS240WSF-ASR2","SWS270-ASR2","SWS270BV","SWS270WSF","SWS270WSF10","SWS270WSF10-ASR2","SWS270WSF-ASR2","SESC180B1610-A2","SETTS240WSF-AW10RP","SETTS300WSF-AW10RP","SETTS350WSF-AW10RP"]
[null,"EAN",5060558504172,5060558504189,5060558504196,null,null,null,null,null,null,null,null,null,null,null,null,null,null,null,null,null,null,null,null,null,null,null,null,null,null,null,null,null,null,null,null,null,null,null,null,null,null,null,null,null,null,null,null,null,null,null,null,null,null,null,null,null,null,null,null,null,null,null,null,null,null,null,null,null,null,null,null,null,null,null,null,null,null,null,null,null,null,null,null,null,null,null,null,null,null,null,null,null,null,null,null,null,null,null,null,null,null,null,null,null,null,null,null,null,null,null,null,null,null,null,null,null,null,null,null,null,null,null,null,null,null,null,null,null,null,null,null,null,null,null,null,null,null,null,null,null,null,null,null,null,null,null,null,null,null,null,null,null,null,null,null,null,null,null,null,null,null,null,null,null,null,null,null,null,null,null,null,null,null,null,null,null,null,null,null,null,null,null,null,null,null,null,null,null,null,null,null,null,null,null,null,null,null,null,null,null,null,null,null,null,null,null,null,null,null,null,null,null,null,null,null,null,null,null,null,null,null,null,null,null,null,null,null,null,null,null,null,null,null,null,null,null,5060558503274,5060558502444,5060558502475,5060558502451,5060558502468,5060558501010,5060558503243,5060558503281,5060558502482,5060558502505,5060558502499,5060558502529,5060558503250,5060558503298,5060558502512,5060558504202,5060558504172,5060558504189,5060558504196]
[null,"Product Type","Electric Screen","Electric Screen","Electric Screen",null,null,null,null,null,null,null,null,null,null,null,null,null,null,null,null,null,null,null,null,null,null,null,null,null,null,null,null,null,null,null,null,null,null,null,null,null,null,null,null,null,null,null,null,null,null,null,null,null,null,null,null,null,null,null,null,null,null,null,null,null,null,null,null,null,null,null,null,null,null,null,null,null,null,null,null,null,null,null,null,null,null,null,null,null,null,null,null,null,null,null,null,null,null,null,null,null,null,null,null,null,null,null,null,null,null,null,null,null,null,null,null,null,null,null,null,null,null,null,null,null,null,null,null,null,null,null,null,null,null,null,null,null,null,null,null,null,null,null,null,null,null,null,null,null,null,null,null,null,null,null,null,null,null,null,null,null,null,null,null,null,null,null,null,null,null,null,null,null,null,null,null,null,null,null,null,null,null,null,null,null,null,null,null,null,null,null,null,null,null,null,null,null,null,null,null,null,null,null,null,null,null,null,null,null,null,null,null,null,null,null,null,null,null,null,null,null,null,null,null,null,null,null,null,null,null,null,null,null,null,null,null,null,"Manual Wall Screen","Manual Wall Screen","Manual Wall Screen","Manual Wall Screen","Manual Wall Screen","Manual Wall Screen","Manual Wall Screen","Manual Wall Screen","Manual Wall Screen","Manual Wall Screen","Manual Wall Screen","Manual Wall Screen","Manual Wall Screen","Manual Wall Screen","Manual Wall Screen","Electric Screen","Electric Screen","Electric Screen","Electric Screen"]
[null,"Sub Type","Tab Tensioned Ch Fix ","Tab Tensioned Ch Fix ","Tab Tensioned Ch Fix ",null,null,null,null,null,null,null,null,null,null,null,null,null,null,null,null,null,null,null,null,null,null,null,null,null,null,null,null,null,null,null,null,null,null,null,null,null,null,null,null,null,null,null,null,null,null,null,null,null,null,null,null,null,null,null,null,null,null,null,null,null,null,null,null,null,null,null,null,null,null,null,null,null,null,null,null,null,null,null,null,null,null,null,null,null,null,null,null,null,null,null,null,null,null,null,null,null,null,null,null,null,null,null,null,null,null,null,null,null,null,null,null,null,null,null,null,null,null,null,null,null,null,null,null,null,null,null,null,null,null,null,null,null,null,null,null,null,null,null,null,null,null,null,null,null,null,null,null,null,null,null,null,null,null,null,null,null,null,null,null,null,null,null,null,null,null,null,null,null,null,null,null,null,null,null,null,null,null,null,null,null,null,null,null,null,null,null,null,null,null,null,null,null,null,null,null,null,null,null,null,null,null,null,null,null,null,null,null,null,null,null,null,null,null,null,null,null,null,null,null,null,null,null,null,null,null,null,null,null,null,null,null,null,"Premium Manual","Premium Manual","Premium Manual","Premium Manual","Standard Manual","Standard Manual","Standard Manual","Premium Manual","Premium Manual","Premium Manual","Standard Manual","Standard Manual","Standard Manual","Premium Manual","Premium Manual","In-Ceiling Screen","Tab Tensioned Ch Fix ","Tab Tensioned Ch Fix ","Tab Tensioned Ch Fix "]
[null,"Viewing Width","2400mm","3000mm","3500mm",null,null,null,null,null,null,null,null,null,null,null,null,null,null,null,null,null,null,null,null,null,null,null,null,null,null,null,null,null,null,null,null,null,null,null,null,null,null,null,null,null,null,null,null,null,null,null,null,null,null,null,null,null,null,null,null,null,null,null,null,null,null,null,null,null,null,null,null,null,null,null,null,null,null,null,null,null,null,null,null,null,null,null,null,null,null,null,null,null,null,null,null,null,null,null,null,null,null,null,null,null,null,null,null,null,null,null,null,null,null,null,null,null,null,null,null,null,null,null,null,null,null,null,null,null,null,null,null,null,null,null,null,null,null,null,null,null,null,null,null,null,null,null,null,null,null,null,null,null,null,null,null,null,null,null,null,null,null,null,null,null,null,null,null,null,null,null,null,null,null,null,null,null,null,null,null,null,null,null,null,null,null,null,null,null,null,null,null,null,null,null,null,null,null,null,null,null,null,null,null,null,null,null,null,null,null,null,null,null,null,null,null,null,null,null,null,null,null,null,null,null,null,null,null,null,null,null,null,null,null,null,null,null,"2000mm","2000mm","2400mm","2400mm","2400mm","2400mm","2400mm","2400mm","2400mm","2700mm","2700mm","2700mm","2700mm ","2700mm ","2700mm ","1800mm","2400mm","3000mm","3500mm"]
[null,"Aspect","16by10","16by10","16by10",null,null,null,null,null,null,null,null,null,null,null,null,null,null,null,null,null,null,null,null,null,null,null,null,null,null,null,null,null,null,null,null,null,null,null,null,null,null,null,null,null,null,null,null,null,null,null,null,null,null,null,null,null,null,null,null,null,null,null,null,null,null,null,null,null,null,null,null,null,null,null,null,null,null,null,null,null,null,null,null,null,null,null,null,null,null,null,null,null,null,null,null,null,null,null,null,null,null,null,null,null,null,null,null,null,null,null,null,null,null,null,null,null,null,null,null,null,null,null,null,null,null,null,null,null,null,null,null,null,null,null,null,null,null,null,null,null,null,null,null,null,null,null,null,null,null,null,null,null,null,null,null,null,null,null,null,null,null,null,null,null,null,null,null,null,null,null,null,null,null,null,null,null,null,null,null,null,null,null,null,null,null,null,null,null,null,null,null,null,null,null,null,null,null,null,null,null,null,null,null,null,null,null,null,null,null,null,null,null,null,null,null,null,null,null,null,null,null,null,null,null,null,null,null,null,null,null,null,null,null,null,null,null,"16by10","16by9","4by3","Square","4by3","16by9","16by10","16by10","16by9","4by3","4by3","16by9","16by10","16by10","16by9","16by10","16by10","16by10","16by10"]
[null,"Fabric","Rear Projection","Rear Projection","Rear Projection",null,null,null,null,null,null,null,null,null,null,null,null,null,null,null,null,null,null,null,null,null,null,null,null,null,null,null,null,null,null,null,null,null,null,null,null,null,null,null,null,null,null,null,null,null,null,null,null,null,null,null,null,null,null,null,null,null,null,null,null,null,null,null,null,null,null,null,null,null,null,null,null,null,null,null,null,null,null,null,null,null,null,null,null,null,null,null,null,null,null,null,null,null,null,null,null,null,null,null,null,null,null,null,null,null,null,null,null,null,null,null,null,null,null,null,null,null,null,null,null,null,null,null,null,null,null,null,null,null,null,null,null,null,null,null,null,null,null,null,null,null,null,null,null,null,null,null,null,null,null,null,null,null,null,null,null,null,null,null,null,null,null,null,null,null,null,null,null,null,null,null,null,null,null,null,null,null,null,null,null,null,null,null,null,null,null,null,null,null,null,null,null,null,null,null,null,null,null,null,null,null,null,null,null,null,null,null,null,null,null,null,null,null,null,null,null,null,null,null,null,null,null,null,null,null,null,null,null,null,null,null,null,null,"Matt White Front","Matt White Front","Matt White Front","Matt White Front","Matt White Front","Matt White Front","Matt White Front","Matt White Front","Matt White Front","Matt White Front","Matt White Front","Matt White Front","Matt White Front","Matt White Front","Matt White Front","Matt White Front","Rear Projection","Rear Projection","Rear Projection"]
[null,"Remote","Infra-red","Infra-red","Infra-red",null,null,null,null,null,null,null,null,null,null,null,null,null,null,null,null,null,null,null,null,null,null,null,null,null,null,null,null,null,null,null,null,null,null,null,null,null,null,null,null,null,null,null,null,null,null,null,null,null,null,null,null,null,null,null,null,null,null,null,null,null,null,null,null,null,null,null,null,null,null,null,null,null,null,null,null,null,null,null,null,null,null,null,null,null,null,null,null,null,null,null,null,null,null,null,null,null,null,null,null,null,null,null,null,null,null,null,null,null,null,null,null,null,null,null,null,null,null,null,null,null,null,null,null,null,null,null,null,null,null,null,null,null,null,null,null,null,null,null,null,null,null,null,null,null,null,null,null,null,null,null,null,null,null,null,null,null,null,null,null,null,null,null,null,null,null,null,null,null,null,null,null,null,null,null,null,null,null,null,null,null,null,null,null,null,null,null,null,null,null,null,null,null,null,null,null,null,null,null,null,null,null,null,null,null,null,null,null,null,null,null,null,null,null,null,null,null,null,null,null,null,null,null,null,null,null,null,null,null,null,null,null,null,"Channel fix/SR","Channel fix/SR","Channel fix/SR","Channel fix/SR",null,null,null,"Channel fix/SR","Channel fix/SR","Channel fix/SR",null,null,null,"Channel fix/SR","Channel fix/SR","Infra-red","Infra-red","Infra-red","Infra-red"]
[null,"Controls","RS232,Contacts,12V trig","RS232,Contacts,12V trig","RS232,Contacts,12V trig",null,null,null,null,null,null,null,null,null,null,null,null,null,null,null,null,null,null,null,null,null,null,null,null,null,null,null,null,null,null,null,null,null,null,null,null,null,null,null,null,null,null,null,null,null,null,null,null,null,null,null,null,null,null,null,null,null,null,null,null,null,null,null,null,null,null,null,null,null,null,null,null,null,null,null,null,null,null,null,null,null,null,null,null,null,null,null,null,null,null,null,null,null,null,null,null,null,null,null,null,null,null,null,null,null,null,null,null,null,null,null,null,null,null,null,null,null,null,null,null,null,null,null,null,null,null,null,null,null,null,null,null,null,null,null,null,null,null,null,null,null,null,null,null,null,null,null,null,null,null,null,null,null,null,null,null,null,null,null,null,null,null,null,null,null,null,null,null,null,null,null,null,null,null,null,null,null,null,null,null,null,null,null,null,null,null,null,null,null,null,null,null,null,null,null,null,null,null,null,null,null,null,null,null,null,null,null,null,null,null,null,null,null,null,null,null,null,null,null,null,null,null,null,null,null,null,null,null,null,null,null,null,null,null,null,null,null,null,null,null,null,null," "," "," "," "," "," ","RS232,Contacts,12V trig","RS232,Contacts,12V trig","RS232,Contacts,12V trig","RS232,Contacts,12V trig"]
[null,"Stock Available",{"$f":"IF(ISNA(INDEX('DO NOT OPEN'!#REF!,MATCH(C7,'DO NOT OPEN'!#REF!,0),0)),\"No Stock\",INDEX('DO NOT OPEN'!#REF!,MATCH(C7,'DO NOT OPEN'!#REF!,0),0))","v":{"$error":"#REF!"}},{"$f":"IF(ISNA(INDEX('DO NOT OPEN'!#REF!,MATCH(D7,'DO NOT OPEN'!#REF!,0),0)),\"No Stock\",INDEX('DO NOT OPEN'!#REF!,MATCH(D7,'DO NOT OPEN'!#REF!,0),0))","v":{"$error":"#REF!"}},{"$f":"IF(ISNA(INDEX('DO NOT OPEN'!#REF!,MATCH(E7,'DO NOT OPEN'!#REF!,0),0)),\"No Stock\",INDEX('DO NOT OPEN'!#REF!,MATCH(E7,'DO NOT OPEN'!#REF!,0),0))","v":{"$error":"#REF!"}},null,null,null,null,null,null,null,null,null,null,null,null,null,null,null,null,null,null,null,null,null,null,null,null,null,null,null,null,null,null,null,null,null,null,null,null,null,null,null,null,null,null,null,null,null,null,null,null,null,null,null,null,null,null,null,null,null,null,null,null,null,null,null,null,null,null,null,null,null,null,null,null,null,null,null,null,null,null,null,null,null,null,null,null,null,null,null,null,null,null,null,null,null,null,null,null,null,null,null,null,null,null,null,null,null,null,null,null,null,null,null,null,null,null,null,null,null,null,null,null,null,null,null,null,null,null,null,null,null,null,null,null,null,null,null,null,null,null,null,null,null,null,null,null,null,null,null,null,null,null,null,null,null,null,null,null,null,null,null,null,null,null,null,null,null,null,null,null,null,null,null,null,null,null,null,null,null,null,null,null,null,null,null,null,null,null,null,null,null,null,null,null,null,null,null,null,null,null,null,null,null,null,null,null,null,null,null,null,null,null,null,null,null,null,null,null,null,null,null,null,null,null,null,null,null,null,null,null,null,null,null,null,null,{"$f":"IF(ISNA(INDEX('DO NOT OPEN'!#REF!,MATCH(IE7,'DO NOT OPEN'!#REF!,0),0)),\"No Stock\",INDEX('DO NOT OPEN'!#REF!,MATCH(IE7,'DO NOT OPEN'!#REF!,0),0))","v":{"$error":"#REF!"}},{"$f":"IF(ISNA(INDEX('DO NOT OPEN'!#REF!,MATCH(IF7,'DO NOT OPEN'!#REF!,0),0)),\"No Stock\",INDEX('DO NOT OPEN'!#REF!,MATCH(IF7,'DO NOT OPEN'!#REF!,0),0))","v":{"$error":"#REF!"}},{"$f":"IF(ISNA(INDEX('DO NOT OPEN'!#REF!,MATCH(IG7,'DO NOT OPEN'!#REF!,0),0)),\"No Stock\",INDEX('DO NOT OPEN'!#REF!,MATCH(IG7,'DO NOT OPEN'!#REF!,0),0))","v":{"$error":"#REF!"}},{"$f":"IF(ISNA(INDEX('DO NOT OPEN'!#REF!,MATCH(IH7,'DO NOT OPEN'!#REF!,0),0)),\"No Stock\",INDEX('DO NOT OPEN'!#REF!,MATCH(IH7,'DO NOT OPEN'!#REF!,0),0))","v":{"$error":"#REF!"}},{"$f":"IF(ISNA(INDEX('DO NOT OPEN'!#REF!,MATCH(II7,'DO NOT OPEN'!#REF!,0),0)),\"No Stock\",INDEX('DO NOT OPEN'!#REF!,MATCH(II7,'DO NOT OPEN'!#REF!,0),0))","v":{"$error":"#REF!"}},{"$f":"IF(ISNA(INDEX('DO NOT OPEN'!#REF!,MATCH(IJ7,'DO NOT OPEN'!#REF!,0),0)),\"No Stock\",INDEX('DO NOT OPEN'!#REF!,MATCH(IJ7,'DO NOT OPEN'!#REF!,0),0))","v":{"$error":"#REF!"}},{"$f":"IF(ISNA(INDEX('DO NOT OPEN'!#REF!,MATCH(IK7,'DO NOT OPEN'!#REF!,0),0)),\"No Stock\",INDEX('DO NOT OPEN'!#REF!,MATCH(IK7,'DO NOT OPEN'!#REF!,0),0))","v":{"$error":"#REF!"}},{"$f":"IF(ISNA(INDEX('DO NOT OPEN'!#REF!,MATCH(IL7,'DO NOT OPEN'!#REF!,0),0)),\"No Stock\",INDEX('DO NOT OPEN'!#REF!,MATCH(IL7,'DO NOT OPEN'!#REF!,0),0))","v":{"$error":"#REF!"}},{"$f":"IF(ISNA(INDEX('DO NOT OPEN'!#REF!,MATCH(IM7,'DO NOT OPEN'!#REF!,0),0)),\"No Stock\",INDEX('DO NOT OPEN'!#REF!,MATCH(IM7,'DO NOT OPEN'!#REF!,0),0))","v":{"$error":"#REF!"}},{"$f":"IF(ISNA(INDEX('DO NOT OPEN'!#REF!,MATCH(IN7,'DO NOT OPEN'!#REF!,0),0)),\"No Stock\",INDEX('DO NOT OPEN'!#REF!,MATCH(IN7,'DO NOT OPEN'!#REF!,0),0))","v":{"$error":"#REF!"}},{"$f":"IF(ISNA(INDEX('DO NOT OPEN'!#REF!,MATCH(IO7,'DO NOT OPEN'!#REF!,0),0)),\"No Stock\",INDEX('DO NOT OPEN'!#REF!,MATCH(IO7,'DO NOT OPEN'!#REF!,0),0))","v":{"$error":"#REF!"}},{"$f":"IF(ISNA(INDEX('DO NOT OPEN'!#REF!,MATCH(IP7,'DO NOT OPEN'!#REF!,0),0)),\"No Stock\",INDEX('DO NOT OPEN'!#REF!,MATCH(IP7,'DO NOT OPEN'!#REF!,0),0))","v":{"$error":"#REF!"}},{"$f":"IF(ISNA(INDEX('DO NOT OPEN'!#REF!,MATCH(IQ7,'DO NOT OPEN'!#REF!,0),0)),\"No Stock\",INDEX('DO NOT OPEN'!#REF!,MATCH(IQ7,'DO NOT OPEN'!#REF!,0),0))","v":{"$error":"#REF!"}},{"$f":"IF(ISNA(INDEX('DO NOT OPEN'!#REF!,MATCH(IR7,'DO NOT OPEN'!#REF!,0),0)),\"No Stock\",INDEX('DO NOT OPEN'!#REF!,MATCH(IR7,'DO NOT OPEN'!#REF!,0),0))","v":{"$error":"#REF!"}},{"$f":"IF(ISNA(INDEX('DO NOT OPEN'!#REF!,MATCH(IS7,'DO NOT OPEN'!#REF!,0),0)),\"No Stock\",INDEX('DO NOT OPEN'!#REF!,MATCH(IS7,'DO NOT OPEN'!#REF!,0),0))","v":{"$error":"#REF!"}},{"$f":"IF(ISNA(INDEX('DO NOT OPEN'!#REF!,MATCH(IT7,'DO NOT OPEN'!#REF!,0),0)),\"No Stock\",INDEX('DO NOT OPEN'!#REF!,MATCH(IT7,'DO NOT OPEN'!#REF!,0),0))","v":{"$error":"#REF!"}},{"$f":"IF(ISNA(INDEX('DO NOT OPEN'!#REF!,MATCH(IU7,'DO NOT OPEN'!#REF!,0),0)),\"No Stock\",INDEX('DO NOT OPEN'!#REF!,MATCH(IU7,'DO NOT OPEN'!#REF!,0),0))","v":{"$error":"#REF!"}},{"$f":"IF(ISNA(INDEX('DO NOT OPEN'!#REF!,MATCH(IV7,'DO NOT OPEN'!#REF!,0),0)),\"No Stock\",INDEX('DO NOT OPEN'!#REF!,MATCH(IV7,'DO NOT OPEN'!#REF!,0),0))","v":{"$error":"#REF!"}},{"$f":"IF(ISNA(INDEX('DO NOT OPEN'!#REF!,MATCH(IW7,'DO NOT OPEN'!#REF!,0),0)),\"No Stock\",INDEX('DO NOT OPEN'!#REF!,MATCH(IW7,'DO NOT OPEN'!#REF!,0),0))","v":{"$error":"#REF!"}}]
[null,"Web link",{"$f":"HYPERLINK(\"http://www.sapphireav.com/sapphire-rear-tab-tension-electric-infra-red-screen-viewing-area-2346mm-x-1466mm-approx-case-dimensions-l-2834mm-x-h-134mm-x-d-135mm.html\", \"Click for Web Link\")","v":"Click for Web Link"},{"$f":"HYPERLINK(\"http://www.sapphireav.com/sapphire-rear-tab-tension-electric-infra-red-screen-viewing-area-3010mm-x-1881mm-approx-case-dimensions-l-3538mm-x-h-143mm-x-d-135mm.html\", \"Click for Web Link\")","v":"Click for Web Link"},{"$f":"HYPERLINK(\"http://www.sapphireav.com/sapphire-rear-tab-tension-electric-infra-red-screen-viewing-area-3498mm-x-2181mm-approx-case-dimensions-l-3988mm-x-h-143mm-x-d-135mm.html\", \"Click for Web Link\")","v":"Click for Web Link"},null,null,null,null,null,null,null,null,null,null,null,null,null,null,null,null,null,null,null,null,null,null,null,null,null,null,null,null,null,null,null,null,null,null,null,null,null,null,null,null,null,null,null,null,null,null,null,null,null,null,null,null,null,null,null,null,null,null,null,null,null,null,null,null,null,null,null,null,null,null,null,null,null,null,null,null,null,null,null,null,null,null,null,null,null,null,null,null,null,null,null,null,null,null,null,null,null,null,null,null,null,null,null,null,null,null,null,null,null,null,null,null,null,null,null,null,null,null,null,null,null,null,null,null,null,null,null,null,null,null,null,null,null,null,null,null,null,null,null,null,null,null,null,null,null,null,null,null,null,null,null,null,null,null,null,null,null,null,null,null,null,null,null,null,null,null,null,null,null,null,null,null,null,null,null,null,null,null,null,null,null,null,null,null,null,null,null,null,null,null,null,null,null,null,null,null,null,null,null,null,null,null,null,null,null,null,null,null,null,null,null,null,null,null,null,null,null,null,null,null,null,null,null,null,null,null,null,null,null,null,null,null,null,{"$f":"HYPERLINK(\"http://www.sapphireav.com/Sapphire-Aluminum-Slow-Retraction-Manual-Screen-Viewing-Area-2030mm-x-1269mm-with-channel-fix-brackets-Approx-Case-Dimensions-L-2204mm-x-H-93mm-x-D-79mm_p_508.html\", \"Click for Web Link\")","v":"Click for Web Link"},{"$f":"HYPERLINK(\"http://www.sapphireav.com/Sapphire-Aluminum-Slow-Retraction-Manual-Screen-Viewing-Area-2030mm-x-1145mm-with-channel-fix-brackets-Approx-Case-Dimensions-L-2204mm-x-H-93mm-x-D-79mm_p_126.html\", \"Click for Web Link\")","v":"Click for Web Link"},{"$f":"HYPERLINK(\"http://www.sapphireav.com/Sapphire-Aluminum-Slow-Retraction-Manual-Screen-Viewing-Area-2340mm-x-1755mm-Approx-Case-Dimensions-L-2508mm-x-H-93mm-x-D-79mm_p_127.html\", \"Click for Web Link\")","v":"Click for Web Link"},{"$f":"HYPERLINK(\"http://www.sapphireav.com/Sapphire-Manual-Screen-Viewing-Area-2340mm-x-2340mm-slow-retraction-channel-fix-Approx-Case-Dimensions-L-2509mm-x-H-96mm-x-D-91mm_p_128.html\", \"Click for Web Link\")","v":"Click for Web Link"},{"$f":"HYPERLINK(\"http://www.sapphireav.com/Sapphire-Manual-Screen-Viewing-Area-2340mm-x-1755mm-not-channel-fix-Approx-Case-Dimensions-L-2562mm-x-H-89mm-x-D-87mm_p_14.html\", \"Click for Web Link\")","v":"Click for Web Link"},{"$f":"HYPERLINK(\"http://www.sapphireav.com/Sapphire-Manual-Screen-Viewing-Area-2340mm-x-1320mm-not-channel-fix-Approx-Case-Dimensions-L-2554mm-x-H-89mm-x-D-87mm_p_130.html\", \"Click for Web Link\")","v":"Click for Web Link"},{"$f":"HYPERLINK(\"http://www.sapphireav.com/Sapphire-Manual-Screen-Viewing-Area-2340mm-x-1463mm-not-channel-fix-Approx-Case-Dimensions-L-2554mm-x-H-89mm-x-D-87mm_p_460.html\", \"Click for Web Link\")","v":"Click for Web Link"},{"$f":"HYPERLINK(\"http://www.sapphireav.com/Sapphire-Aluminum-Slow-Retraction-Manual-Screen-Viewing-Area-2340mm-x-1463mm-with-channel-fix-brackets-Approx-Case-Dimensions-L-2508mm-x-H-93mm-x-D-79mm_p_509.html\", \"Click for Web Link\")","v":"Click for Web Link"},{"$f":"HYPERLINK(\"http://www.sapphireav.com/Sapphire-Aluminum-Slow-Retraction-Manual-Screen-Viewing-Area-2340mm-x-1320mm-with-channel-fix-brackets-Approx-Case-Dimensions-L-2508mm-x-H-93mm-x-D-79mm_p_132.html\", \"Click for Web Link\")","v":"Click for Web Link"},{"$f":"HYPERLINK(\"http://www.sapphireav.com/Sapphire-Aluminum-Slow-Retraction-Manual-Screen-Viewing-Area-2700mm-x-2027mm-with-channel-fix-brackets-Approx-Case-Dimensions-L-2878mm-x-H-96mm-x-D-91mm_p_134.html\", \"Click for Web Link\")","v":"Click for Web Link"},{"$f":"HYPERLINK(\"http://www.sapphireav.com/Sapphire-Manual-Screen-Viewing-Area-2700mm-x-2027mm-not-channel-fix-Approx-Case-Dimensions-L-2964mm-x-H-117mm-x-D-117mm_p_12.html\", \"Click for Web Link\")","v":"Click for Web Link"},{"$f":"HYPERLINK(\"http://www.sapphireav.com/Sapphire-Manual-Screen-Viewing-Area-2700mm-x-1518mm-not-channel-fix-Approx-Case-Dimensions-L-2700mm-x-H-117mm-x-D-117mm_p_136.html\", \"Click for Web Link\")","v":"Click for Web Link"},{"$f":"HYPERLINK(\"http://www.sapphireav.com/Sapphire-Manual-Screen-Viewing-Area-2700mm-x-1688mm-not-channel-fix-Approx-Case-Dimensions-L-2700mm-x-H-117mm-x-D-117mm_p_505.html\", \"Click for Web Link\")","v":"Click for Web Link"},{"$f":"HYPERLINK(\"http://www.sapphireav.com/Sapphire-Aluminum-Slow-Retraction-Manual-Screen-Viewing-Area-2700mm-x-1688mm-with-channel-fix-brackets-Approx-Case-Dimensions-L-2878mm-x-H-96mm-x-D-91mm_p_510.html\", \"Click for Web Link\")","v":"Click for Web Link"},{"$f":"HYPERLINK(\"http://www.sapphireav.com/Sapphire-Aluminum-Slow-Retraction-Manual-Screen-Viewing-Area-2700mm-x-1518mm-with-channel-fix-brackets-Approx-Case-Dimensions-L-2878mm-x-H-96mm-x-D-91mm_p_137.html\", \"Click for Web Link\")","v":"Click for Web Link"},{"$f":"HYPERLINK(\"http://www.sapphireav.com/sapphire-dedicated-electric-recessed-screen-viewing-area-1705mm-x-1065mm-1610-approx-case-dimensions-not-including-surround-l-1867mm-x-h-122mm-x-d-135mm.html\", \"Click for Web Link\")","v":"Click for Web Link"},{"$f":"HYPERLINK(\"http://www.sapphireav.com/sapphire-rear-tab-tension-electric-infra-red-screen-viewing-area-2346mm-x-1466mm-approx-case-dimensions-l-2834mm-x-h-134mm-x-d-135mm.html\", \"Click for Web Link\")","v":"Click for Web Link"},{"$f":"HYPERLINK(\"http://www.sapphireav.com/sapphire-rear-tab-tension-electric-infra-red-screen-viewing-area-3010mm-x-1881mm-approx-case-dimensions-l-3538mm-x-h-143mm-x-d-135mm.html\", \"Click for Web Link\")","v":"Click for Web Link"},{"$f":"HYPERLINK(\"http://www.sapphireav.com/sapphire-rear-tab-tension-electric-infra-red-screen-viewing-area-3498mm-x-2181mm-approx-case-dimensions-l-3988mm-x-h-143mm-x-d-135mm.html\", \"Click for Web Link\")","v":"Click for Web Link"}]
[null,"Product Weight kg's",23,35,40,null,null,null,null,null,null,null,null,null,null,null,null,null,null,null,null,null,null,null,null,null,null,null,null,null,null,null,null,null,null,null,null,null,null,null,null,null,null,null,null,null,null,null,null,null,null,null,null,null,null,null,null,null,null,null,null,null,null,null,null,null,null,null,null,null,null,null,null,null,null,null,null,null,null,null,null,null,null,null,null,null,null,null,null,null,null,null,null,null,null,null,null,null,null,null,null,null,null,null,null,null,null,null,null,null,null,null,null,null,null,null,null,null,null,null,null,null,null,null,null,null,null,null,null,null,null,null,null,null,null,null,null,null,null,null,null,null,null,null,null,null,null,null,null,null,null,null,null,null,null,null,null,null,null,null,null,null,null,null,null,null,null,null,null,null,null,null,null,null,null,null,null,null,null,null,null,null,null,null,null,null,null,null,null,null,null,null,null,null,null,null,null,null,null,null,null,null,null,null,null,null,null,null,null,null,null,null,null,null,null,null,null,null,null,null,null,null,null,null,null,null,null,null,null,null,null,null,null,null,null,null,null,null,10.199999999999999,10.3,13,13.7,13.6,13.6,13.6,13,13,15.8,18,18,18,15.8,15.8,11,23,35,40]
[null,"Carriage £'s",30,30,30,null,null,null,null,null,null,null,null,null,null,null,null,null,null,null,null,null,null,null,null,null,null,null,null,null,null,null,null,null,null,null,null,null,null,null,null,null,null,null,null,null,null,null,null,null,null,null,null,null,null,null,null,null,null,null,null,null,null,null,null,null,null,null,null,null,null,null,null,null,null,null,null,null,null,null,null,null,null,null,null,null,null,null,null,null,null,null,null,null,null,null,null,null,null,null,null,null,null,null,null,null,null,null,null,null,null,null,null,null,null,null,null,null,null,null,null,null,null,null,null,null,null,null,null,null,null,null,null,null,null,null,null,null,null,null,null,null,null,null,null,null,null,null,null,null,null,null,null,null,null,null,null,null,null,null,null,null,null,null,null,null,null,null,null,null,null,null,null,null,null,null,null,null,null,null,null,null,null,null,null,null,null,null,null,null,null,null,null,null,null,null,null,null,null,null,null,null,null,null,null,null,null,null,null,null,null,null,null,null,null,null,null,null,null,null,null,null,null,null,null,null,null,null,null,null,null,null,null,null,null,null,null,null,12,12,12,12,12,12,12,12,12,15,15,15,15,15,15,15,30,30,30]
[null,"You may also like the products we recommend below"]
[null,"Option 1",{"$f":"IF(RIGHT(C7,3)=\"ATR\",\"Low Voltage Switch\",IF(LEFT(C7,5)=\"SETTS\",\"Projector lifts\",IF(LEFT(C7,4)=\"SETC\",\"Low Voltage Switch\",IF(LEFT(C7,5)=\"SEWS3\",\"Projector lifts\",IF(LEFT(C7,5)=\"SEWS3\",\"Projector lifts\",IF(RIGHT(C7,5)=\"ATR10\",\"Low Voltage Switch\",IF(RIGHT(C7,5)=\"ATRAC\",\"Low Voltage Switch\",IF(LEFT(C7,5)=\"SETTS\",\"Projector lifts\",IF(ISNUMBER(FIND(\"FR\",C7)),\"Rear Projection Fabric\",IF(ISNUMBER(FIND(\"RP\",C7)),\"Front Projection Fabric\",IF(LEFT(C7,3)=\"SWS\",\"Easy reach pole\",IF(LEFT(C7,4)=\"SFSC\",\"Ceiling Mounts\",IF(LEFT(C7,4)=\"SESC\",\"Low Voltage Switch\",IF(LEFT(C7,3)=\"SSM\",\"Smart Move Low Voltage Switch\",IF(LEFT(C7,3)=\"STS\",\"Screen Bags\",IF(LEFT(C7,6)=\"SSFS20\",\"Drapery Kit 100\",IF(LEFT(C7,6)=\"SSFS22\",\"Drapery Kit 120\",IF(LEFT(C7,5)=\"SSFS3\",\"Drapery Kit 150\",\" \"))))))))))))))))))","v":"Projector lifts"},{"$f":"IF(RIGHT(D7,3)=\"ATR\",\"Low Voltage Switch\",IF(LEFT(D7,5)=\"SETTS\",\"Projector lifts\",IF(LEFT(D7,4)=\"SETC\",\"Low Voltage Switch\",IF(LEFT(D7,5)=\"SEWS3\",\"Projector lifts\",IF(LEFT(D7,5)=\"SEWS3\",\"Projector lifts\",IF(RIGHT(D7,5)=\"ATR10\",\"Low Voltage Switch\",IF(RIGHT(D7,5)=\"ATRAC\",\"Low Voltage Switch\",IF(LEFT(D7,5)=\"SETTS\",\"Projector lifts\",IF(ISNUMBER(FIND(\"FR\",D7)),\"Rear Projection Fabric\",IF(ISNUMBER(FIND(\"RP\",D7)),\"Front Projection Fabric\",IF(LEFT(D7,3)=\"SWS\",\"Easy reach pole\",IF(LEFT(D7,4)=\"SFSC\",\"Ceiling Mounts\",IF(LEFT(D7,4)=\"SESC\",\"Low Voltage Switch\",IF(LEFT(D7,3)=\"SSM\",\"Smart Move Low Voltage Switch\",IF(LEFT(D7,3)=\"STS\",\"Screen Bags\",IF(LEFT(D7,6)=\"SSFS20\",\"Drapery Kit 100\",IF(LEFT(D7,6)=\"SSFS22\",\"Drapery Kit 120\",IF(LEFT(D7,5)=\"SSFS3\",\"Drapery Kit 150\",\" \"))))))))))))))))))","v":"Projector lifts"},{"$f":"IF(RIGHT(E7,3)=\"ATR\",\"Low Voltage Switch\",IF(LEFT(E7,5)=\"SETTS\",\"Projector lifts\",IF(LEFT(E7,4)=\"SETC\",\"Low Voltage Switch\",IF(LEFT(E7,5)=\"SEWS3\",\"Projector lifts\",IF(LEFT(E7,5)=\"SEWS3\",\"Projector lifts\",IF(RIGHT(E7,5)=\"ATR10\",\"Low Voltage Switch\",IF(RIGHT(E7,5)=\"ATRAC\",\"Low Voltage Switch\",IF(LEFT(E7,5)=\"SETTS\",\"Projector lifts\",IF(ISNUMBER(FIND(\"FR\",E7)),\"Rear Projection Fabric\",IF(ISNUMBER(FIND(\"RP\",E7)),\"Front Projection Fabric\",IF(LEFT(E7,3)=\"SWS\",\"Easy reach pole\",IF(LEFT(E7,4)=\"SFSC\",\"Ceiling Mounts\",IF(LEFT(E7,4)=\"SESC\",\"Low Voltage Switch\",IF(LEFT(E7,3)=\"SSM\",\"Smart Move Low Voltage Switch\",IF(LEFT(E7,3)=\"STS\",\"Screen Bags\",IF(LEFT(E7,6)=\"SSFS20\",\"Drapery Kit 100\",IF(LEFT(E7,6)=\"SSFS22\",\"Drapery Kit 120\",IF(LEFT(E7,5)=\"SSFS3\",\"Drapery Kit 150\",\"\"))))))))))))))))))","v":"Projector lifts"},{"$f":"IF(RIGHT(F7,3)=\"ATR\",\"Low Voltage Switch\",IF(LEFT(F7,5)=\"SETTS\",\"Projector lifts\",IF(LEFT(F7,4)=\"SETC\",\"Low Voltage Switch\",IF(LEFT(F7,5)=\"SEWS3\",\"Projector lifts\",IF(LEFT(F7,5)=\"SEWS3\",\"Projector lifts\",IF(RIGHT(F7,5)=\"ATR10\",\"Low Voltage Switch\",IF(RIGHT(F7,5)=\"ATRAC\",\"Low Voltage Switch\",IF(LEFT(F7,5)=\"SETTS\",\"Projector lifts\",IF(ISNUMBER(FIND(\"FR\",F7)),\"Rear Projection Fabric\",IF(ISNUMBER(FIND(\"RP\",F7)),\"Front Projection Fabric\",IF(LEFT(F7,3)=\"SWS\",\"Easy reach pole\",IF(LEFT(F7,4)=\"SFSC\",\"Ceiling Mounts\",IF(LEFT(F7,4)=\"SESC\",\"Low Voltage Switch\",IF(LEFT(F7,3)=\"SSM\",\"Smart Move Low Voltage Switch\",IF(LEFT(F7,3)=\"STS\",\"Screen Bags\",IF(LEFT(F7,6)=\"SSFS20\",\"Drapery Kit 100\",IF(LEFT(F7,6)=\"SSFS22\",\"Drapery Kit 120\",IF(LEFT(F7,5)=\"SSFS3\",\"Drapery Kit 150\",\"\"))))))))))))))))))","v":""},""]
[null,"Web Links",{"$f":"IF(C21=\"Low Voltage Switch\",HYPERLINK(\"http://www.sapphireav.com/SEWS-ATR-Up-and-Down-Switch_p_648.html\",\"WebLink\"),IF(C21=\"Ceiling Mounts\",HYPERLINK(\"http://www.sapphireav.com/Projector-and-AV-Mounts_c_15.html\",\"WebLink\"),IF(C21=\"Screen Bags\",HYPERLINK(\"http://www.sapphireav.com/search.asp?keyword=STB&search.x=0&search.y=0\",\"WebLink\"),IF(C7=\"SFFS203FR-WSF\",\" http://www.sapphireav.com/Sapphire-2m-Rear-Projection-Rapid-Fold-Fabric-Only-169-Format_p_664.html\",IF(C7=\"SFFS203FR\",\"http://www.sapphireav.com/Rapid-Fold-Rear-Projection-fabric-for-SFFS203-Screen_p_150.html\",IF(C7=\"SFFS244FR-WSF\",\"http://www.sapphireav.com/Rapid-Fold-Rear-Projection-fabric-for-SFFS244WSF_p_506.html\",IF(C7=\"SFFS203FR-WSF\",\"http://www.sapphireav.com/Sapphire-2m-Rear-Projection-Rapid-Fold-Fabric-Only-169-Format_p_664.html\",IF(C7=\"SFFS305FR-WSF\",\"http://www.sapphireav.com/3m-Front-Projection-169-Fabric-Only_p_670.html\",IF(C7=\"SFFS244FR-WSF\",\"http://www.sapphireav.com/Rapid-Fold-Rear-Projection-fabric-for-SFFS244WSF_p_506.html\",IF(C7=\"SFFS365FR-WSF\",\"http://www.sapphireav.com/36m-Rear-Projection-169-Fabric-Only_p_672.html\",IF(C7=\"SFFS244RP\",\"http://www.sapphireav.com/Rapid-fold-244-Front-Projection-Fabric_p_160.html\",IF(C7=\"SFFS305RP\",\"http://www.sapphireav.com/Rapid-Fold-305-Front-Projection-Fabric_p_161.html\",IF(C7=\"SFFS305FR\",\"http://www.sapphireav.com/Rapid-Fold-305-Rear-Projection-Fabric_p_156.html\",IF(C7=\"SFFS305RP-WSF\",\"http://www.sapphireav.com/3m-Front-Projection-169-Fabric-Only_p_670.html\",IF(C7=\"SFFS365RP\",\"http://www.sapphireav.com/Rapid-Fold-365-Front-Projection-Fabric_p_162.html\",IF(C7=\"SFFS244FR\",\"http://www.sapphireav.com/Rapid-Fold-244-Rear-Projection-Fabric_p_153.html\",IF(C7=\"SFFS508FR\",\"http://www.sapphireav.com/Sapphire-5m-Rapid-Fold-Rear-Fabric-Only-43-Format_p_668.html\",IF(C7=\"SFFS404FR\",\"http://www.sapphireav.com/Rapid-Fold-404-Rear-Projection-Fabric_p_158.html\",IF(C7=\"SFFS404FR-WSF\",\"http://www.sapphireav.com/4m-Rear-Projection-169-Fabric-Only_p_666.html\",IF(C7=\"SFFS305RP10\",\"http://www.sapphireav.com/Sapphire-3m-Rapid-Fold-Front-Fabric-Only-1610-for-SFFS305FR10-or-SFFS305RP10_p_677.html\",IF(C7=\"SFFS305FR10\",\"http://www.sapphireav.com/Sapphire-3m-Rapid-Fold-Rear-Fabric-Only-1610-for-SFFS305FR10-or-SFFS305RP10_p_695.html\",IF(C7=\"SFFS365RP10\",\"http://www.sapphireav.com/Sapphire-36m-Rapid-Fold-Front-Fabric-Only-1610-for-SFFS365FR10-or-SFFS365RP10_p_688.html\",IF(C7=\"SFFS365FR10\",\"http://www.sapphireav.com/Sapphire-36m-Rear-Projecion-Rapid-Fold-Fabric-Only-1610-for-SFFS365FR10-or-SFFS365RP10_p_696.html\",IF(#REF!=\"SFFS365RP-WSF\",\"http://www.sapphireav.com/Sapphire-36m-Rapid-Fold-Front-Fabric-Only-169-for-SFFS365FR-WSF-or-SFFS365RP-WSF_p_693.html\",\nIF(C7=\"SFFS508RP\",\"http://www.sapphireav.com/Sapphire-5m-Rapid-Fold-Front-Fabric-Only-43-format_p_667.html\",IF(C7=\"SFFS365FR\",\"http://www.sapphireav.com/Rapid-Fold-365-Rear-Projection-Fabric_p_157.html\",IF(C7=\"SFFS203RP\",\"http://www.sapphireav.com/Rapid-Fold-203-Front-Projection-Fabric_p_159.html\",IF(C21=\"Easy reach pole\",HYPERLINK(\"http://www.sapphireav.com/Sapphire-Easy-Reach-Pole_p_108.html\",\"WebLink\"),IF(C21=\"Projector lifts\",HYPERLINK(\"http://www.sapphireav.com/Projector-Lifts_c_103.html\",\"Web Link\"),\"\")))))))))))))))))))))))))))))","v":{"$error":"#REF!"}},{"$f":"IF(D21=\"Low Voltage Switch\",HYPERLINK(\"http://www.sapphireav.com/SEWS-ATR-Up-and-Down-Switch_p_648.html\",\"WebLink\"),IF(D21=\"Ceiling Mounts\",HYPERLINK(\"http://www.sapphireav.com/Projector-and-AV-Mounts_c_15.html\",\"WebLink\"),IF(D21=\"Screen Bags\",HYPERLINK(\"http://www.sapphireav.com/search.asp?keyword=STB&search.x=0&search.y=0\",\"WebLink\"),IF(D7=\"SFFS203FR-WSF\",\" http://www.sapphireav.com/Sapphire-2m-Rear-Projection-Rapid-Fold-Fabric-Only-169-Format_p_664.html\",IF(D7=\"SFFS203FR\",\"http://www.sapphireav.com/Rapid-Fold-Rear-Projection-fabric-for-SFFS203-Screen_p_150.html\",IF(D7=\"SFFS244FR-WSF\",\"http://www.sapphireav.com/Rapid-Fold-Rear-Projection-fabric-for-SFFS244WSF_p_506.html\",IF(D7=\"SFFS203FR-WSF\",\"http://www.sapphireav.com/Sapphire-2m-Rear-Projection-Rapid-Fold-Fabric-Only-169-Format_p_664.html\",IF(D7=\"SFFS305FR-WSF\",\"http://www.sapphireav.com/3m-Front-Projection-169-Fabric-Only_p_670.html\",IF(D7=\"SFFS244FR-WSF\",\"http://www.sapphireav.com/Rapid-Fold-Rear-Projection-fabric-for-SFFS244WSF_p_506.html\",IF(D7=\"SFFS365FR-WSF\",\"http://www.sapphireav.com/36m-Rear-Projection-169-Fabric-Only_p_672.html\",IF(D7=\"SFFS244RP\",\"http://www.sapphireav.com/Rapid-fold-244-Front-Projection-Fabric_p_160.html\",IF(D7=\"SFFS305RP\",\"http://www.sapphireav.com/Rapid-Fold-305-Front-Projection-Fabric_p_161.html\",IF(D7=\"SFFS305FR\",\"http://www.sapphireav.com/Rapid-Fold-305-Rear-Projection-Fabric_p_156.html\",IF(D7=\"SFFS305RP-WSF\",\"http://www.sapphireav.com/3m-Front-Projection-169-Fabric-Only_p_670.html\",IF(D7=\"SFFS365RP\",\"http://www.sapphireav.com/Rapid-Fold-365-Front-Projection-Fabric_p_162.html\",IF(D7=\"SFFS244FR\",\"http://www.sapphireav.com/Rapid-Fold-244-Rear-Projection-Fabric_p_153.html\",IF(D7=\"SFFS508FR\",\"http://www.sapphireav.com/Sapphire-5m-Rapid-Fold-Rear-Fabric-Only-43-Format_p_668.html\",IF(D7=\"SFFS404FR\",\"http://www.sapphireav.com/Rapid-Fold-404-Rear-Projection-Fabric_p_158.html\",IF(D7=\"SFFS404FR-WSF\",\"http://www.sapphireav.com/4m-Rear-Projection-169-Fabric-Only_p_666.html\",IF(D7=\"SFFS305RP10\",\"http://www.sapphireav.com/Sapphire-3m-Rapid-Fold-Front-Fabric-Only-1610-for-SFFS305FR10-or-SFFS305RP10_p_677.html\",IF(D7=\"SFFS305FR10\",\"http://www.sapphireav.com/Sapphire-3m-Rapid-Fold-Rear-Fabric-Only-1610-for-SFFS305FR10-or-SFFS305RP10_p_695.html\",IF(D7=\"SFFS365RP10\",\"http://www.sapphireav.com/Sapphire-36m-Rapid-Fold-Front-Fabric-Only-1610-for-SFFS365FR10-or-SFFS365RP10_p_688.html\",IF(D7=\"SFFS365FR10\",\"http://www.sapphireav.com/Sapphire-36m-Rear-Projecion-Rapid-Fold-Fabric-Only-1610-for-SFFS365FR10-or-SFFS365RP10_p_696.html\",IF(A7=\"SFFS365RP-WSF\",\"http://www.sapphireav.com/Sapphire-36m-Rapid-Fold-Front-Fabric-Only-169-for-SFFS365FR-WSF-or-SFFS365RP-WSF_p_693.html\",\nIF(D7=\"SFFS508RP\",\"http://www.sapphireav.com/Sapphire-5m-Rapid-Fold-Front-Fabric-Only-43-format_p_667.html\",IF(D7=\"SFFS365FR\",\"http://www.sapphireav.com/Rapid-Fold-365-Rear-Projection-Fabric_p_157.html\",IF(D7=\"SFFS203RP\",\"http://www.sapphireav.com/Rapid-Fold-203-Front-Projection-Fabric_p_159.html\",IF(D21=\"Easy reach pole\",HYPERLINK(\"http://www.sapphireav.com/Sapphire-Easy-Reach-Pole_p_108.html\",\"WebLink\"),IF(D21=\"Projector lifts\",HYPERLINK(\"http://www.sapphireav.com/Projector-Lifts_c_103.html\",\"Web Link\"),\"\")))))))))))))))))))))))))))))","v":"Web Link"},"Web Link",{"$f":"IF(F21=\"Low Voltage Switch\",HYPERLINK(\"http://www.sapphireav.com/SEWS-ATR-Up-and-Down-Switch_p_648.html\",\"WebLink\"),IF(F21=\"Ceiling Mounts\",HYPERLINK(\"http://www.sapphireav.com/Projector-and-AV-Mounts_c_15.html\",\"WebLink\"),IF(F21=\"Screen Bags\",HYPERLINK(\"http://www.sapphireav.com/search.asp?keyword=STB&search.x=0&search.y=0\",\"WebLink\"),IF(F7=\"SFFS203FR-WSF\",\" http://www.sapphireav.com/Sapphire-2m-Rear-Projection-Rapid-Fold-Fabric-Only-169-Format_p_664.html\",IF(F7=\"SFFS203FR\",\"http://www.sapphireav.com/Rapid-Fold-Rear-Projection-fabric-for-SFFS203-Screen_p_150.html\",IF(F7=\"SFFS244FR-WSF\",\"http://www.sapphireav.com/Rapid-Fold-Rear-Projection-fabric-for-SFFS244WSF_p_506.html\",IF(F7=\"SFFS203FR-WSF\",\"http://www.sapphireav.com/Sapphire-2m-Rear-Projection-Rapid-Fold-Fabric-Only-169-Format_p_664.html\",IF(F7=\"SFFS305FR-WSF\",\"http://www.sapphireav.com/3m-Front-Projection-169-Fabric-Only_p_670.html\",IF(F7=\"SFFS244FR-WSF\",\"http://www.sapphireav.com/Rapid-Fold-Rear-Projection-fabric-for-SFFS244WSF_p_506.html\",IF(F7=\"SFFS365FR-WSF\",\"http://www.sapphireav.com/36m-Rear-Projection-169-Fabric-Only_p_672.html\",IF(F7=\"SFFS244RP\",\"http://www.sapphireav.com/Rapid-fold-244-Front-Projection-Fabric_p_160.html\",IF(F7=\"SFFS305RP\",\"http://www.sapphireav.com/Rapid-Fold-305-Front-Projection-Fabric_p_161.html\",IF(F7=\"SFFS305FR\",\"http://www.sapphireav.com/Rapid-Fold-305-Rear-Projection-Fabric_p_156.html\",IF(F7=\"SFFS305RP-WSF\",\"http://www.sapphireav.com/3m-Front-Projection-169-Fabric-Only_p_670.html\",IF(F7=\"SFFS365RP\",\"http://www.sapphireav.com/Rapid-Fold-365-Front-Projection-Fabric_p_162.html\",IF(F7=\"SFFS244FR\",\"http://www.sapphireav.com/Rapid-Fold-244-Rear-Projection-Fabric_p_153.html\",IF(F7=\"SFFS508FR\",\"http://www.sapphireav.com/Sapphire-5m-Rapid-Fold-Rear-Fabric-Only-43-Format_p_668.html\",IF(F7=\"SFFS404FR\",\"http://www.sapphireav.com/Rapid-Fold-404-Rear-Projection-Fabric_p_158.html\",IF(F7=\"SFFS404FR-WSF\",\"http://www.sapphireav.com/4m-Rear-Projection-169-Fabric-Only_p_666.html\",IF(F7=\"SFFS305RP10\",\"http://www.sapphireav.com/Sapphire-3m-Rapid-Fold-Front-Fabric-Only-1610-for-SFFS305FR10-or-SFFS305RP10_p_677.html\",IF(F7=\"SFFS305FR10\",\"http://www.sapphireav.com/Sapphire-3m-Rapid-Fold-Rear-Fabric-Only-1610-for-SFFS305FR10-or-SFFS305RP10_p_695.html\",IF(F7=\"SFFS365RP10\",\"http://www.sapphireav.com/Sapphire-36m-Rapid-Fold-Front-Fabric-Only-1610-for-SFFS365FR10-or-SFFS365RP10_p_688.html\",IF(F7=\"SFFS365FR10\",\"http://www.sapphireav.com/Sapphire-36m-Rear-Projecion-Rapid-Fold-Fabric-Only-1610-for-SFFS365FR10-or-SFFS365RP10_p_696.html\",IF(C7=\"SFFS365RP-WSF\",\"http://www.sapphireav.com/Sapphire-36m-Rapid-Fold-Front-Fabric-Only-169-for-SFFS365FR-WSF-or-SFFS365RP-WSF_p_693.html\",IF(F7=\"SFFS508RP\",\"http://www.sapphireav.com/Sapphire-5m-Rapid-Fold-Front-Fabric-Only-43-format_p_667.html\",IF(F7=\"SFFS365FR\",\"http://www.sapphireav.com/Rapid-Fold-365-Rear-Projection-Fabric_p_157.html\",IF(F7=\"SFFS203RP\",\"http://www.sapphireav.com/Rapid-Fold-203-Front-Projection-Fabric_p_159.html\",IF(F21=\"Easy reach pole\",HYPERLINK(\"http://www.sapphireav.com/Sapphire-Easy-Reach-Pole_p_108.html\",\"WebLink\"),IF(F21=\"Projector lifts\",HYPERLINK(\"http://www.sapphireav.com/Projector-Lifts_c_103.html\",\"Web Link\"),\"\")))))))))))))))))))))))))))))","v":""},""]
[null,"Option2",{"$f":"IF(LEFT(C7,5)=\"SEWS1\",\"Stand-off brackets\",IF(LEFT(C7,5)=\"SEWS2\",\"Stand-off brackets\",IF(LEFT(C7,5)=\"SEWS3\",\"Stand-off brackets\",IF(LEFT(C7,4)=\"SWS2\",\"Stand-off brackets\",IF(LEFT(C7,5)=\"SEWS4\",\"Stand-off brackets\",IF(LEFT(C7,5)=\"SEWS5\",\"Stand-off brackets\",IF(LEFT(C7,5)=\"SETTS\",\"Stand-off brackets\",IF(LEFT(C7,4)=\"SETC\",\"Projector lifts\",IF(LEFT(C7,4)=\"SESC\",\"Projector lifts\",IF(LEFT(C7,3)=\"SSM\",\"Projector lifts\",IF(LEFT(C7,3)=\"SFL\",\"VGA CABLES\",IF(LEFT(C7,4)=\"SFFS\",\"VGA CABLES\",IF(LEFT(C7,3)=\"SWS\",\"Stand-off brackets\",\" \")))))))))))))","v":"Stand-off brackets"},{"$f":"IF(LEFT(D7,5)=\"SEWS1\",\"Stand-off brackets\",IF(LEFT(D7,5)=\"SEWS2\",\"Stand-off brackets\",IF(LEFT(D7,5)=\"SEWS3\",\"Stand-off brackets\",IF(LEFT(D7,4)=\"SWS2\",\"Stand-off brackets\",IF(LEFT(D7,5)=\"SEWS4\",\"Stand-off brackets\",IF(LEFT(D7,5)=\"SEWS5\",\"Stand-off brackets\",IF(LEFT(D7,5)=\"SETTS\",\"Stand-off brackets\",IF(LEFT(D7,4)=\"SETC\",\"Projector lifts\",IF(LEFT(D7,4)=\"SESC\",\"Projector lifts\",IF(LEFT(D7,3)=\"SSM\",\"Projector lifts\",IF(LEFT(D7,3)=\"SFL\",\"VGA CABLES\",IF(LEFT(D7,4)=\"SFFS\",\"VGA CABLES\",IF(LEFT(D7,3)=\"SWS\",\"Stand-off brackets\",\" \")))))))))))))","v":"Stand-off brackets"},{"$f":"IF(LEFT(E7,5)=\"SEWS1\",\"Stand-off brackets\",IF(LEFT(E7,5)=\"SEWS2\",\"Stand-off brackets\",IF(LEFT(E7,5)=\"SEWS3\",\"Stand-off brackets\",IF(LEFT(E7,4)=\"SWS2\",\"Stand-off brackets\",IF(LEFT(E7,5)=\"SEWS4\",\"Stand-off brackets\",IF(LEFT(E7,5)=\"SEWS5\",\"Stand-off brackets\",IF(LEFT(E7,5)=\"SETTS\",\"Stand-off brackets\",IF(LEFT(E7,4)=\"SETC\",\"Projector lifts\",IF(LEFT(E7,4)=\"SESC\",\"Projector lifts\",IF(LEFT(E7,3)=\"SSM\",\"Projector lifts\",IF(LEFT(E7,3)=\"SFL\",\"VGA CABLES\",IF(LEFT(E7,4)=\"SFFS\",\"VGA CABLES\",IF(LEFT(E7,3)=\"SWS\",\"Stand-off brackets\",\"\")))))))))))))","v":"Stand-off brackets"},{"$f":"IF(LEFT(F7,5)=\"SEWS1\",\"Stand-off brackets\",IF(LEFT(F7,5)=\"SEWS2\",\"Stand-off brackets\",IF(LEFT(F7,5)=\"SEWS3\",\"Stand-off brackets\",IF(LEFT(F7,4)=\"SWS2\",\"Stand-off brackets\",IF(LEFT(F7,5)=\"SEWS4\",\"Stand-off brackets\",IF(LEFT(F7,5)=\"SEWS5\",\"Stand-off brackets\",IF(LEFT(F7,5)=\"SETTS\",\"Stand-off brackets\",IF(LEFT(F7,4)=\"SETC\",\"Projector lifts\",IF(LEFT(F7,4)=\"SESC\",\"Projector lifts\",IF(LEFT(F7,3)=\"SSM\",\"Projector lifts\",IF(LEFT(F7,3)=\"SFL\",\"VGA CABLES\",IF(LEFT(F7,4)=\"SFFS\",\"VGA CABLES\",IF(LEFT(F7,3)=\"SWS\",\"Stand-off brackets\",\"\")))))))))))))","v":""},""]
[null,"Web Links",{"$f":"IF(C23=\"Stand-off brackets\",HYPERLINK(\"http://www.sapphireav.com/L-Shape-Extension-Brackets-30cm_p_276.html\",\"WebLink\"),IF(C23=\"Projector lifts\",HYPERLINK(\"http://www.sapphireav.com/Projector-lift-for-small-ceiling-voids-_p_582.html\",\"Web Link\"),IF(C23=\"VGA CABLES\",HYPERLINK(\"http://www.sapphireav.com/VGA-Cables_c_81.html\",\"Web Link\"),\"\")))","v":"WebLink"},{"$f":"IF(D23=\"Stand-off brackets\",HYPERLINK(\"http://www.sapphireav.com/L-Shape-Extension-Brackets-30cm_p_276.html\",\"WebLink\"),IF(D23=\"Projector lifts\",HYPERLINK(\"http://www.sapphireav.com/Projector-lift-for-small-ceiling-voids-_p_582.html\",\"Web Link\"),IF(D23=\"VGA CABLES\",HYPERLINK(\"http://www.sapphireav.com/VGA-Cables_c_81.html\",\"Web Link\"),\"\")))","v":"WebLink"},{"$f":"IF(E23=\"Stand-off brackets\",HYPERLINK(\"http://www.sapphireav.com/L-Shape-Extension-Brackets-30cm_p_276.html\",\"WebLink\"),IF(E23=\"Projector lifts\",HYPERLINK(\"http://www.sapphireav.com/Projector-lift-for-small-ceiling-voids-_p_582.html\",\"Web Link\"),IF(E23=\"VGA CABLES\",HYPERLINK(\"http://www.sapphireav.com/VGA-Cables_c_81.html\",\"Web Link\"),\"\")))","v":"WebLink"},{"$f":"IF(F23=\"Stand-off brackets\",HYPERLINK(\"http://www.sapphireav.com/L-Shape-Extension-Brackets-30cm_p_276.html\",\"WebLink\"),IF(F23=\"Projector lifts\",HYPERLINK(\"http://www.sapphireav.com/Projector-lift-for-small-ceiling-voids-_p_582.html\",\"Web Link\"),IF(F23=\"VGA CABLES\",HYPERLINK(\"http://www.sapphireav.com/VGA-Cables_c_81.html\",\"Web Link\"),\"\")))","v":""},{"$f":"IF(G23=\"Stand-off brackets\",HYPERLINK(\"http://www.sapphireav.com/L-Shape-Extension-Brackets-30cm_p_276.html\",\"WebLink\"),IF(G23=\"Projector lifts\",HYPERLINK(\"http://www.sapphireav.com/Projector-lift-for-small-ceiling-voids-_p_582.html\",\"Web Link\"),IF(G23=\"VGA CABLES\",HYPERLINK(\"http://www.sapphireav.com/VGA-Cables_c_81.html\",\"Web Link\"),\"\")))","v":""}]
[null,"Option3",{"$f":"IF(RIGHT(C7,4)=\"03RP\",\"Drape Kit 4by3\",IF(RIGHT(C7,4)=\"03FR\",\"Drape Kit 4by3\",IF(RIGHT(C7,4)=\"05FR\",\"305-Drape Kit 4by3\",IF(RIGHT(C7,4)=\"05RP\",\"305-Drape Kit 4by3\",IF(RIGHT(C7,4)=\"44FR\",\"244-Drape Kit 4by3\",IF(RIGHT(C7,8)=\"44FR-WSF\",\"244-Drape Kit 16by9\",IF(RIGHT(C7,4)=\"44RP\",\"244-Drape Kit 4by3\",IF(RIGHT(C7,4)=\"44RP\",\"244-Drape Kit 4by3\",IF(RIGHT(C7,6)=\"3RP-WSF\",\"Drape Kit 16by9\",IF(RIGHT(C7,6)=\"44FR10\",\"244-Drape Kit 16by10\",IF(RIGHT(C7,6)=\"44RP10\",\"244-Drape Kit 16by10\",IF(RIGHT(C7,7)=\"3FR-WSF\",\"Drape Kit 16by9\",IF(RIGHT(C7,7)=\"3RP-WSF\",\"Drape Kit 16by9\",IF(RIGHT(C7,8)=\"44RP-WSF\",\"244-Drape Kit 16by9\",IF(RIGHT(C7,6)=\"05FR10\",\"305-Drape Kit 16by10\",IF(RIGHT(C7,6)=\"05RP10\",\"305-Drape Kit 16by10\",IF(RIGHT(C7,8)=\"05RP-WSF\",\"305-Drape Kit 16by9\",IF(RIGHT(C7,8)=\"05FR-WSF\",\"305-Drape Kit 16by9\",IF(RIGHT(C7,6)=\"65FR10\",\"365-Drape Kit 16by10\",IF(RIGHT(C7,6)=\"04FR10\",\"404-Drape Kit 16by10\",IF(RIGHT(C7,6)=\"04RP10\",\"404-Drape Kit 16by10\",IF(RIGHT(C7,6)=\"65RP10\",\"365-Drape Kit 16by10\",IF(RIGHT(C7,8)=\"65FR-WSF\",\"365-Drape Kit 16by9\",IF(RIGHT(C7,8)=\"65RP-WSF\",\"365-Drape Kit 16by9\",IF(RIGHT(C7,8)=\"04RP-WSF\",\"404-Drape Kit 16by9\",IF(RIGHT(C7,8)=\"04FR-WSF\",\"404-Drape Kit 16by9\",IF(RIGHT(C7,4)=\"65RP\",\"365-Drape Kit 4by3\",IF(RIGHT(C7,4)=\"65FR\",\"365-Drape Kit 4by3\",IF(RIGHT(C7,4)=\"04FR\",\"404-Drape Kit 4by3\",IF(LEFT(C7,5)=\"SEWS3\",\"STR\",IF(LEFT(C7,4)=\"SESC\",\"STR\",IF(LEFT(C7,5)=\"SETTS\",\"STR\",IF(RIGHT(C7,4)=\"04RP\",\"404-Drape Kit 4by3\",IF(RIGHT(C7,6)=\"03FR10\",\"Drape Kit 16by10\",IF(RIGHT(C7,6)=\"03RP10\",\"Drape Kit 16by10\",\"\")))))))))))))))))))))))))))))))))))","v":"STR"},{"$f":"IF(RIGHT(D7,4)=\"03RP\",\"Drape Kit 4by3\",IF(RIGHT(D7,4)=\"03FR\",\"Drape Kit 4by3\",IF(RIGHT(D7,4)=\"05FR\",\"305-Drape Kit 4by3\",IF(RIGHT(D7,4)=\"05RP\",\"305-Drape Kit 4by3\",IF(RIGHT(D7,4)=\"44FR\",\"244-Drape Kit 4by3\",IF(RIGHT(D7,8)=\"44FR-WSF\",\"244-Drape Kit 16by9\",IF(RIGHT(D7,4)=\"44RP\",\"244-Drape Kit 4by3\",IF(RIGHT(D7,4)=\"44RP\",\"244-Drape Kit 4by3\",IF(RIGHT(D7,6)=\"3RP-WSF\",\"Drape Kit 16by9\",IF(RIGHT(D7,6)=\"44FR10\",\"244-Drape Kit 16by10\",IF(RIGHT(D7,6)=\"44RP10\",\"244-Drape Kit 16by10\",IF(RIGHT(D7,7)=\"3FR-WSF\",\"Drape Kit 16by9\",IF(RIGHT(D7,7)=\"3RP-WSF\",\"Drape Kit 16by9\",IF(RIGHT(D7,8)=\"44RP-WSF\",\"244-Drape Kit 16by9\",IF(RIGHT(D7,6)=\"05FR10\",\"305-Drape Kit 16by10\",IF(RIGHT(D7,6)=\"05RP10\",\"305-Drape Kit 16by10\",IF(RIGHT(D7,8)=\"05RP-WSF\",\"305-Drape Kit 16by9\",IF(RIGHT(D7,8)=\"05FR-WSF\",\"305-Drape Kit 16by9\",IF(RIGHT(D7,6)=\"65FR10\",\"365-Drape Kit 16by10\",IF(RIGHT(D7,6)=\"04FR10\",\"404-Drape Kit 16by10\",IF(RIGHT(D7,6)=\"04RP10\",\"404-Drape Kit 16by10\",IF(RIGHT(D7,6)=\"65RP10\",\"365-Drape Kit 16by10\",IF(RIGHT(D7,8)=\"65FR-WSF\",\"365-Drape Kit 16by9\",IF(RIGHT(D7,8)=\"65RP-WSF\",\"365-Drape Kit 16by9\",IF(RIGHT(D7,8)=\"04RP-WSF\",\"404-Drape Kit 16by9\",IF(RIGHT(D7,8)=\"04FR-WSF\",\"404-Drape Kit 16by9\",IF(RIGHT(D7,4)=\"65RP\",\"365-Drape Kit 4by3\",IF(RIGHT(D7,4)=\"65FR\",\"365-Drape Kit 4by3\",IF(RIGHT(D7,4)=\"04FR\",\"404-Drape Kit 4by3\",IF(LEFT(D7,5)=\"SEWS3\",\"STR\",IF(LEFT(D7,4)=\"SESC\",\"STR\",IF(LEFT(D7,5)=\"SETTS\",\"STR\",IF(RIGHT(D7,4)=\"04RP\",\"404-Drape Kit 4by3\",IF(RIGHT(D7,6)=\"03FR10\",\"Drape Kit 16by10\",IF(RIGHT(D7,6)=\"03RP10\",\"Drape Kit 16by10\",\"\")))))))))))))))))))))))))))))))))))","v":"STR"},"STR","",""]
[null,"Web Links",{"$f":"IF(C25=\"Drape kIT 4by3\",HYPERLINK(\"http://www.sapphireav.com/Sapphire-2m-Drapery-kit-for-SFFS203FR-or-SFFS203RP-in-Blue_p_702.html\",\"WebLink\"),IF(C25=\"Drape Kit 16by9\",HYPERLINK(\"http://www.sapphireav.com/Sapphire-2m-Drapery-kit-for-SFFS203FR-WSF-or-SFFS203RP-WSF-in-Black_p_703.html\",\"WebLink\"),IF(C25=\"244-Drape Kit 16by9\",HYPERLINK(\"http://www.sapphireav.com/Sapphire-24m-Drapery-kit-for-SFFS244FR-WSF-or-SFFS244RP-WSF-in-Black_p_706.html\",\"WebLink\"),IF(C25=\"244-DRAPE Kit 4by3\",HYPERLINK(\"http://www.sapphireav.com/Sapphire-24m-Drapery-kit-for-SFFS244FR-or-SFFS244RP-in-Blue_p_705.html\",\"WebLink\"),IF(C25=\"244-Drape Kit 16by10\",HYPERLINK(\"http://www.sapphireav.com/Sapphire-24m-Drapery-kit-for-SFFS244FR10-or-SFFS244RP10-in-Black_p_707.html\",\"WebLink\"),IF(C25=\"305-DRAPE Kit 16BY9\",HYPERLINK(\"http://www.sapphireav.com/Sapphire-3m-Drapery-kit-for-SFFS305FR-WSF-or-SFFS305RP-WSF-in-Black_p_710.html\",\"WebLink\"),IF(C25=\"305-DRAPE Kit 4by3\",HYPERLINK(\"http://www.sapphireav.com/Sapphire-3m-Drapery-kit-for-SFFS305FR-or-SFFS305RP-in-Black_p_709.html\",\"WebLink\"),IF(C25=\"365-DRAPE Kit 4by3\",HYPERLINK(\"http://www.sapphireav.com/Sapphire-36m-Drapery-kit-for-SFFS365FR-or-SFFS365RP-in-Black_p_712.html\",\"WebLink\"),IF(C25=\"365-Drape Kit 16by10\",HYPERLINK(\"http://www.sapphireav.com/Sapphire-36m-Drapery-kit-for-SFFS365FR10-or-SFFS365RP10-in-Black_p_714.html\",\"WebLink\"),IF(C25=\"365-Drape Kit 16by9\",HYPERLINK(\"http://www.sapphireav.com/Sapphire-36m-Drapery-kit-for-SFFS365FR-WSF-or-SFFS365RP-WSF-in-Black_p_713.html\",\"WebLink\"),IF(C25=\"404-DRAPE Kit 16by10\",HYPERLINK(\"http://www.sapphireav.com/Sapphire-4m-Drapery-kit-for-SFFS404FR10-or-SFFS404RP10-in-Black_p_717.html\",\"WebLink\"),IF(C25=\"404-DRAPE Kit 16by9\",HYPERLINK(\"http://www.sapphireav.com/Sapphire-4m-Drapery-kit-for-SFFS404FR-WSF-or-SFFS404RP-WSF-in-Black_p_716.html\",\"WebLink\"),IF(C25=\"404-DRAPE Kit 4by3\",HYPERLINK(\"http://www.sapphireav.com/Sapphire-4m-Drapery-kit-for-SFFS404FR-or-SFFS404RP-in-Black_p_715.html\",\"WebLink\"),IF(C25=\"305-DRAPE Kit 16BY10\",HYPERLINK(\"http://www.sapphireav.com/Sapphire-3m-Drapery-kit-for-SFFS305FR10-or-SFFS305RP10-in-Black_p_711.html\",\"WebLink\"),IF(C25=\"STR\",HYPERLINK(\"http://www.sapphireav.com/Sapphire-Auto-Trigger-System_p_16.html\",\"WebLink\"),IF(C25=\"Drape Kit 16by10\",HYPERLINK(\"http://www.sapphireav.com/Sapphire-2m-Drapery-kit-for-SFFS203FR10-or-SFFS203RP10-in-Black_p_704.html\",\"WebLink\"),\"\"))))))))))))))))","v":"WebLink"},{"$f":"IF(D25=\"Drape kIT 4by3\",HYPERLINK(\"http://www.sapphireav.com/Sapphire-2m-Drapery-kit-for-SFFS203FR-or-SFFS203RP-in-Blue_p_702.html\",\"WebLink\"),IF(D25=\"Drape Kit 16by9\",HYPERLINK(\"http://www.sapphireav.com/Sapphire-2m-Drapery-kit-for-SFFS203FR-WSF-or-SFFS203RP-WSF-in-Black_p_703.html\",\"WebLink\"),IF(D25=\"244-Drape Kit 16by9\",HYPERLINK(\"http://www.sapphireav.com/Sapphire-24m-Drapery-kit-for-SFFS244FR-WSF-or-SFFS244RP-WSF-in-Black_p_706.html\",\"WebLink\"),IF(D25=\"244-DRAPE Kit 4by3\",HYPERLINK(\"http://www.sapphireav.com/Sapphire-24m-Drapery-kit-for-SFFS244FR-or-SFFS244RP-in-Blue_p_705.html\",\"WebLink\"),IF(D25=\"244-Drape Kit 16by10\",HYPERLINK(\"http://www.sapphireav.com/Sapphire-24m-Drapery-kit-for-SFFS244FR10-or-SFFS244RP10-in-Black_p_707.html\",\"WebLink\"),IF(D25=\"305-DRAPE Kit 16BY9\",HYPERLINK(\"http://www.sapphireav.com/Sapphire-3m-Drapery-kit-for-SFFS305FR-WSF-or-SFFS305RP-WSF-in-Black_p_710.html\",\"WebLink\"),IF(D25=\"305-DRAPE Kit 4by3\",HYPERLINK(\"http://www.sapphireav.com/Sapphire-3m-Drapery-kit-for-SFFS305FR-or-SFFS305RP-in-Black_p_709.html\",\"WebLink\"),IF(D25=\"365-DRAPE Kit 4by3\",HYPERLINK(\"http://www.sapphireav.com/Sapphire-36m-Drapery-kit-for-SFFS365FR-or-SFFS365RP-in-Black_p_712.html\",\"WebLink\"),IF(D25=\"365-Drape Kit 16by10\",HYPERLINK(\"http://www.sapphireav.com/Sapphire-36m-Drapery-kit-for-SFFS365FR10-or-SFFS365RP10-in-Black_p_714.html\",\"WebLink\"),IF(D25=\"365-Drape Kit 16by9\",HYPERLINK(\"http://www.sapphireav.com/Sapphire-36m-Drapery-kit-for-SFFS365FR-WSF-or-SFFS365RP-WSF-in-Black_p_713.html\",\"WebLink\"),IF(D25=\"404-DRAPE Kit 16by10\",HYPERLINK(\"http://www.sapphireav.com/Sapphire-4m-Drapery-kit-for-SFFS404FR10-or-SFFS404RP10-in-Black_p_717.html\",\"WebLink\"),IF(D25=\"404-DRAPE Kit 16by9\",HYPERLINK(\"http://www.sapphireav.com/Sapphire-4m-Drapery-kit-for-SFFS404FR-WSF-or-SFFS404RP-WSF-in-Black_p_716.html\",\"WebLink\"),IF(D25=\"404-DRAPE Kit 4by3\",HYPERLINK(\"http://www.sapphireav.com/Sapphire-4m-Drapery-kit-for-SFFS404FR-or-SFFS404RP-in-Black_p_715.html\",\"WebLink\"),IF(D25=\"305-DRAPE Kit 16BY10\",HYPERLINK(\"http://www.sapphireav.com/Sapphire-3m-Drapery-kit-for-SFFS305FR10-or-SFFS305RP10-in-Black_p_711.html\",\"WebLink\"),IF(D25=\"STR\",HYPERLINK(\"http://www.sapphireav.com/Sapphire-Auto-Trigger-System_p_16.html\",\"WebLink\"),IF(D25=\"Drape Kit 16by10\",HYPERLINK(\"http://www.sapphireav.com/Sapphire-2m-Drapery-kit-for-SFFS203FR10-or-SFFS203RP10-in-Black_p_704.html\",\"WebLink\"),\"\"))))))))))))))))","v":"WebLink"},"WebLink","",""]
[null,"Option4",{"$f":"IF(RIGHT(C7,3)=\"ATR\",\"IP Control box\",IF(LEFT(C7,5)=\"SETTS\",\"IP Control box\",IF(LEFT(C7,4)=\"SETC\",\"IP Control box\",IF(RIGHT(C7,5)=\"ATR10\",\"IP Control box\",IF(LEFT(C7,5)=\"SEWS4\",\"IP Control box\",IF(LEFT(C7,8)=\"SEWS180R\",\"IP Control box\",IF(LEFT(C7,5)=\"SEWS3\",\"IP Control box\",IF(LEFT(C7,8)=\"SEWS200R\",\"IP Control box\",IF(RIGHT(C7,5)=\"ATRAC\",\"IP Control box\",IF(LEFT(C7,4)=\"SESC\",\"IP Control box\",\" \"))))))))))","v":"IP Control box"},{"$f":"IF(RIGHT(D7,3)=\"ATR\",\"IP Control box\",IF(LEFT(D7,5)=\"SETTS\",\"IP Control box\",IF(LEFT(D7,4)=\"SETC\",\"IP Control box\",IF(RIGHT(D7,5)=\"ATR10\",\"IP Control box\",IF(LEFT(D7,5)=\"SEWS4\",\"IP Control box\",IF(LEFT(D7,8)=\"SEWS180R\",\"IP Control box\",IF(LEFT(D7,5)=\"SEWS3\",\"IP Control box\",IF(LEFT(D7,8)=\"SEWS200R\",\"IP Control box\",IF(RIGHT(D7,5)=\"ATRAC\",\"IP Control box\",IF(LEFT(D7,4)=\"SESC\",\"IP Control box\",\" \"))))))))))","v":"IP Control box"},{"$f":"IF(RIGHT(E7,3)=\"ATR\",\"IP Control box\",IF(LEFT(E7,5)=\"SETTS\",\"IP Control box\",IF(LEFT(E7,4)=\"SETC\",\"IP Control box\",IF(RIGHT(E7,5)=\"ATR10\",\"IP Control box\",IF(LEFT(E7,5)=\"SEWS4\",\"IP Control box\",IF(LEFT(E7,8)=\"SEWS180R\",\"IP Control box\",IF(LEFT(E7,5)=\"SEWS3\",\"IP Control box\",IF(LEFT(E7,8)=\"SEWS200R\",\"IP Control box\",IF(RIGHT(E7,5)=\"ATRAC\",\"IP Control box\",IF(LEFT(E7,4)=\"SESC\",\"IP Control box\",\" \"))))))))))","v":"IP Control box"},{"$f":"IF(RIGHT(F1,3)=\"ATR\",\"IP Control box\",IF(LEFT(F1,5)=\"SETTS\",\"IP Control box\",IF(LEFT(F1,4)=\"SETC\",\"IP Control box\",IF(RIGHT(F1,5)=\"ATR10\",\"IP Control box\",IF(LEFT(F1,5)=\"SEWS4\",\"IP Control box\",IF(LEFT(F1,8)=\"SEWS180R\",\"IP Control box\",IF(LEFT(F1,5)=\"SEWS3\",\"IP Control box\",IF(LEFT(F1,8)=\"SEWS200R\",\"IP Control box\",IF(RIGHT(F1,5)=\"ATRAC\",\"IP Control box\",IF(LEFT(F1,4)=\"SESC\",\"IP Control box\",\" \"))))))))))","v":" "},{"$f":"IF(RIGHT(G7,3)=\"ATR\",\"IP Control box\",IF(LEFT(G7,5)=\"SETTS\",\"IP Control box\",IF(LEFT(G7,4)=\"SETC\",\"IP Control box\",IF(RIGHT(G7,5)=\"ATR10\",\"IP Control box\",IF(LEFT(G7,5)=\"SEWS4\",\"IP Control box\",IF(LEFT(G7,8)=\"SEWS180R\",\"IP Control box\",IF(LEFT(G7,5)=\"SEWS3\",\"IP Control box\",IF(LEFT(G7,8)=\"SEWS200R\",\"IP Control box\",IF(RIGHT(G7,5)=\"ATRAC\",\"IP Control box\",IF(LEFT(G7,4)=\"SESC\",\"IP Control box\",\"\"))))))))))","v":""}]
[null,"Web Links",{"$f":"IF(C27=\"IP Control Box\",HYPERLINK(\"http://www.sapphireav.com/Sapphire-IP-Control-Box_p_660.html\",\"WebLink\"),\"\")","v":"WebLink"},{"$f":"IF(D27=\"IP Control Box\",HYPERLINK(\"http://www.sapphireav.com/Sapphire-IP-Control-Box_p_660.html\",\"WebLink\"),\"\")","v":"WebLink"},{"$f":"IF(E27=\"IP Control Box\",HYPERLINK(\"http://www.sapphireav.com/Sapphire-IP-Control-Box_p_660.html\",\"WebLink\"),\"\")","v":"WebLink"},{"$f":"IF(F27=\"IP Control Box\",HYPERLINK(\"http://www.sapphireav.com/Sapphire-IP-Control-Box_p_660.html\",\"WebLink\"),\"\")","v":""},{"$f":"IF(G27=\"IP Control Box\",HYPERLINK(\"http://www.sapphireav.com/Sapphire-IP-Control-Box_p_660.html\",\"WebLink\"),\"\")","v":""}]
[]
[null,"If you need any help with your quote please call 01633 895918 (option 1) "]
[null,"or we are available on Skype ","(sapphireav) - click the link =",{"$f":"HYPERLINK(\"skype://sapphireav\")","v":"skype://sapphireav"}]
[]
[]
[]
[]
[]
[]
[]
[]
[]
[]
[]
[]
[]
[]
[]
[]
[]
[]
[]
[]
[null,null,null,null,null,null,null,null,null,null,null,null,null,null,null,null,null,null,null,null,null,null,null,null,null,null,1]
[null,null,null,null,null,null,null,null,null,null,null,null,null,null,null,null,null,null,null,null,null,null,null,null,null,null,18]
[null,null,null,null,null,null,null,null,null,null,null,null,null,null,null,null,null,null,null,null,null,null,null,null,null,null,11]
[null,null,null,null,null,null,null,null,null,null,null,null,null,null,null,null,null,null,null,null,null,null,null,null,null,null,3]
[null,null,null,null,null,null,null,null,null,null,null,null,null,null,null,null,null,null,null,null,null,null,null,null,null,null,1]
[null,null,null,null,null,null,null,null,null,null,null,null,null,null,null,null,null,null,null,null,null,null,null,null,null,null,5]
[null,null,null,null,null,null,null,null,null,null,null,null,null,null,null,null,null,null,null,null,null,null,null,null,null,null,12]
[null,null,null,null,null,null,null,null,null,null,null,null,null,null,null,null,null,null,null,null,null,null,null,null,null,null,1]
[null,null,null,null,null,null,null,null,null,null,null,null,null,null,null,null,null,null,null,null,null,null,null,null,null,null,2]
[null,null,null,null,null,null,null,null,null,null,null,null,null,null,null,null,null,null,null,null,null,null,null,null,null,null,6]
[null,null,null,null,null,null,null,null,null,null,null,null,null,null,null,null,null,null,null,null,null,null,null,null,null,null,2]
[null,null,null,null,null,null,null,null,null,null,null,null,null,null,null,null,null,null,null,null,null,null,null,null,null,null,0]
[null,null,null,null,null,null,null,null,null,null,null,null,null,null,null,null,null,null,null,null,null,null,null,null,null,null,1]
[null,null,null,null,null,null,null,null,null,null,null,null,null,null,null,null,null,null,null,null,null,null,null,null,null,null,0]
[null,null,null,null,null,null,null,null,null,null,null,null,null,null,null,null,null,null,null,null,null,null,null,null,null,null,2]
[null,null,null,null,null,null,null,null,null,null,null,null,null,null,null,null,null,null,null,null,null,null,null,null,null,null,2]
[null,null,null,null,null,null,null,null,null,null,null,null,null,null,null,null,null,null,null,null,null,null,null,null,null,null,14]
[null,null,null,null,null,null,null,null,null,null,null,null,null,null,null,null,null,null,null,null,null,null,null,null,null,null,5]
[null,null,null,null,null,null,null,null,null,null,null,null,null,null,null,null,null,null,null,null,null,null,null,null,null,null,2]
[null,null,null,null,null,null,null,null,null,null,null,null,null,null,null,null,null,null,null,null,null,null,null,null,null,null,2]
[null,null,null,null,null,null,null,null,null,null,null,null,null,null,null,null,null,null,null,null,null,null,null,null,null,null,2]
[null,null,null,null,null,null,null,null,null,null,null,null,null,null,null,null,null,null,null,null,null,null,null,null,null,null,14]
[null,null,null,null,null,null,null,null,null,null,null,null,null,null,null,null,null,null,null,null,null,null,null,null,null,null,12]
[null,null,null,null,null,null,null,null,null,null,null,null,null,null,null,null,null,null,null,null,null,null,null,null,null,null,53]
[null,null,null,null,null,null,null,null,null,null,null,null,null,null,null,null,null,null,null,null,null,null,null,null,null,null,16]
[null,null,null,null,null,null,null,null,null,null,null,null,null,null,null,null,null,null,null,null,null,null,null,null,null,null,3]
[null,null,null,null,null,null,null,null,null,null,null,null,null,null,null,null,null,null,null,null,null,null,null,null,null,null,2]
[null,null,null,null,null,null,null,null,null,null,null,null,null,null,null,null,null,null,null,null,null,null,null,null,null,null,2]
[null,null,null,null,null,null,null,null,null,null,null,null,null,null,null,null,null,null,null,null,null,null,null,null,null,null,2]
[null,null,null,null,null,null,null,null,null,null,null,null,null,null,null,null,null,null,null,null,null,null,null,null,null,null,17]
[null,null,null,null,null,null,null,null,null,null,null,null,null,null,null,null,null,null,null,null,null,null,null,null,null,null,71]
[null,null,null,null,null,null,null,null,null,null,null,null,null,null,null,null,null,null,null,null,null,null,null,null,null,null,58]
[null,null,null,null,null,null,null,null,null,null,null,null,null,null,null,null,null,null,null,null,null,null,null,null,null,null,3]
[null,null,null,null,null,null,null,null,null,null,null,null,null,null,null,null,null,null,null,null,null,null,null,null,null,null,2]
[null,null,null,null,null,null,null,null,null,null,null,null,null,null,null,null,null,null,null,null,null,null,null,null,null,null,2]
[null,null,null,null,null,null,null,null,null,null,null,null,null,null,null,null,null,null,null,null,null,null,null,null,null,null,2]
[null,null,null,null,null,null,null,null,null,null,null,null,null,null,null,null,null,null,null,null,null,null,null,null,null,null,12]
[null,null,null,null,null,null,null,null,null,null,null,null,null,null,null,null,null,null,null,null,null,null,null,null,null,null,142]
[null,null,null,null,null,null,null,null,null,null,null,null,null,null,null,null,null,null,null,null,null,null,null,null,null,null,79]
[null,null,null,null,null,null,null,null,null,null,null,null,null,null,null,null,null,null,null,null,null,null,null,null,null,null,6]
[null,null,null,null,null,null,null,null,null,null,null,null,null,null,null,null,null,null,null,null,null,null,null,null,null,null,2]
[null,null,null,null,null,null,null,null,null,null,null,null,null,null,null,null,null,null,null,null,null,null,null,null,null,null,12]
[null,null,null,null,null,null,null,null,null,null,null,null,null,null,null,null,null,null,null,null,null,null,null,null,null,null,50]
[null,null,null,null,null,null,null,null,null,null,null,null,null,null,null,null,null,null,null,null,null,null,null,null,null,null,47]
[null,null,null,null,null,null,null,null,null,null,null,null,null,null,null,null,null,null,null,null,null,null,null,null,null,null,0]
[null,null,null,null,null,null,null,null,null,null,null,null,null,null,null,null,null,null,null,null,null,null,null,null,null,null,23]
[null,null,null,null,null,null,null,null,null,null,null,null,null,null,null,null,null,null,null,null,null,null,null,null,null,null,5]
[null,null,null,null,null,null,null,null,null,null,null,null,null,null,null,null,null,null,null,null,null,null,null,null,null,null,102]
[null,null,null,null,null,null,null,null,null,null,null,null,null,null,null,null,null,null,null,null,null,null,null,null,null,null,13]
[null,null,null,null,null,null,null,null,null,null,null,null,null,null,null,null,null,null,null,null,null,null,null,null,null,null,34]
[null,null,null,null,null,null,null,null,null,null,null,null,null,null,null,null,null,null,null,null,null,null,null,null,null,null,21]
[null,null,null,null,null,null,null,null,null,null,null,null,null,null,null,null,null,null,null,null,null,null,null,null,null,null,2]
[null,null,null,null,null,null,null,null,null,null,null,null,null,null,null,null,null,null,null,null,null,null,null,null,null,null,11]
[null,null,null,null,null,null,null,null,null,null,null,null,null,null,null,null,null,null,null,null,null,null,null,null,null,null,22]
[null,null,null,null,null,null,null,null,null,null,null,null,null,null,null,null,null,null,null,null,null,null,null,null,null,null,11]
[null,null,null,null,null,null,null,null,null,null,null,null,null,null,null,null,null,null,null,null,null,null,null,null,null,null,2]
[null,null,null,null,null,null,null,null,null,null,null,null,null,null,null,null,null,null,null,null,null,null,null,null,null,null,3]
[null,null,null,null,null,null,null,null,null,null,null,null,null,null,null,null,null,null,null,null,null,null,null,null,null,null,7]
[null,null,null,null,null,null,null,null,null,null,null,null,null,null,null,null,null,null,null,null,null,null,null,null,null,null,6]
[null,null,null,null,null,null,null,null,null,null,null,null,null,null,null,null,null,null,null,null,null,null,null,null,null,null,1]
[null,null,null,null,null,null,null,null,null,null,null,null,null,null,null,null,null,null,null,null,null,null,null,null,null,null,4]
[null,null,null,null,null,null,null,null,null,null,null,null,null,null,null,null,null,null,null,null,null,null,null,null,null,null,0]
[null,null,null,null,null,null,null,null,null,null,null,null,null,null,null,null,null,null,null,null,null,null,null,null,null,null,0]
[null,null,null,null,null,null,null,null,null,null,null,null,null,null,null,null,null,null,null,null,null,null,null,null,null,null,0]
[null,null,null,null,null,null,null,null,null,null,null,null,null,null,null,null,null,null,null,null,null,null,null,null,null,null,0]
[null,null,null,null,null,null,null,null,null,null,null,null,null,null,null,null,null,null,null,null,null,null,null,null,null,null,3]
[null,null,null,null,null,null,null,null,null,null,null,null,null,null,null,null,null,null,null,null,null,null,null,null,null,null,4]
[null,null,null,null,null,null,null,null,null,null,null,null,null,null,null,null,null,null,null,null,null,null,null,null,null,null,0]
[null,null,null,null,null,null,null,null,null,null,null,null,null,null,null,null,null,null,null,null,null,null,null,null,null,null,5]
[null,null,null,null,null,null,null,null,null,null,null,null,null,null,null,null,null,null,null,null,null,null,null,null,null,null,5]
[null,null,null,null,null,null,null,null,null,null,null,null,null,null,null,null,null,null,null,null,null,null,null,null,null,null,6]
[null,null,null,null,null,null,null,null,null,null,null,null,null,null,null,null,null,null,null,null,null,null,null,null,null,null,2]
[null,null,null,null,null,null,null,null,null,null,null,null,null,null,null,null,null,null,null,null,null,null,null,null,null,null,0]
[null,null,null,null,null,null,null,null,null,null,null,null,null,null,null,null,null,null,null,null,null,null,null,null,null,null,0]
[null,null,null,null,null,null,null,null,null,null,null,null,null,null,null,null,null,null,null,null,null,null,null,null,null,null,2]
[null,null,null,null,null,null,null,null,null,null,null,null,null,null,null,null,null,null,null,null,null,null,null,null,null,null,2]
[null,null,null,null,null,null,null,null,null,null,null,null,null,null,null,null,null,null,null,null,null,null,null,null,null,null,2]
[null,null,null,null,null,null,null,null,null,null,null,null,null,null,null,null,null,null,null,null,null,null,null,null,null,null,3]
[null,null,null,null,null,null,null,null,null,null,null,null,null,null,null,null,null,null,null,null,null,null,null,null,null,null,0]
[null,null,null,null,null,null,null,null,null,null,null,null,null,null,null,null,null,null,null,null,null,null,null,null,null,null,1]
[null,null,null,null,null,null,null,null,null,null,null,null,null,null,null,null,null,null,null,null,null,null,null,null,null,null,5]
[null,null,null,null,null,null,null,null,null,null,null,null,null,null,null,null,null,null,null,null,null,null,null,null,null,null,0]
[null,null,null,null,null,null,null,null,null,null,null,null,null,null,null,null,null,null,null,null,null,null,null,null,null,null,0]
[null,null,null,null,null,null,null,null,null,null,null,null,null,null,null,null,null,null,null,null,null,null,null,null,null,null,1]
[null,null,null,null,null,null,null,null,null,null,null,null,null,null,null,null,null,null,null,null,null,null,null,null,null,null,1]
[null,null,null,null,null,null,null,null,null,null,null,null,null,null,null,null,null,null,null,null,null,null,null,null,null,null,4]
[null,null,null,null,null,null,null,null,null,null,null,null,null,null,null,null,null,null,null,null,null,null,null,null,null,null,0]
[null,null,null,null,null,null,null,null,null,null,null,null,null,null,null,null,null,null,null,null,null,null,null,null,null,null,3]
[null,null,null,null,null,null,null,null,null,null,null,null,null,null,null,null,null,null,null,null,null,null,null,null,null,null,0]
[null,null,null,null,null,null,null,null,null,null,null,null,null,null,null,null,null,null,null,null,null,null,null,null,null,null,6]
[null,null,null,null,null,null,null,null,null,null,null,null,null,null,null,null,null,null,null,null,null,null,null,null,null,null,1]
[null,null,null,null,null,null,null,null,null,null,null,null,null,null,null,null,null,null,null,null,null,null,null,null,null,null,1]
[null,null,null,null,null,null,null,null,null,null,null,null,null,null,null,null,null,null,null,null,null,null,null,null,null,null,0]
[null,null,null,null,null,null,null,null,null,null,null,null,null,null,null,null,null,null,null,null,null,null,null,null,null,null,3]
[null,null,null,null,null,null,null,null,null,null,null,null,null,null,null,null,null,null,null,null,null,null,null,null,null,null,12]
[null,null,null,null,null,null,null,null,null,null,null,null,null,null,null,null,null,null,null,null,null,null,null,null,null,null,6]
[null,null,null,null,null,null,null,null,null,null,null,null,null,null,null,null,null,null,null,null,null,null,null,null,null,null,1]
[null,null,null,null,null,null,null,null,null,null,null,null,null,null,null,null,null,null,null,null,null,null,null,null,null,null,0]
[null,null,null,null,null,null,null,null,null,null,null,null,null,null,null,null,null,null,null,null,null,null,null,null,null,null,5]
[null,null,null,null,null,null,null,null,null,null,null,null,null,null,null,null,null,null,null,null,null,null,null,null,null,null,1]
[null,null,null,null,null,null,null,null,null,null,null,null,null,null,null,null,null,null,null,null,null,null,null,null,null,null,1]
[null,null,null,null,null,null,null,null,null,null,null,null,null,null,null,null,null,null,null,null,null,null,null,null,null,null,5]
[null,null,null,null,null,null,null,null,null,null,null,null,null,null,null,null,null,null,null,null,null,null,null,null,null,null,0]
[null,null,null,null,null,null,null,null,null,null,null,null,null,null,null,null,null,null,null,null,null,null,null,null,null,null,0]
[null,null,null,null,null,null,null,null,null,null,null,null,null,null,null,null,null,null,null,null,null,null,null,null,null,null,2]
[null,null,null,null,null,null,null,null,null,null,null,null,null,null,null,null,null,null,null,null,null,null,null,null,null,null,4]
[null,null,null,null,null,null,null,null,null,null,null,null,null,null,null,null,null,null,null,null,null,null,null,null,null,null,1]
[null,null,null,null,null,null,null,null,null,null,null,null,null,null,null,null,null,null,null,null,null,null,null,null,null,null,3]
[null,null,null,null,null,null,null,null,null,null,null,null,null,null,null,null,null,null,null,null,null,null,null,null,null,null,0]
[null,null,null,null,null,null,null,null,null,null,null,null,null,null,null,null,null,null,null,null,null,null,null,null,null,null,1]
[null,null,null,null,null,null,null,null,null,null,null,null,null,null,null,null,null,null,null,null,null,null,null,null,null,null,4]
[null,null,null,null,null,null,null,null,null,null,null,null,null,null,null,null,null,null,null,null,null,null,null,null,null,null,2]
[null,null,null,null,null,null,null,null,null,null,null,null,null,null,null,null,null,null,null,null,null,null,null,null,null,null,2]
[null,null,null,null,null,null,null,null,null,null,null,null,null,null,null,null,null,null,null,null,null,null,null,null,null,null,3]
[null,null,null,null,null,null,null,null,null,null,null,null,null,null,null,null,null,null,null,null,null,null,null,null,null,null,6]
[null,null,null,null,null,null,null,null,null,null,null,null,null,null,null,null,null,null,null,null,null,null,null,null,null,null,0]
[null,null,null,null,null,null,null,null,null,null,null,null,null,null,null,null,null,null,null,null,null,null,null,null,null,null,2]
[null,null,null,null,null,null,null,null,null,null,null,null,null,null,null,null,null,null,null,null,null,null,null,null,null,null,3]
[null,null,null,null,null,null,null,null,null,null,null,null,null,null,null,null,null,null,null,null,null,null,null,null,null,null,0]
[null,null,null,null,null,null,null,null,null,null,null,null,null,null,null,null,null,null,null,null,null,null,null,null,null,null,0]
[null,null,null,null,null,null,null,null,null,null,null,null,null,null,null,null,null,null,null,null,null,null,null,null,null,null,0]
[null,null,null,null,null,null,null,null,null,null,null,null,null,null,null,null,null,null,null,null,null,null,null,null,null,null,0]
[null,null,null,null,null,null,null,null,null,null,null,null,null,null,null,null,null,null,null,null,null,null,null,null,null,null,0]
[null,null,null,null,null,null,null,null,null,null,null,null,null,null,null,null,null,null,null,null,null,null,null,null,null,null,0]
[null,null,null,null,null,null,null,null,null,null,null,null,null,null,null,null,null,null,null,null,null,null,null,null,null,null,0]
[null,null,null,null,null,null,null,null,null,null,null,null,null,null,null,null,null,null,null,null,null,null,null,null,null,null,0]
[null,null,null,null,null,null,null,null,null,null,null,null,null,null,null,null,null,null,null,null,null,null,null,null,null,null,1]
[null,null,null,null,null,null,null,null,null,null,null,null,null,null,null,null,null,null,null,null,null,null,null,null,null,null,1]
[null,null,null,null,null,null,null,null,null,null,null,null,null,null,null,null,null,null,null,null,null,null,null,null,null,null,0]
[null,null,null,null,null,null,null,null,null,null,null,null,null,null,null,null,null,null,null,null,null,null,null,null,null,null,18]
[null,null,null,null,null,null,null,null,null,null,null,null,null,null,null,null,null,null,null,null,null,null,null,null,null,null,0]
[null,null,null,null,null,null,null,null,null,null,null,null,null,null,null,null,null,null,null,null,null,null,null,null,null,null,6]
[null,null,null,null,null,null,null,null,null,null,null,null,null,null,null,null,null,null,null,null,null,null,null,null,null,null,0]
[null,null,null,null,null,null,null,null,null,null,null,null,null,null,null,null,null,null,null,null,null,null,null,null,null,null,15]
[null,null,null,null,null,null,null,null,null,null,null,null,null,null,null,null,null,null,null,null,null,null,null,null,null,null,1]
[null,null,null,null,null,null,null,null,null,null,null,null,null,null,null,null,null,null,null,null,null,null,null,null,null,null,15]
[null,null,null,null,null,null,null,null,null,null,null,null,null,null,null,null,null,null,null,null,null,null,null,null,null,null,9]
[null,null,null,null,null,null,null,null,null,null,null,null,null,null,null,null,null,null,null,null,null,null,null,null,null,null,5]
[null,null,null,null,null,null,null,null,null,null,null,null,null,null,null,null,null,null,null,null,null,null,null,null,null,null,13]
[null,null,null,null,null,null,null,null,null,null,null,null,null,null,null,null,null,null,null,null,null,null,null,null,null,null,7]
[null,null,null,null,null,null,null,null,null,null,null,null,null,null,null,null,null,null,null,null,null,null,null,null,null,null,25]
[null,null,null,null,null,null,null,null,null,null,null,null,null,null,null,null,null,null,null,null,null,null,null,null,null,null,19]
[null,null,null,null,null,null,null,null,null,null,null,null,null,null,null,null,null,null,null,null,null,null,null,null,null,null,1]
[null,null,null,null,null,null,null,null,null,null,null,null,null,null,null,null,null,null,null,null,null,null,null,null,null,null,2]
[null,null,null,null,null,null,null,null,null,null,null,null,null,null,null,null,null,null,null,null,null,null,null,null,null,null,1]
[null,null,null,null,null,null,null,null,null,null,null,null,null,null,null,null,null,null,null,null,null,null,null,null,null,null,15]
[null,null,null,null,null,null,null,null,null,null,null,null,null,null,null,null,null,null,null,null,null,null,null,null,null,null,25]
[null,null,null,null,null,null,null,null,null,null,null,null,null,null,null,null,null,null,null,null,null,null,null,null,null,null,2]
[null,null,null,null,null,null,null,null,null,null,null,null,null,null,null,null,null,null,null,null,null,null,null,null,null,null,10]
[null,null,null,null,null,null,null,null,null,null,null,null,null,null,null,null,null,null,null,null,null,null,null,null,null,null,26]
[null,null,null,null,null,null,null,null,null,null,null,null,null,null,null,null,null,null,null,null,null,null,null,null,null,null,7]
[null,null,null,null,null,null,null,null,null,null,null,null,null,null,null,null,null,null,null,null,null,null,null,null,null,null,1]
[null,null,null,null,null,null,null,null,null,null,null,null,null,null,null,null,null,null,null,null,null,null,null,null,null,null,4]
[null,null,null,null,null,null,null,null,null,null,null,null,null,null,null,null,null,null,null,null,null,null,null,null,null,null,3]
[null,null,null,null,null,null,null,null,null,null,null,null,null,null,null,null,null,null,null,null,null,null,null,null,null,null,88]
[null,null,null,null,null,null,null,null,null,null,null,null,null,null,null,null,null,null,null,null,null,null,null,null,null,null,50]
[null,null,null,null,null,null,null,null,null,null,null,null,null,null,null,null,null,null,null,null,null,null,null,null,null,null,40]
[null,null,null,null,null,null,null,null,null,null,null,null,null,null,null,null,null,null,null,null,null,null,null,null,null,null,17]
[null,null,null,null,null,null,null,null,null,null,null,null,null,null,null,null,null,null,null,null,null,null,null,null,null,null,21]
[null,null,null,null,null,null,null,null,null,null,null,null,null,null,null,null,null,null,null,null,null,null,null,null,null,null,16]
[null,null,null,null,null,null,null,null,null,null,null,null,null,null,null,null,null,null,null,null,null,null,null,null,null,null,13]
[null,null,null,null,null,null,null,null,null,null,null,null,null,null,null,null,null,null,null,null,null,null,null,null,null,null,20]
[null,null,null,null,null,null,null,null,null,null,null,null,null,null,null,null,null,null,null,null,null,null,null,null,null,null,30]
[null,null,null,null,null,null,null,null,null,null,null,null,null,null,null,null,null,null,null,null,null,null,null,null,null,null,0]
[null,null,null,null,null,null,null,null,null,null,null,null,null,null,null,null,null,null,null,null,null,null,null,null,null,null,9]
[null,null,null,null,null,null,null,null,null,null,null,null,null,null,null,null,null,null,null,null,null,null,null,null,null,null,17]
[null,null,null,null,null,null,null,null,null,null,null,null,null,null,null,null,null,null,null,null,null,null,null,null,null,null,0]
[null,null,null,null,null,null,null,null,null,null,null,null,null,null,null,null,null,null,null,null,null,null,null,null,null,null,4]
[null,null,null,null,null,null,null,null,null,null,null,null,null,null,null,null,null,null,null,null,null,null,null,null,null,null,0]
[null,null,null,null,null,null,null,null,null,null,null,null,null,null,null,null,null,null,null,null,null,null,null,null,null,null,2]
[null,null,null,null,null,null,null,null,null,null,null,null,null,null,null,null,null,null,null,null,null,null,null,null,null,null,0]
[null,null,null,null,null,null,null,null,null,null,null,null,null,null,null,null,null,null,null,null,null,null,null,null,null,null,"No Stock"]
[null,null,null,null,null,null,null,null,null,null,null,null,null,null,null,null,null,null,null,null,null,null,null,null,null,null,0]
[null,null,null,null,null,null,null,null,null,null,null,null,null,null,null,null,null,null,null,null,null,null,null,null,null,null,0]
[null,null,null,null,null,null,null,null,null,null,null,null,null,null,null,null,null,null,null,null,null,null,null,null,null,null,8]
[null,null,null,null,null,null,null,null,null,null,null,null,null,null,null,null,null,null,null,null,null,null,null,null,null,null,0]
[null,null,null,null,null,null,null,null,null,null,null,null,null,null,null,null,null,null,null,null,null,null,null,null,null,null,2]
[null,null,null,null,null,null,null,null,null,null,null,null,null,null,null,null,null,null,null,null,null,null,null,null,null,null,3]
[null,null,null,null,null,null,null,null,null,null,null,null,null,null,null,null,null,null,null,null,null,null,null,null,null,null,3]
[null,null,null,null,null,null,null,null,null,null,null,null,null,null,null,null,null,null,null,null,null,null,null,null,null,null,4]
[null,null,null,null,null,null,null,null,null,null,null,null,null,null,null,null,null,null,null,null,null,null,null,null,null,null,4]
[null,null,null,null,null,null,null,null,null,null,null,null,null,null,null,null,null,null,null,null,null,null,null,null,null,null,13]
[null,null,null,null,null,null,null,null,null,null,null,null,null,null,null,null,null,null,null,null,null,null,null,null,null,null,6]
[null,null,null,null,null,null,null,null,null,null,null,null,null,null,null,null,null,null,null,null,null,null,null,null,null,null,9]
[null,null,null,null,null,null,null,null,null,null,null,null,null,null,null,null,null,null,null,null,null,null,null,null,null,null,14]
[null,null,null,null,null,null,null,null,null,null,null,null,null,null,null,null,null,null,null,null,null,null,null,null,null,null,3]
[null,null,null,null,null,null,null,null,null,null,null,null,null,null,null,null,null,null,null,null,null,null,null,null,null,null,0]
[null,null,null,null,null,null,null,null,null,null,null,null,null,null,null,null,null,null,null,null,null,null,null,null,null,null,1]
[null,null,null,null,null,null,null,null,null,null,null,null,null,null,null,null,null,null,null,null,null,null,null,null,null,null,5]
[null,null,null,null,null,null,null,null,null,null,null,null,null,null,null,null,null,null,null,null,null,null,null,null,null,null,4]
[null,null,null,null,null,null,null,null,null,null,null,null,null,null,null,null,null,null,null,null,null,null,null,null,null,null,1]
[null,null,null,null,null,null,null,null,null,null,null,null,null,null,null,null,null,null,null,null,null,null,null,null,null,null,3]
[null,null,null,null,null,null,null,null,null,null,null,null,null,null,null,null,null,null,null,null,null,null,null,null,null,null,3]
[null,null,null,null,null,null,null,null,null,null,null,null,null,null,null,null,null,null,null,null,null,null,null,null,null,null,4]
[null,null,null,null,null,null,null,null,null,null,null,null,null,null,null,null,null,null,null,null,null,null,null,null,null,null,15]
[null,null,null,null,null,null,null,null,null,null,null,null,null,null,null,null,null,null,null,null,null,null,null,null,null,null,2]
[null,null,null,null,null,null,null,null,null,null,null,null,null,null,null,null,null,null,null,null,null,null,null,null,null,null,15]
[null,null,null,null,null,null,null,null,null,null,null,null,null,null,null,null,null,null,null,null,null,null,null,null,null,null,10]
[null,null,null,null,null,null,null,null,null,null,null,null,null,null,null,null,null,null,null,null,null,null,null,null,null,null,0]
[null,null,null,null,null,null,null,null,null,null,null,null,null,null,null,null,null,null,null,null,null,null,null,null,null,null,1]
[null,null,null,null,null,null,null,null,null,null,null,null,null,null,null,null,null,null,null,null,null,null,null,null,null,null,0]
[null,null,null,null,null,null,null,null,null,null,null,null,null,null,null,null,null,null,null,null,null,null,null,null,null,null,5]
[null,null,null,null,null,null,null,null,null,null,null,null,null,null,null,null,null,null,null,null,null,null,null,null,null,null,35]
[null,null,null,null,null,null,null,null,null,null,null,null,null,null,null,null,null,null,null,null,null,null,null,null,null,null,4]
[null,null,null,null,null,null,null,null,null,null,null,null,null,null,null,null,null,null,null,null,null,null,null,null,null,null,1]
[null,null,null,null,null,null,null,null,null,null,null,null,null,null,null,null,null,null,null,null,null,null,null,null,null,null,29]
[null,null,null,null,null,null,null,null,null,null,null,null,null,null,null,null,null,null,null,null,null,null,null,null,null,null,0]
[null,null,null,null,null,null,null,null,null,null,null,null,null,null,null,null,null,null,null,null,null,null,null,null,null,null,4]
[null,null,null,null,null,null,null,null,null,null,null,null,null,null,null,null,null,null,null,null,null,null,null,null,null,null,1]
[null,null,null,null,null,null,null,null,null,null,null,null,null,null,null,null,null,null,null,null,null,null,null,null,null,null,17]
[null,null,null,null,null,null,null,null,null,null,null,null,null,null,null,null,null,null,null,null,null,null,null,null,null,null,0]
[null,null,null,null,null,null,null,null,null,null,null,null,null,null,null,null,null,null,null,null,null,null,null,null,null,null,27]
[null,null,null,null,null,null,null,null,null,null,null,null,null,null,null,null,null,null,null,null,null,null,null,null,null,null,26]
[null,null,null,null,null,null,null,null,null,null,null,null,null,null,null,null,null,null,null,null,null,null,null,null,null,null,37]
[null,null,null,null,null,null,null,null,null,null,null,null,null,null,null,null,null,null,null,null,null,null,null,null,null,null,15]
[null,null,null,null,null,null,null,null,null,null,null,null,null,null,null,null,null,null,null,null,null,null,null,null,null,null,5]
[null,null,null,null,null,null,null,null,null,null,null,null,null,null,null,null,null,null,null,null,null,null,null,null,null,null,3]
[null,null,null,null,null,null,null,null,null,null,null,null,null,null,null,null,null,null,null,null,null,null,null,null,null,null,1]
[null,null,null,null,null,null,null,null,null,null,null,null,null,null,null,null,null,null,null,null,null,null,null,null,null,null,5]
[null,null,null,null,null,null,null,null,null,null,null,null,null,null,null,null,null,null,null,null,null,null,null,null,null,null,33]
[null,null,null,null,null,null,null,null,null,null,null,null,null,null,null,null,null,null,null,null,null,null,null,null,null,null,28]
[null,null,null,null,null,null,null,null,null,null,null,null,null,null,null,null,null,null,null,null,null,null,null,null,null,null,7]
[null,null,null,null,null,null,null,null,null,null,null,null,null,null,null,null,null,null,null,null,null,null,null,null,null,null,0]
[null,null,null,null,null,null,null,null,null,null,null,null,null,null,null,null,null,null,null,null,null,null,null,null,null,null,9]
[null,null,null,null,null,null,null,null,null,null,null,null,null,null,null,null,null,null,null,null,null,null,null,null,null,null,23]
[null,null,null,null,null,null,null,null,null,null,null,null,null,null,null,null,null,null,null,null,null,null,null,null,null,null,21]
[null,null,null,null,null,null,null,null,null,null,null,null,null,null,null,null,null,null,null,null,null,null,null,null,null,null,13]
[null,null,null,null,null,null,null,null,null,null,null,null,null,null,null,null,null,null,null,null,null,null,null,null,null,null,5]
[null,null,null,null,null,null,null,null,null,null,null,null,null,null,null,null,null,null,null,null,null,null,null,null,null,null,1]
[null,null,null,null,null,null,null,null,null,null,null,null,null,null,null,null,null,null,null,null,null,null,null,null,null,null,2]
[null,null,null,null,null,null,null,null,null,null,null,null,null,null,null,null,null,null,null,null,null,null,null,null,null,null,2]

{"sheet":"Help Tab","index":2,"n_rows":18,"n_cols":9,"rows_kept":18,"cut":false,"hidden":false,"merged":[]}
[]
[]
[]
[null,"Your Screen SKU to order",null,"Sapphire code for the screen. Be careful as one wrong digit can we a very different product"]
[]
[null,"EAN Number",null,"Some are showing 12 digits but if you need 13 please put a zero in front. "]
[]
[null,"Type as start point",null,"Types of screen are :-",null,"Electric Projector Screen","Fixed frame","Portable","Wall Manual"]
[]
[null,"SubType \n(If applicable)"]
[]
[null,"Size\n width",null,"We list our screens with the wdth of the fabric in MM's. "]
[]
[null,"Format",null,"We stock  1:1 \"square format\" ratio. 4:3 \"Video format\", 16:9 mainly \"Home Cinema\" and the newer 16:10 \"Computer Widescreen\""]
[]
[null,"If Electric \nType of \nremote included-",null,"All Sapphire electric Projection screens come with a remote control included. Some are infra Red which are line of sight, others are radio controlled. These work over long distances. "]
[]
[null,"Control Systems\nand 12V trigger comparibility",null,"Sapphire have solutions for most situations - with the RS232, Closed contact or 12V trigger built into a lot of our products. "]

{"sheet":"Short Throw Projectors","index":3,"n_rows":22,"n_cols":4,"rows_kept":22,"cut":false,"hidden":false,"merged":[]}
[]
[]
[]
[]
[null,"The problem with Short/Ultra Short throw projectors"]
[null,"To ensure that you are not uphappy with the results when using short or especially ultra short throw you need to bear the following in mind. Even the very best fabrics that are non tensions will have slight undullations."]
[null,"If you view the back of the fabric and look from the side you will see them. In normal use with a standard projector the fabric will look perfect. However if you use a projector with the light coming from a sharp angel downwards "]
[null,"the image will have wavy edges and you will even gets some shaddow lines on the screen with ultra short throw. "]
[]
[null,"Tensioned fabrics are the answer"]
[null,"We have a range of solutions to the short throw problem. Unfortunately we cannot recommend a manual wall screen for ultra short throw. With the need for perfection comes extra cost .  We recomend the Tab Tensioned range of surface mount or in-ceiling screens."]
[null,"If you have a dedicated room or do not mind the screen being on show when not in use then the fixed frame products are also tensioned and will give you a perfect image no matter what you are using to project."]
[]
[null,"How can I find what I need for my ultra short throw projector?"]
[]
[null,"Manual Screen - not recommended"]
[]
[null,"Surface mount electric  -  Select Electric in the yellow filter, then in the \"Sub Type\" to the right select \"Tab Tensioned Ch Fix\". Pick the size and format you require and you will have the right product for your ultra short throw"]
[]
[null,"In-Celing electric Screen",null," Select Electric in the yellow filter, then in the \"Sub Type\" to the right select \"In-Ceiling Tab Tensioned\" . Pick the size and format you require and you will have the right product for your ultra short throw"]
[]
[null,"Dedicated Rooms",null,"   Select any of the above or Fixed Frame Screens to have a perfect tensioned surface. If you do not mind the screen in view all the time and you need an Ambient Light solution go to Fixed frame and then Fabric type to select."]

{"sheet":"DO NOT OPEN","index":4,"n_rows":407,"n_cols":33,"rows_kept":407,"cut":false,"hidden":true,"merged":[]}
["partno"," category_name"," product_name"," Stock_Available",null,null,null,null,null,null,null,null,null,null,null,null,null,null,null,null,null,null,null,null,null,null,"SFL122"]
["SSB75","Brackets","75cm Extention Screen Extention Brackets (Pair)",89,null,null,null,null,null,null,null,null,null,null,null,null,null,null,null,null,null,null,null,null,null,null,"SALFS221WSF",null,null,null,null,"SAPPL03","WWW.sappl03"]
["SSB50","Brackets","L Shape Screen Bracket 50cm pair",0,null,null,null,null,null,null,null,null,null,null,null,null,null,null,null,null,null,null,null,null,null,null,"SEFL155-V"]
["SAPUM100200","Brackets","SAPUM100200",92,null,null,null,null,null,null,null,null,null,null,null,null,null,null,null,null,null,null,null,null,null,null,"SESC180BV-A2","SAPPL03",null,"STR"]
["SAPUM70120","Brackets","SAPUM70120",245,null,null,null,null,null,null,null,null,null,null,null,null,null,null,null,null,null,null,null,null,null,null,"SESC180B1610-A2","SAPPL03",null,"STR"]
["SSB30","Brackets","Screen Extension Bracket 30cm Pair",1,null,null,null,null,null,null,null,null,null,null,null,null,null,null,null,null,null,null,null,null,null,null,"SESC200B1610-A2","SAPPL03",null,"STR"]
["SSM-BR","Brackets","Smart Move Ceiling Bracket",66,null,null,null,null,null,null,null,null,null,null,null,null,null,null,null,null,null,null,null,null,null,null,"SESC200BV-A2","SAPPL03",null,"STR"]
["VGA-HD10","Cables and Splitters","10m High Quality VGA Cable Male2Male",67,null,null,null,null,null,null,null,null,null,null,null,null,null,null,null,null,null,null,null,null,null,null,"SESC200BWSF-A2","SAPPL03",null,"STR"]
["VGA-HD10F","Cables and Splitters","10m Male Female VGA Cable",2,null,null,null,null,null,null,null,null,null,null,null,null,null,null,null,null,null,null,null,null,null,null,"SESC240B1610-A2","SAPPL03",null,"STR"]
["VGA-HD20F","Cables and Splitters","20m VGA Cable (Male - Female)",2,null,null,null,null,null,null,null,null,null,null,null,null,null,null,null,null,null,null,null,null,null,null,"SESC240BV-A2","SAPPL03",null,"STR"]
["VGA-HD02","Cables and Splitters","2m High Quality VGA Cable",24,null,null,null,null,null,null,null,null,null,null,null,null,null,null,null,null,null,null,null,null,null,null,"SESC240BWSF-A2","SAPPL03",null,"STR"]
["VGA-HD03","Cables and Splitters","3m High Quality VGA Cable",43,null,null,null,null,null,null,null,null,null,null,null,null,null,null,null,null,null,null,null,null,null,null,"SESC270B1610-A2","SAPPL03",null,"STR"]
["5mScartCable","Cables and Splitters","5m Scart Cable",1,null,null,null,null,null,null,null,null,null,null,null,null,null,null,null,null,null,null,null,null,null,null,"SESC270BWSF-A2","SAPPL03",null,"STR"]
["VGA-HD05F","Cables and Splitters","5m VGA Cable m-f",3,null,null,null,null,null,null,null,null,null,null,null,null,null,null,null,null,null,null,null,null,null,null,"SESC300B1610-A2","SAPPL03",null,"STR"]
["RS232Switch","Cables and Splitters","RS232 Switch USB and Seral Control",0,null,null,null,null,null,null,null,null,null,null,null,null,null,null,null,null,null,null,null,null,null,null,"SESC300BV-A2","SAPPL03",null,"STR"]
["USBgenaf2bf","Cables and Splitters","USB Gender changer Type a female to Type b Female",12,null,null,null,null,null,null,null,null,null,null,null,null,null,null,null,null,null,null,null,null,null,null,"SESC300BWSF-A2","SAPPL03",null,"STR"]
["USB1029","Cables and Splitters","USB to 9 Pin Serial cable",1,null,null,null,null,null,null,null,null,null,null,null,null,null,null,null,null,null,null,null,null,null,null,"SETC200WSF-ATR","SAPPL03",null,"STR"]
["60614","ConXeasy","ConXeasy S302 Speakers - White",21,null,null,null,null,null,null,null,null,null,null,null,null,null,null,null,null,null,null,null,null,null,null,"SETC240WSF-ATR","SAPPL03",null,"STR"]
["60614","ConXeasy","ConXeasy S302 Speakers - White",0,null,null,null,null,null,null,null,null,null,null,null,null,null,null,null,null,null,null,null,null,null,null,"SETC240WSF-AWOVEN","SAPPL03",null,"STR"]
["61533","ConXeasy","ConXeasy S603 Speakers - Black",33,null,null,null,null,null,null,null,null,null,null,null,null,null,null,null,null,null,null,null,null,null,null,"SETC270WSF-ATR","SAPPL03",null,"STR"]
["61533","ConXeasy","ConXeasy S603 Speakers - Black",0,null,null,null,null,null,null,null,null,null,null,null,null,null,null,null,null,null,null,null,null,null,null,"SETTS200BV-AW","SSB30",null,"STR"]
["61532","ConXeasy","ConXeasy S603 Speakers - White",0,null,null,null,null,null,null,null,null,null,null,null,null,null,null,null,null,null,null,null,null,null,null,"SETTS200WSF-AW","SSB30",null,"STR"]
["61532","ConXeasy","ConXeasy S603 Speakers - White",234,null,null,null,null,null,null,null,null,null,null,null,null,null,null,null,null,null,null,null,null,null,null,"SETTS200WSF-AW WOVEN","SSB30",null,"STR"]
["RemoteSB602","ConXeasy","ConXeasy SB602 Remote",37,null,null,null,null,null,null,null,null,null,null,null,null,null,null,null,null,null,null,null,null,null,null,"SETTS200WSF-AW10","SSB30",null,"STR","STRV102L"]
["RemoteSB602","ConXeasy","ConXeasy SB602 Remote",0,null,null,null,null,null,null,null,null,null,null,null,null,null,null,null,null,null,null,null,null,null,null,"SETTS240BV-AW","SSB30",null,"STR"]
["61493","ConXeasy","ConXeasy SB603 Soundbar - Black",407,null,null,null,null,null,null,null,null,null,null,null,null,null,null,null,null,null,null,null,null,null,null,"SETTS240WSF-AW","SSB30",null,"STR"]
["61493","ConXeasy","ConXeasy SB603 Soundbar - Black",0,null,null,null,null,null,null,null,null,null,null,null,null,null,null,null,null,null,null,null,null,null,null,"SETTS240WSF-AW WOVEN","SSB30",null,"STR"]
["61492","ConXeasy","ConXeasy SB603 Soundbar - White",0,null,null,null,null,null,null,null,null,null,null,null,null,null,null,null,null,null,null,null,null,null,null,"SETTS240WSF-AW10","SSB30",null,"STR","STRV102L"]
["61492","ConXeasy","ConXeasy SB603 Soundbar - White",0,null,null,null,null,null,null,null,null,null,null,null,null,null,null,null,null,null,null,null,null,null,null,"SETTS300BV-AW","SSB30",null,"STR"]
["61495","ConXeasy","ConXeasy SWA401 Speakers & Wall Amplifier - Black",646,null,null,null,null,null,null,null,null,null,null,null,null,null,null,null,null,null,null,null,null,null,null,"SETTS300WSF-AW","SSB30",null,"STR"]
["61495","ConXeasy","ConXeasy SWA401 Speakers & Wall Amplifier - Black",0,null,null,null,null,null,null,null,null,null,null,null,null,null,null,null,null,null,null,null,null,null,null,"SETTS300WSF-AW WOVEN","SSB30",null,"STR"]
["61494","ConXeasy","ConXeasy SWA401 Speakers & Wall Amplifier - White",0,null,null,null,null,null,null,null,null,null,null,null,null,null,null,null,null,null,null,null,null,null,null,"SETTS300WSF-AW10","SSB30",null,"STR","STRV102L"]
["61494","ConXeasy","ConXeasy SWA401 Speakers & Wall Amplifier - White",302,null,null,null,null,null,null,null,null,null,null,null,null,null,null,null,null,null,null,null,null,null,null,"SETTS350WSF-AW",null,null,"STR"]
["CONXSSB2","ConXeasy","ConXeasy Universal Soundbar Bracket",0,null,null,null,null,null,null,null,null,null,null,null,null,null,null,null,null,null,null,null,null,null,null,"SETTS350WSF-AW10",null,null,"STR"]
["CONXSBB1","ConXeasy","Soundbar Bracket SMS type",2,null,null,null,null,null,null,null,null,null,null,null,null,null,null,null,null,null,null,null,null,null,null,"SETTS400WSF-AW",null,null,"STR"]
["CONXSBB1","ConXeasy","Soundbar Bracket SMS type",0,null,null,null,null,null,null,null,null,null,null,null,null,null,null,null,null,null,null,null,null,null,null,"SEWS150BV-A","SSB30",null,"STR"]
["SFFS244FRFabric","Fixed Frame Screens","2.4M 4by3 Format Front Projection Rapid Fold FABRIC",1,null,null,null,null,null,null,null,null,null,null,null,null,null,null,null,null,null,null,null,null,null,null,"SEWS150R-A","SSB30",null,"STR"]
["SFSC300","Fixed Frame Screens","3m Sapphire Fixed Frame Front Projection Screen White Fabric 16:9 Format",20,null,null,null,null,null,null,null,null,null,null,null,null,null,null,null,null,null,null,null,null,null,null,"SEWS150RAD-BV-A","SSB30",null,"STR"]
["SFSC171","Fixed Frame Screens","Fixed Frame (Front - 77) Projection Screen - 1710 x 960 16:9 Channel Fix",15,null,null,null,null,null,null,null,null,null,null,null,null,null,null,null,null,null,null,null,null,null,null,"SEWS150RAD-RWSF-A10","SSB30",null,"STR"]
["SFSC203","Fixed Frame Screens","Fixed Frame (Front - 92) Projection Screen - 2030 x 1145 16:9",10,null,null,null,null,null,null,null,null,null,null,null,null,null,null,null,null,null,null,null,null,null,null,"SEWS150RWSF-ATR","SSB30",null,"STR"]
["SFSC266","Fixed Frame Screens","Fixed Frame (Front 120) Projection Screen - 2660 x 1500 16:9",21,null,null,null,null,null,null,null,null,null,null,null,null,null,null,null,null,null,null,null,null,null,null,"SEWS150RWSF-ATR10","SSB30",null,"STR"]
["SFSC234-10","Fixed Frame Screens","Fixed Frame (front) with channel fix 16:10",50,null,null,null,null,null,null,null,null,null,null,null,null,null,null,null,null,null,null,null,null,null,null,"SEWS180RAD-BV-A","SSB30",null,"STR"]
["SFSC234","Fixed Frame Screens","Fixed Frame (front) with channel fix 16:9",88,null,null,null,null,null,null,null,null,null,null,null,null,null,null,null,null,null,null,null,null,null,null,"SEWS180RAD-RWSF-A","SSB30",null,"STR"]
["SFSC203-10","Fixed Frame Screens","Fixed Frame (Front) with Channel fix with channel fix16.10",26,null,null,null,null,null,null,null,null,null,null,null,null,null,null,null,null,null,null,null,null,null,null,"SEWS180RAD-RWSF-A10","SSB30",null,"STR"]
["SFS305V","Fixed Frame Screens","Fixed Frame (Rear) Projection Screen -  3048 x 2286 4:3",1,null,null,null,null,null,null,null,null,null,null,null,null,null,null,null,null,null,null,null,null,null,null,"SEWS180RBV-ATR","SSB30",null,"STR"]
["SFS171V","Fixed Frame Screens","Fixed Frame (Rear) Projection Screen - 1710 X 1280 4:3",2,null,null,null,null,null,null,null,null,null,null,null,null,null,null,null,null,null,null,null,null,null,null,"SEWS180RWSF-A10","SSB30",null,"STR"]
["SFFS508FR","Fixed Frame Screens","Rapid Fold Front Projection Screen Frame",0,null,null,null,null,null,null,null,null,null,null,null,null,null,null,null,null,null,null,null,null,null,null,"SEWS180RWSF-ATR","SSB30",null,"STR"]
["SALFS221WSF","Fixed Frame Screens","Sapphire Ambient Light Fixed Screen 100 inch",4,null,null,null,null,null,null,null,null,null,null,null,null,null,null,null,null,null,null,null,null,null,null,"SEWS180RWSF-ATR10","SSB30",null,"STR"]
["SFSC203-2D3D","Fixed Frame Screens","Sapphire Fixed Farme Screen 16:9 format 2D3D",1,null,null,null,null,null,null,null,null,null,null,null,null,null,null,null,null,null,null,null,null,null,null,"SEWS180WSF-ATRAC","SSB30",null,"STR"]
["SFSC234-10SB","Fixed Frame Screens","Sapphire Fixed Frame 2.3m with a Slim Bezel",40,null,null,null,null,null,null,null,null,null,null,null,null,null,null,null,null,null,null,null,null,null,null,"SEWS200RAD-BV-A","SSB30",null,"STR"]
["SFSC203-10SB","Fixed Frame Screens","Sapphire fixed frame 203cm 16:10 slim Bezel",7,null,null,null,null,null,null,null,null,null,null,null,null,null,null,null,null,null,null,null,null,null,null,"SEWS200RAD-RWSF-A10","SSB30",null,"STR"]
["SFSC171-10","Fixed Frame Screens","Sapphire fixed frame front projection 16:10",25,null,null,null,null,null,null,null,null,null,null,null,null,null,null,null,null,null,null,null,null,null,null,"SEWS200RAD-WSF-A","SSB30",null,"STR"]
["SFSC350","Fixed Frame Screens","Sapphire Fixed Frame Front Projection 3500 x 1962 16.9",17,null,null,null,null,null,null,null,null,null,null,null,null,null,null,null,null,null,null,null,null,null,null,"SEWS200RBV-ATR","SSB30",null,"STR"]
["SFSC400","Fixed Frame Screens","Sapphire fixed frame front projection screen 4M 16:9",4,null,null,null,null,null,null,null,null,null,null,null,null,null,null,null,null,null,null,null,null,null,null,"SEWS200RWSF10-A","SSB30",null,"STR"]
["SFSC220-2D3D","Fixed Frame Screens","Sapphire Fixed frame Screen 16:9 format 2D3D",3,null,null,null,null,null,null,null,null,null,null,null,null,null,null,null,null,null,null,null,null,null,null,"SEWS200RWSF-ATR","SSB30",null,"STR"]
["SFFS244WSF10FR-FABRIC","Fixed Frame Screens","SFFS244WSF10 FR-Fabric",0,null,null,null,null,null,null,null,null,null,null,null,null,null,null,null,null,null,null,null,null,null,null,"SEWS200RWSF-ATR10","SSB30",null,"STR"]
["SFFS305FR10","Fixed Frame Screens","SFFS305FR10",1,null,null,null,null,null,null,null,null,null,null,null,null,null,null,null,null,null,null,null,null,null,null,"SEWS200WSF-ATRAC","SSB30",null,"STR"]
["SFFS508RP","Fixed Frame Screens","SFFS508 Rear Projection",1,null,null,null,null,null,null,null,null,null,null,null,null,null,null,null,null,null,null,null,null,null,null,"SEWS240RAD-A","SSB30",null,"STR"]
["SFSC171-AT","Fixed Frame Screens","SFSC171-AT",2,null,null,null,null,null,null,null,null,null,null,null,null,null,null,null,null,null,null,null,null,null,null,"SEWS240RAD-RWSF-A","SSB30",null,"STR"]
["SFSC203AT","Fixed Frame Screens","SFSC203AT",4,null,null,null,null,null,null,null,null,null,null,null,null,null,null,null,null,null,null,null,null,null,null,"SEWS240RADRWSF-A10","SSB30",null,"STR"]
["SFSC234AT","Fixed Frame Screens","SFSC234AT",17,null,null,null,null,null,null,null,null,null,null,null,null,null,null,null,null,null,null,null,null,null,null,"SEWS240RBV-ATR","SSB30",null,"STR"]
["SFSC266-10","Fixed Frame Screens","SFSC266-10",16,null,null,null,null,null,null,null,null,null,null,null,null,null,null,null,null,null,null,null,null,null,null,"SEWS240RWSF-ATR","SSB30",null,"STR"]
["SFSC266AT","Fixed Frame Screens","SFSC266AT",13,null,null,null,null,null,null,null,null,null,null,null,null,null,null,null,null,null,null,null,null,null,null,"SEWS240RWSF-ATR10","SSB30",null,"STR"]
["SFSC300-10","Fixed Frame Screens","SFSC300-10",30,null,null,null,null,null,null,null,null,null,null,null,null,null,null,null,null,null,null,null,null,null,null,"SEWS240WSF-ATRAC","SSB30",null,"STR"]
["SFSC300AT","Fixed Frame Screens","SFSC300AT",0,null,null,null,null,null,null,null,null,null,null,null,null,null,null,null,null,null,null,null,null,null,null,"SEWS270RAD-A","SSB30",null,"STR"]
["SFSC350-AT","Fixed Frame Screens","SFSC350 Woven",0,null,null,null,null,null,null,null,null,null,null,null,null,null,null,null,null,null,null,null,null,null,null,"SEWS270RBV-ATR","SSB30",null,"STR"]
["SFSC350-10","Fixed Frame Screens","SFSC350-10",9,null,null,null,null,null,null,null,null,null,null,null,null,null,null,null,null,null,null,null,null,null,null,"SEWS270RWSF-ATR","SSB30",null,"STR"]
["SFSC400-10","Fixed Frame Screens","SFSC400-10",2,null,null,null,null,null,null,null,null,null,null,null,null,null,null,null,null,null,null,null,null,null,null,"SEWS270RWSF-ATR10","SSB30",null,"STR"]
["SFSC400-AT","Fixed Frame Screens","SFSC400-AT",0,null,null,null,null,null,null,null,null,null,null,null,null,null,null,null,null,null,null,null,null,null,null,"SEWS300BS-A","SSB30",null,"STR","STRV102L"]
["SFSC450","Fixed Frame Screens","SFSC450",0,null,null,null,null,null,null,null,null,null,null,null,null,null,null,null,null,null,null,null,null,null,null,"SEWS300BV-A","SSB30",null,"STR","STRV102L"]
["RemoteSB602","Lecterns","ConXeasy SB602 Remote",37,null,null,null,null,null,null,null,null,null,null,null,null,null,null,null,null,null,null,null,null,null,null,"SEWS300BWSF-A","SSB30",null,"STR","STRV102L"]
["RemoteSB602","Lecterns","ConXeasy SB602 Remote",0,null,null,null,null,null,null,null,null,null,null,null,null,null,null,null,null,null,null,null,null,null,null,"SEWS300BWSF-A10","SSB30",null,"STR","STRV102L"]
["LECT2beech","Lecterns","LECTURN BEECH",27,null,null,null,null,null,null,null,null,null,null,null,null,null,null,null,null,null,null,null,null,null,null,"SEWS350BV-A","SSB30",null,"STR","STRV102L"]
["SSLECT2B","Lecterns","Sound Lectern Black",28,null,null,null,null,null,null,null,null,null,null,null,null,null,null,null,null,null,null,null,null,null,null,"SEWS350BWSF-A","SSB30",null,"STR","STRV102L"]
["SFL122WSF","Portable Projector Screens","16:9 60 inch Floor Screen",6,null,null,null,null,null,null,null,null,null,null,null,null,null,null,null,null,null,null,null,null,null,null,"SEWS350BWSF-A10","SSB30",null,"STR","STRV102L"]
["SFL162WSF","Portable Projector Screens","16:9 80 inch Floor Screen",15,null,null,null,null,null,null,null,null,null,null,null,null,null,null,null,null,null,null,null,null,null,null,"SEWS400BS","SSB30",null,"STR","STRV102L"]
["SFL200WSF","Portable Projector Screens","16:9 92 inch Floor Screen",25,null,null,null,null,null,null,null,null,null,null,null,null,null,null,null,null,null,null,null,null,null,null,"SEWS400BV-A","SSB30",null,"STR","STRV102L"]
["SFL162WSFP","Portable Projector Screens","16:9 Floor screen with central pole support",5,null,null,null,null,null,null,null,null,null,null,null,null,null,null,null,null,null,null,null,null,null,null,"SEWS400BWSF-A","SSB30",null,"STR","STRV102L"]
["SFL200WSFP","Portable Projector Screens","16:9 Floor screen with central pole support",1,null,null,null,null,null,null,null,null,null,null,null,null,null,null,null,null,null,null,null,null,null,null,"SEWS400BWSF-A10","SSB30",null,"STR","STRV102L"]
["SFL200","Portable Projector Screens","4:3 100 inch Floor Screen",13,null,null,null,null,null,null,null,null,null,null,null,null,null,null,null,null,null,null,null,null,null,null,"SEWS450BV",null,null,"STR","STRV102L"]
["SFL122","Portable Projector Screens","4:3 60 inch Floor Screen",18,null,null,null,null,null,null,null,null,null,null,null,null,null,null,null,null,null,null,null,null,null,null,"SEWS450BWSF",null,null,"STR","STRV102L"]
["SFL162","Portable Projector Screens","4:3 80 inch Floor Screen",15,null,null,null,null,null,null,null,null,null,null,null,null,null,null,null,null,null,null,null,null,null,null,"SEWS450BWSF-10",null,null,"STR","STRV102L"]
["SFL122P","Portable Projector Screens","4:3 Floor screen with central pole support",0,null,null,null,null,null,null,null,null,null,null,null,null,null,null,null,null,null,null,null,null,null,null,"SEWS488BV",null,null,"STR","STRV102L"]
["SFL162P","Portable Projector Screens","4:3 Floor screen with central pole support",1,null,null,null,null,null,null,null,null,null,null,null,null,null,null,null,null,null,null,null,null,null,null,"SEWS488BWSF",null,null,"STR","STRV102L"]
["SFL200P","Portable Projector Screens","4:3 Floor screen with central pole support",7,null,null,null,null,null,null,null,null,null,null,null,null,null,null,null,null,null,null,null,null,null,null,"SEWS488BWSF-10",null,null,"STR","STRV102L"]
["SFFS508FR","Portable Projector Screens","Fast Fold Front Projection Screen ",0,null,null,null,null,null,null,null,null,null,null,null,null,null,null,null,null,null,null,null,null,null,null,"SEWS500BV-A",null,null,"STR","STRV102L"]
["SFFS508FR","Portable Projector Screens","Fast Fold Front Projection Screen ",0,null,null,null,null,null,null,null,null,null,null,null,null,null,null,null,null,null,null,null,null,null,null,"SEWS500BWSF-A10",null,null,"STR","STRV102L"]
["SPPS1","Portable Projector Screens","Projector Screen  tabletop 50 inch",8,null,null,null,null,null,null,null,null,null,null,null,null,null,null,null,null,null,null,null,null,null,null,"SEWS500WSF-A",null,null,"STR","STRV102L"]
["SFFS203RPFABRIC","Portable Projector Screens","Rapid Fold 203 RPFABRIC",2,null,null,null,null,null,null,null,null,null,null,null,null,null,null,null,null,null,null,null,null,null,null,"SEWS600BV-A",null,null,"STR","STRV102L"]
["SFFS305FRFabric","Portable Projector Screens","Rapid Fold Front Projection Screen - 3048 x 2286 4:3 Fabric",3,null,null,null,null,null,null,null,null,null,null,null,null,null,null,null,null,null,null,null,null,null,null,"SFFS203FR"]
["SFFS508FR","Portable Projector Screens","Rapid Fold Front Projection Screen Frame",0,null,null,null,null,null,null,null,null,null,null,null,null,null,null,null,null,null,null,null,null,null,null,"SFFS203FRFabric"]
["SFFS203FR","Portable Projector Screens","Rapid Fold Front Projection Screen Frame  2032 x 1524 4:3",3,null,null,null,null,null,null,null,null,null,null,null,null,null,null,null,null,null,null,null,null,null,null,"SFFS203FR-WSF"]
["SFFS244FR","Portable Projector Screens","Rapid Fold Front Projection Screen Frame  2438 x 1828  4:3",3,null,null,null,null,null,null,null,null,null,null,null,null,null,null,null,null,null,null,null,null,null,null,"SFFS203RP"]
["SFFS305FR","Portable Projector Screens","Rapid Fold Front Projection Screen Frame - 3048 x 2286 4:3",6,null,null,null,null,null,null,null,null,null,null,null,null,null,null,null,null,null,null,null,null,null,null,"SFFS203RPFABRIC"]
["SFFS404FR","Portable Projector Screens","Rapid Fold Front Projection Screen Frame - 4046 x 3048 4:3",3,null,null,null,null,null,null,null,null,null,null,null,null,null,null,null,null,null,null,null,null,null,null,"SFFS203RP-WSF"]
["SFFS365FR","Portable Projector Screens","Rapid Fold Front Projection Screen Frame 3657 x 2743 4:3",5,null,null,null,null,null,null,null,null,null,null,null,null,null,null,null,null,null,null,null,null,null,null,"SFFS244FR"]
["SFFS305RP","Portable Projector Screens","Rapid Fold Rear Projection 305",1,null,null,null,null,null,null,null,null,null,null,null,null,null,null,null,null,null,null,null,null,null,null,"SFFS244FR10"]
["SFFS305RPFabric","Portable Projector Screens","Rapid Fold Rear Projection Screen  3048 x 2286 4:3 Fabric",5,null,null,null,null,null,null,null,null,null,null,null,null,null,null,null,null,null,null,null,null,null,null,"SFFS244FRFabriconly"]
["SFFS365RP","Portable Projector Screens","Rapid Fold Rear Projection Screen  3657 x 2743 4:3",3,null,null,null,null,null,null,null,null,null,null,null,null,null,null,null,null,null,null,null,null,null,null,"SFFS244FR-WSF"]
["SFFS203RP","Portable Projector Screens","Rapid Fold Rear Projection Screen 2032 x 1524 4:3",2,null,null,null,null,null,null,null,null,null,null,null,null,null,null,null,null,null,null,null,null,null,null,"SFFS244RP"]
["SFFS404RP","Portable Projector Screens","Rapid Fold Rear Projection Screen 4046 x 3048 4:3 format",0,null,null,null,null,null,null,null,null,null,null,null,null,null,null,null,null,null,null,null,null,null,null,"SFFS244RPFabric"]
["STS180","Portable Projector Screens","Sapphire 1.80m Tripod Screen",4,null,null,null,null,null,null,null,null,null,null,null,null,null,null,null,null,null,null,null,null,null,null,"SFFS244RP-WSF"]
["SFFS244RP","Portable Projector Screens","SFFS244RP Rapid Fold Rear Projection Screen",0,null,null,null,null,null,null,null,null,null,null,null,null,null,null,null,null,null,null,null,null,null,null,"SFFS244RP-WSF-FABRIC"]
["SFFS365FR-Fabric","Portable Projector Screens","SFFS365FR-Fabric",2,null,null,null,null,null,null,null,null,null,null,null,null,null,null,null,null,null,null,null,null,null,null,"SFFS305FR"]
["SFFS365RP-FABRIC","Portable Projector Screens","SFFS365RP-FABRIC",4,null,null,null,null,null,null,null,null,null,null,null,null,null,null,null,null,null,null,null,null,null,null,"SFFS305FR10"]
["SFFS404FR-FABRIC","Portable Projector Screens","SFFS404FR-FABRIC",2,null,null,null,null,null,null,null,null,null,null,null,null,null,null,null,null,null,null,null,null,null,null,"SFFS305FRFabric"]
["SFFS404RP-Fabric","Portable Projector Screens","SFFS404RP-Fabric",0,null,null,null,null,null,null,null,null,null,null,null,null,null,null,null,null,null,null,null,null,null,null,"SFFS305FR-WSF"]
["SFL122WSF10","Portable Projector Screens","SFL122WSF10",0,null,null,null,null,null,null,null,null,null,null,null,null,null,null,null,null,null,null,null,null,null,null,"SFFS305RP"]
["SFL162WSF10","Portable Projector Screens","SFL162WSF10",9,null,null,null,null,null,null,null,null,null,null,null,null,null,null,null,null,null,null,null,null,null,null,"SFFS305RPFabric"]
["SFL200WSF10","Portable Projector Screens","SFL200WSF10",19,null,null,null,null,null,null,null,null,null,null,null,null,null,null,null,null,null,null,null,null,null,null,"SFFS305RP-WSF"]
["SPB1200","Projection Boards","1.2 x1.2m Projection Board",0,null,null,null,null,null,null,null,null,null,null,null,null,null,null,null,null,null,null,null,null,null,null,"SFFS365FR"]
["SPB1500","Projection Boards","1.5 x 1.2m Projection Board",0,null,null,null,null,null,null,null,null,null,null,null,null,null,null,null,null,null,null,null,null,null,null,"SFFS365FR10"]
["SPB1600","Projection Boards","1.6 x 1.2m Projection Board",0,null,null,null,null,null,null,null,null,null,null,null,null,null,null,null,null,null,null,null,null,null,null,"SFFS365FR-Fabric"]
["SPB1800","Projection Boards","1.8 x 1.2m Semi Matt White Board",0,null,null,null,null,null,null,null,null,null,null,null,null,null,null,null,null,null,null,null,null,null,null,"SFFS365FR-WSF"]
["SPB2400","Projection Boards","2.4 x 1.2m Projection Board",0,null,null,null,null,null,null,null,null,null,null,null,null,null,null,null,null,null,null,null,null,null,null,"SFFS365RP"]
["SPB2000","Projection Boards","2m x 1.2m Projection Board",0,null,null,null,null,null,null,null,null,null,null,null,null,null,null,null,null,null,null,null,null,null,null,"SFFS365RP-FABRIC"]
["SAPM04","Projector and Plasma Mounts","SAPM04 Home Cinema Ceiling Mount",0,null,null,null,null,null,null,null,null,null,null,null,null,null,null,null,null,null,null,null,null,null,null,"SFFS365RP-WSF"]
["SAPUPM01","Projector and Plasma Mounts","Sapphire 13cm to 65cm Ceiling Mount",10,null,null,null,null,null,null,null,null,null,null,null,null,null,null,null,null,null,null,null,null,null,null,"SFFS404FR"]
["SAPWM05","Projector and Plasma Mounts","Sapphire Universal Plasma flat wall mount",63,null,null,null,null,null,null,null,null,null,null,null,null,null,null,null,null,null,null,null,null,null,null,"SFFS404FR-WSF"]
["SAPPL02","Projector Lift","Sapphire Electronic Projector in Ceiling Lift",4,null,null,null,null,null,null,null,null,null,null,null,null,null,null,null,null,null,null,null,null,null,null,"SFFS404RP"]
["SAPPL03","Projector Lift","SAPPL03 Sapphire Electronic Projector in Ceiling Lift For Large Projectors",5,null,null,null,null,null,null,null,null,null,null,null,null,null,null,null,null,null,null,null,null,null,null,"SFFS404RP-Fabric"]
["SAPPL04","Projector Lift","SAPPL04",19,null,null,null,null,null,null,null,null,null,null,null,null,null,null,null,null,null,null,null,null,null,null,"SFFS404RP-WSF"]
["SESC400BWSF-A2","Projector Screens Electric","4m 16:9 In ceiling screen",0,null,null,null,null,null,null,null,null,null,null,null,null,null,null,null,null,null,null,null,null,null,null,"SFFS508FR"]
["SSM400RADC-10","Projector Screens Electric","4M SMART MOVE 16:10 FORMAT",4,null,null,null,null,null,null,null,null,null,null,null,null,null,null,null,null,null,null,null,null,null,null,"SFFS508RP"]
["SSM400RADC","Projector Screens Electric","4M SMART MOVE 16:9 FORMAT",5,null,null,null,null,null,null,null,null,null,null,null,null,null,null,null,null,null,null,null,null,null,null,"SFL122P"]
["SEFL155-V","Projector Screens Electric","Electric Floor up Screen 4:3",1,null,null,null,null,null,null,null,null,null,null,null,null,null,null,null,null,null,null,null,null,null,null,"SFL122WSF"]
["SEWS150R-A","Projector Screens Electric","Electric wall screen 1.5m w/remote 1:1 Ratio",0,null,null,null,null,null,null,null,null,null,null,null,null,null,null,null,null,null,null,null,null,null,null,"SFL122WSF10"]
["Electric180BV-Inline","Projector Screens Electric","Electric180BV 1.8m Electric - Inline Switch",0,null,null,null,null,null,null,null,null,null,null,null,null,null,null,null,null,null,null,null,null,null,null,"SFL162"]
["Electric180WSF","Projector Screens Electric","Electric180WSF 1.8m Electric",0,null,null,null,null,null,null,null,null,null,null,null,null,null,null,null,null,null,null,null,null,null,null,"SFL162P"]
["SEWS-ATR-SW","Projector Screens Electric","Low Voltage Wall Switch for ATR Screens",80,null,null,null,null,null,null,null,null,null,null,null,null,null,null,null,null,null,null,null,null,null,null,"SFL162WSF"]
["STR","Projector Screens Electric","Radio Trigger for Sapphire Screen (with box)",125,null,null,null,null,null,null,null,null,null,null,null,null,null,null,null,null,null,null,null,null,null,null,"SFL162WSF10"]
["SEWS150BV-A","Projector Screens Electric","Sapphire 1.5m Electric Screen",1,null,null,null,null,null,null,null,null,null,null,null,null,null,null,null,null,null,null,null,null,null,null,"SFL162WSFP"]
["SEWS150RAD-BV-A","Projector Screens Electric","Sapphire 1.5m electric screen",2,null,null,null,null,null,null,null,null,null,null,null,null,null,null,null,null,null,null,null,null,null,null,"SFL200"]
["SEWS200RAD-WSF-A","Projector Screens Electric","Sapphire 2m electric screen 16:9 format radio remote control",2,null,null,null,null,null,null,null,null,null,null,null,null,null,null,null,null,null,null,null,null,null,null,"SFL200P"]
["SEWS488BWSF","Projector Screens Electric","Sapphire 4.8m Electric 16:9 Not Channel Fix",1,null,null,null,null,null,null,null,null,null,null,null,null,null,null,null,null,null,null,null,null,null,null,"SFL200WSF"]
["SEWS600BV-A","Projector Screens Electric","Sapphire 6m electric alum 4:3 screen",0,null,null,null,null,null,null,null,null,null,null,null,null,null,null,null,null,null,null,null,null,null,null,"SFL200WSF10"]
["SEWS240RAD-RWSF-A","Projector Screens Electric","Sapphire Electric 2.4m Radio control WSF",2,null,null,null,null,null,null,null,null,null,null,null,null,null,null,null,null,null,null,null,null,null,null,"SFL200WSFP"]
["SEWS500BV-A","Projector Screens Electric","Sapphire Electric 5m 4:3 with seam",0,null,null,null,null,null,null,null,null,null,null,null,null,null,null,null,null,null,null,null,null,null,null,"SFS171V"]
["SEWS180RWSF-ATR10","Projector Screens Electric","Sapphire Electric Screen 1.8M 16.10 format ATR",16,null,null,null,null,null,null,null,null,null,null,null,null,null,null,null,null,null,null,null,null,null,null,"SFS244V"]
["SEWS180RWSF-ATR","Projector Screens Electric","Sapphire electric screen 1.8m 16:9 format ATR",53,null,null,null,null,null,null,null,null,null,null,null,null,null,null,null,null,null,null,null,null,null,null,"SFS305V"]
["SEWS180RBV-ATR","Projector Screens Electric","Sapphire Electric Screen 1.8Mtr 4:3 ATR",14,null,null,null,null,null,null,null,null,null,null,null,null,null,null,null,null,null,null,null,null,null,null,"SFSC171"]
["SEWS200RWSF-ATR","Projector Screens Electric","Sapphire electric screen 2.0m 16:9 format ATR",71,null,null,null,null,null,null,null,null,null,null,null,null,null,null,null,null,null,null,null,null,null,null,"SFSC171-10"]
["SEWS240RWSF-ATR10","Projector Screens Electric","Sapphire Electric Screen 2.4M 16.10 format ATR",79,null,null,null,null,null,null,null,null,null,null,null,null,null,null,null,null,null,null,null,null,null,null,"SFSC203"]
["SEWS240RWSF-ATR","Projector Screens Electric","Sapphire electric screen 2.4m 16:9 format ATR",142,null,null,null,null,null,null,null,null,null,null,null,null,null,null,null,null,null,null,null,null,null,null,"SFSC203-10"]
["SEWS240RBV-ATR","Projector Screens Electric","Sapphire Electric Screen 2.4Mtr 4:3 ATR",12,null,null,null,null,null,null,null,null,null,null,null,null,null,null,null,null,null,null,null,null,null,null,"SFSC203-10SB"]
["SEWS270RWSF-ATR","Projector Screens Electric","Sapphire Electric Screen 2.7m 16.9 ATR",50,null,null,null,null,null,null,null,null,null,null,null,null,null,null,null,null,null,null,null,null,null,null,"SFSC203-2D3D"]
["SEWS270RBV-ATR","Projector Screens Electric","Sapphire Electric Screen 2.7m 4.3 ATR",12,null,null,null,null,null,null,null,null,null,null,null,null,null,null,null,null,null,null,null,null,null,null,"SFSC203AT"]
["SEWS200RWSF-ATR10","Projector Screens Electric","Sapphire Electric Screen 2M 16.10 format ATR",58,null,null,null,null,null,null,null,null,null,null,null,null,null,null,null,null,null,null,null,null,null,null,"SFSC220-2D3D"]
["SEWS200RBV-ATR","Projector Screens Electric","Sapphire Electric Screen 2Mtr 4:3 ATR",17,null,null,null,null,null,null,null,null,null,null,null,null,null,null,null,null,null,null,null,null,null,null,"SFSC234"]
["SEWS350BWSF-A10","Projector Screens Electric","Sapphire Electric Screen 3.5m 16:10 format",21,null,null,null,null,null,null,null,null,null,null,null,null,null,null,null,null,null,null,null,null,null,null,"SFSC234-10"]
["SEWS300BS-A","Projector Screens Electric","Sapphire Electric Screen 3mtr 1:1 gain",0,null,null,null,null,null,null,null,null,null,null,null,null,null,null,null,null,null,null,null,null,null,null,"SFSC234-10SB"]
["SEWS400BWSF-A10","Projector Screens Electric","Sapphire Electric Screen 4m 16:10 format",11,null,null,null,null,null,null,null,null,null,null,null,null,null,null,null,null,null,null,null,null,null,null,"SFSC234AT"]
["SEWS500BWSF-A10","Projector Screens Electric","Sapphire Electric Screen 5m 16:10 format with seam",0,null,null,null,null,null,null,null,null,null,null,null,null,null,null,null,null,null,null,null,null,null,null,"SFSC266"]
["SEWS200WSF-ATRAC","Projector Screens Electric","Sapphire Electric Screen Accoustic Transparent  Remote Control Infrared 2.0m 16:9 Format",3,null,null,null,null,null,null,null,null,null,null,null,null,null,null,null,null,null,null,null,null,null,null,"SFSC266-10"]
["SEWS240WSF-ATRAC","Projector Screens Electric","Sapphire Electric Screen Accoustic Transparent Remote Control Infrared 2.4m A 16:9 Format",6,null,null,null,null,null,null,null,null,null,null,null,null,null,null,null,null,null,null,null,null,null,null,"SFSC266AT"]
["SETTS240WSF-AW","Projector Screens Electric","Sapphire Tab Tensioned screen 2.4m 16:9 white case",18,null,null,null,null,null,null,null,null,null,null,null,null,null,null,null,null,null,null,null,null,null,null,"SFSC300"]
["SETTS240BV-AW","Projector Screens Electric","Sapphire Tab Tensioned screen 2.4m 4:3 white case",1,null,null,null,null,null,null,null,null,null,null,null,null,null,null,null,null,null,null,null,null,null,null,"SFSC300-10"]
["SETTS200WSF-AW","Projector Screens Electric","Sapphire Tab Tensioned screen 2m 16:9 white case",1,null,null,null,null,null,null,null,null,null,null,null,null,null,null,null,null,null,null,null,null,null,null,"SFSC300AT"]
["SETTS200BV-AW","Projector Screens Electric","Sapphire Tab Tensioned screen 2m 4:3 white case",0,null,null,null,null,null,null,null,null,null,null,null,null,null,null,null,null,null,null,null,null,null,null,"SFSC350"]
["SETTS350WSF-AW","Projector Screens Electric","Sapphire Tab Tensioned screen 3.5m 16:9 white case",2,null,null,null,null,null,null,null,null,null,null,null,null,null,null,null,null,null,null,null,null,null,null,"SFSC400-10"]
["SETTS300WSF-AW","Projector Screens Electric","Sapphire Tab Tensioned screen 3m 16by9 white case",5,null,null,null,null,null,null,null,null,null,null,null,null,null,null,null,null,null,null,null,null,null,null,"SFSV300"]
["SETTS300BV-AW","Projector Screens Electric","Sapphire Tab Tensioned screen 3m 4:3 white case",1,null,null,null,null,null,null,null,null,null,null,null,null,null,null,null,null,null,null,null,null,null,null,"SPB1800"]
["SESC180B1610-A2","Projector Screens Electric","SESC180B1610-A2",5,null,null,null,null,null,null,null,null,null,null,null,null,null,null,null,null,null,null,null,null,null,null,"SPB2000"]
["SESC180BV-A2","Projector Screens Electric","SESC180BV-A2",0,null,null,null,null,null,null,null,null,null,null,null,null,null,null,null,null,null,null,null,null,null,null,"SPB2381610"]
["SESC180BWSF-A2","Projector Screens Electric","SESC180BWSF-A2",5,null,null,null,null,null,null,null,null,null,null,null,null,null,null,null,null,null,null,null,null,null,null,"SPPS1"]
["SESC200B1610-A2","Projector Screens Electric","SESC200B1610-A2",18,null,null,null,null,null,null,null,null,null,null,null,null,null,null,null,null,null,null,null,null,null,null,"SPPS40"]
["SESC200BV-A2","Projector Screens Electric","SESC200BV-A2",0,null,null,null,null,null,null,null,null,null,null,null,null,null,null,null,null,null,null,null,null,null,null,"SSM200RADV","STR",null,"SSM-WS"]
["SESC200BWSF-A2","Projector Screens Electric","SESC200BWSF-A2",15,null,null,null,null,null,null,null,null,null,null,null,null,null,null,null,null,null,null,null,null,null,null,"SSM200RADWSF","STR",null,"SSM-WS"]
["SESC240B1610-A2","Projector Screens Electric","SESC240B1610-A2",9,null,null,null,null,null,null,null,null,null,null,null,null,null,null,null,null,null,null,null,null,null,null,"SSM200RADWSF-10","STR",null,"SSM-WS"]
["SESC240BV-A2","Projector Screens Electric","SESC240BV-A2",0,null,null,null,null,null,null,null,null,null,null,null,null,null,null,null,null,null,null,null,null,null,null,"SSM240RADV","STR",null,"SSM-WS"]
["SESC240BWSF-A2","Projector Screens Electric","SESC240BWSF-A2",33,null,null,null,null,null,null,null,null,null,null,null,null,null,null,null,null,null,null,null,null,null,null,"SSM240RADWSF","STR",null,"SSM-WS"]
["SESC270B1610-A2","Projector Screens Electric","SESC270B1610-A2",18,null,null,null,null,null,null,null,null,null,null,null,null,null,null,null,null,null,null,null,null,null,null,"SSM240RADWSF-10","STR",null,"SSM-WS"]
["SESC270BWSF-A2","Projector Screens Electric","SESC270BWSF-A2",16,null,null,null,null,null,null,null,null,null,null,null,null,null,null,null,null,null,null,null,null,null,null,"SSM300RADV","STR",null,"SSM-WS"]
["SESC300B1610-A2","Projector Screens Electric","SESC300B1610-A2",12,null,null,null,null,null,null,null,null,null,null,null,null,null,null,null,null,null,null,null,null,null,null,"SSM300RADWSF","STR",null,"SSM-WS"]
["SESC300BV-A2","Projector Screens Electric","SESC300BV-A2",0,null,null,null,null,null,null,null,null,null,null,null,null,null,null,null,null,null,null,null,null,null,null,"SSM300RADWSF10","STR",null,"SSM-WS"]
["SESC300BWSF-A2","Projector Screens Electric","SESC300BWSF-A2",17,null,null,null,null,null,null,null,null,null,null,null,null,null,null,null,null,null,null,null,null,null,null,"SSM350RADC10","STR",null,"SSM-WS"]
["SETC240WSF-AWOVEN","Projector Screens Electric","SETC240WSF-AWOVEN",2,null,null,null,null,null,null,null,null,null,null,null,null,null,null,null,null,null,null,null,null,null,null,"SSM350RADV","STR",null,"SSM-WS"]
["SETTS200WSF-AW-WOVEN","Projector Screens Electric","SETTS200WSF-AW WOVEN",3,null,null,null,null,null,null,null,null,null,null,null,null,null,null,null,null,null,null,null,null,null,null,"SSM350RADWSF","STR",null,"SSM-WS"]
["SETTS200WSF-AW10","Projector Screens Electric","SETTS200WSF-AW10",11,null,null,null,null,null,null,null,null,null,null,null,null,null,null,null,null,null,null,null,null,null,null,"SSM400RADC","STR",null,"SSM-WS"]
["SETTS240WSF-AW-WOVEN","Projector Screens Electric","SETTS240WSF-AW WOVEN",3,null,null,null,null,null,null,null,null,null,null,null,null,null,null,null,null,null,null,null,null,null,null,"SSM400RADC-10","STR",null,"SSM-WS"]
["SETTS240WSF-AW10","Projector Screens Electric","SETTS240WSF-AW10",11,null,null,null,null,null,null,null,null,null,null,null,null,null,null,null,null,null,null,null,null,null,null,"SSM400RADV","STR",null,"SSM-WS"]
["SETTS240WSF-AW10RP","Projector Screens Electric","SETTS240WSF-AW10RP",1,null,null,null,null,null,null,null,null,null,null,null,null,null,null,null,null,null,null,null,null,null,null,"STS125"]
["SETTS300WSF-AW10","Projector Screens Electric","SETTS300WSF-AW10",12,null,null,null,null,null,null,null,null,null,null,null,null,null,null,null,null,null,null,null,null,null,null,"STS150"]
["SETTS300WSF-AW10RP","Projector Screens Electric","SETTS300WSF-AW10RP",2,null,null,null,null,null,null,null,null,null,null,null,null,null,null,null,null,null,null,null,null,null,null,"STS180"]
["SETTS300WSF-AW-WOVEN","Projector Screens Electric","SETTS300WSF-AW-WOVEN",1,null,null,null,null,null,null,null,null,null,null,null,null,null,null,null,null,null,null,null,null,null,null,"STS200"]
["SETTS350WSF-AW10","Projector Screens Electric","SETTS350WSF-AW10",6,null,null,null,null,null,null,null,null,null,null,null,null,null,null,null,null,null,null,null,null,null,null,"SWS125B"]
["SETTS350WSF-AW10RP","Projector Screens Electric","SETTS350WSF-AW10RP",2,null,null,null,null,null,null,null,null,null,null,null,null,null,null,null,null,null,null,null,null,null,null,"SWS150B"]
["SETTS400WSF-AW","Projector Screens Electric","SETTS400WSF-AW",2,null,null,null,null,null,null,null,null,null,null,null,null,null,null,null,null,null,null,null,null,null,null,"SWS150BV"]
["SETTS400WSF-AW10","Projector Screens Electric","SETTS400WSF-AW10",0,null,null,null,null,null,null,null,null,null,null,null,null,null,null,null,null,null,null,null,null,null,null,"SWS150WSF"]
["SEWS150RAD-RWSF-A10","Projector Screens Electric","SEWS150RAD-RWSF-A10",2,null,null,null,null,null,null,null,null,null,null,null,null,null,null,null,null,null,null,null,null,null,null,"SWS150WSF10"]
["SEWS150RWSF-ATR","Projector Screens Electric","SEWS150RWSF-ATR",14,null,null,null,null,null,null,null,null,null,null,null,null,null,null,null,null,null,null,null,null,null,null,"SWS180-ASR2","SPD",null,"SSB30"]
["SEWS150RWSF-ATR10","Projector Screens Electric","SEWS150RWSF-ATR10",5,null,null,null,null,null,null,null,null,null,null,null,null,null,null,null,null,null,null,null,null,null,null,"SWS180B","SPD",null,"SSB30"]
["SEWS180RAD-BV-A","Projector Screens Electric","SEWS180RAD-BV-A",2,null,null,null,null,null,null,null,null,null,null,null,null,null,null,null,null,null,null,null,null,null,null,"SWS180BV","SPD",null,"SSB30"]
["SEWS180RAD-RWSF-A","Projector Screens Electric","SEWS180RAD-RWSF-A",2,null,null,null,null,null,null,null,null,null,null,null,null,null,null,null,null,null,null,null,null,null,null,"SWS180WSF","SPD",null,"SSB30"]
["SEWS180RAD-RWSF-A10","Projector Screens Electric","SEWS180RAD-RWSF-A10",2,null,null,null,null,null,null,null,null,null,null,null,null,null,null,null,null,null,null,null,null,null,null,"SWS180WSF10","SPD",null,"SSB30"]
["SEWS180RWSF-A10","Projector Screens Electric","SEWS180RWSF-A10",12,null,null,null,null,null,null,null,null,null,null,null,null,null,null,null,null,null,null,null,null,null,null,"SWS180WSF10-ASR2","SPD",null,"SSB30"]
["SEWS180WSF-ATRAC","Projector Screens Electric","SEWS180WSF-ATRAC",3,null,null,null,null,null,null,null,null,null,null,null,null,null,null,null,null,null,null,null,null,null,null,"SWS180WSF-ASR2","SPD",null,"SSB30"]
["SEWS200RAD-BV-A","Projector Screens Electric","SEWS200RAD-BV-A",2,null,null,null,null,null,null,null,null,null,null,null,null,null,null,null,null,null,null,null,null,null,null,"SWS200-ASR2","SPD",null,"SSB30"]
["SEWS200RAD-RWSF-A10","Projector Screens Electric","SEWS200RAD-RWSF-A10",2,null,null,null,null,null,null,null,null,null,null,null,null,null,null,null,null,null,null,null,null,null,null,"SWS200B","SPD",null,"SSB30"]
["SEWS240RAD-A","Projector Screens Electric","SEWS240RAD-A 4:3",2,null,null,null,null,null,null,null,null,null,null,null,null,null,null,null,null,null,null,null,null,null,null,"SWS200BV","SPD",null,"SSB30"]
["SEWS240RADRWSF-A10","Projector Screens Electric","SEWS240RADRWSF-A10",2,null,null,null,null,null,null,null,null,null,null,null,null,null,null,null,null,null,null,null,null,null,null,"SWS200WSF","SPD",null,"SSB30"]
["SEWS270RAD-A","Projector Screens Electric","SEWS270RAD-A",2,null,null,null,null,null,null,null,null,null,null,null,null,null,null,null,null,null,null,null,null,null,null,"SWS200WSF10","SPD",null,"SSB30"]
["Sapphire Electric Screen 2.7m ","Projector Screens Electric","SEWS270RBV-ATR",0,null,null,null,null,null,null,null,null,null,null,null,null,null,null,null,null,null,null,null,null,null,null,"SWS200WSF10-ASR2","SPD",null,"SSB30"]
["SEWS270RWSF-ATR10","Projector Screens Electric","SEWS270RWSF-ATR10",47,null,null,null,null,null,null,null,null,null,null,null,null,null,null,null,null,null,null,null,null,null,null,"SWS200WSF-ASR2","SPD",null,"SSB30"]
["SEWS300BV-A","Projector Screens Electric","SEWS300BV-A 868 frequency",23,null,null,null,null,null,null,null,null,null,null,null,null,null,null,null,null,null,null,null,null,null,null,"SWS240-ASR2","SPD",null,"SSB30"]
["SEWS300BWSF-A","Projector Screens Electric","SEWS300BWSF-A",5,null,null,null,null,null,null,null,null,null,null,null,null,null,null,null,null,null,null,null,null,null,null,"SWS240B-ASR2","SPD",null,"SSB30"]
["SEWS300BWSF-A10","Projector Screens Electric","SEWS300BWSF-A10",102,null,null,null,null,null,null,null,null,null,null,null,null,null,null,null,null,null,null,null,null,null,null,"SWS240BV","SPD",null,"SSB30"]
["SEWS350BV-A","Projector Screens Electric","SEWS350BV-A (Channel Fix)",13,null,null,null,null,null,null,null,null,null,null,null,null,null,null,null,null,null,null,null,null,null,null,"SWS240WSF","SPD",null,"SSB30"]
["SEWS350BWSF-A","Projector Screens Electric","SEWS350BWSF-A",34,null,null,null,null,null,null,null,null,null,null,null,null,null,null,null,null,null,null,null,null,null,null,"SWS240WSF10","SPD",null,"SSB30"]
["SEWS400BS","Projector Screens Electric","SEWS400BS (steel casing not channel fix with seam)",2,null,null,null,null,null,null,null,null,null,null,null,null,null,null,null,null,null,null,null,null,null,null,"SWS240WSF10-ASR2","SPD",null,"SSB30"]
["SEWS400BV-A","Projector Screens Electric","SEWS400BV-A",11,null,null,null,null,null,null,null,null,null,null,null,null,null,null,null,null,null,null,null,null,null,null,"SWS240WSF-ASR2","SPD",null,"SSB30"]
["SEWS400BWSF-A","Projector Screens Electric","SEWS400BWSF-A",22,null,null,null,null,null,null,null,null,null,null,null,null,null,null,null,null,null,null,null,null,null,null,"SWS270-ASR2","SPD",null,"SSB30"]
["SEWS450BV","Projector Screens Electric","SEWS450BV - NOT CHANNEL FIX with seam",2,null,null,null,null,null,null,null,null,null,null,null,null,null,null,null,null,null,null,null,null,null,null,"SWS270BV","SPD",null,"SSB30"]
["SEWS450BWSF","Projector Screens Electric","SEWS450BWSF",3,null,null,null,null,null,null,null,null,null,null,null,null,null,null,null,null,null,null,null,null,null,null,"SWS270WSF","SPD",null,"SSB30"]
["SEWS450BWSF-10","Projector Screens Electric","SEWS450BWSF-10",7,null,null,null,null,null,null,null,null,null,null,null,null,null,null,null,null,null,null,null,null,null,null,"SWS270WSF10","SPD",null,"SSB30"]
["SEWS488BV","Projector Screens Electric","SEWS488BV Not channel fix",6,null,null,null,null,null,null,null,null,null,null,null,null,null,null,null,null,null,null,null,null,null,null,"SWS270WSF10-ASR2","SPD",null,"SSB30"]
["SEWS488BWSF-10","Projector Screens Electric","SEWS488BWSF-10 Not Channel Fix",4,null,null,null,null,null,null,null,null,null,null,null,null,null,null,null,null,null,null,null,null,null,null,"SWS270WSF-ASR2","SPD",null,"SSB30"]
["SEWS500WSF-A","Projector Screens Electric","SEWS500WSF-A with seam",0]
["Sswitp","Projector Screens Electric","Simple rocker switch for Sapphire electric projection screens",1]
["SSM240RADV","Projector Screens Electric","Smart move 2 motor screen 2.4M with security straps",4]
["SSM240RADWSF","Projector Screens Electric","Smart move 2 motor screen 2.4M with security straps",4]
["SSM200RADWSF-10","Projector Screens Electric","Smart move 2 motor screen 2m 16:10 with security straps",3]
["SSM200RADV","Projector Screens Electric","Smart move 2 motor screen 2M with security straps",2]
["SSM200RADWSF","Projector Screens Electric","Smart move 2 motor screen 2M with security straps",3]
["SSM300RADWSF","Projector Screens Electric","Smart move 2 motor screen 3M 16:9 with security straps",9]
["SSM300RADV","Projector Screens Electric","Smart move 2 motor screen 3M with security straps",6]
["SSM240RADWSF-10","Projector Screens Electric","SSM240RADWSF-10",13]
["SSM300RADWSF10","Projector Screens Electric","SSM300RADWSF10",14]
["SSM350RADC10","Projector Screens Electric","SSM350RADC10",3]
["SSM350RADV","Projector Screens Electric","SSM350RADV",0]
["SSM350RADWSF","Projector Screens Electric","SSM350RADWSF",1]
["SSM400RADV","Projector Screens Electric","SSM400RADV with security straps",1]
["SWS240WSF10","Projector Screens Electric","SWS240WSF10 16:10",5]
["TW10bundle","Projector Screens Electric","TW10 projector Bundle",0]
["SWS200WSF","Projector Screens Manual","2.0M Projector Wall Screen WSF not chanel fix",0]
["SWS270WSF-ASR2","Projector Screens Manual","Manual master screen with aluminium case",13]
["SWS200WSF-ASR2","Projector Screens Manual","Manual master screen with aluminium case",37]
["SWS180-ASR2","Projector Screens Manual","Manual master screen with aluminium case 4:3",0]
["SFFS244FR10","Projector Screens Manual","Rapid Fold 244 Front Projection 16.10 Format",0]
["SFFS508FR","Projector Screens Manual","Rapid Fold Front Projection Screen Frame",0]
["SFFS305RP","Projector Screens Manual","Rapid Fold Rear Projection 305",1]
["SWS180WSF","Projector Screens Manual","Sapphire 1.8m wall screen WSF not channel fix",4]
["SWS150B","Projector Screens Manual","Sapphire 1500x1500cm Wall Screen",15]
["SWS180B","Projector Screens Manual","Sapphire 1800x1800cm Wall Screen not chanel fix",5]
["SWS180BV","Projector Screens Manual","Sapphire 180BV  not chanel fix",35]
["SWS240B-ASR2","Projector Screens Manual","Sapphire 2.4m square manual screen slow retraction",5]
["SWS200B","Projector Screens Manual","Sapphire 2000x2000cm  not chanel fix",1]
["SPD","Projector Screens Manual","Sapphire Easy Reach Pole 1m",25]
["SWS125B","Projector Screens Manual","Sapphire Manual Projector Screen",2]
["SWS240BV","Projector Screens Manual","Sapphire Manual Projector Screen not chanel fix",3]
["SWS200BV","Projector Screens Manual","Sapphire Manual Screen 2.0M 4:3 Format not chanel fix",17]
["SWS200-ASR2","Projector Screens Manual","Sapphire Manual Screen 2.0m ASR 4:3 Format",4]
["SWS240WSF-ASR2","Projector Screens Manual","Sapphire Manual screen 2.4M ASR2 16:9 format",28]
["SWS240-ASR2","Projector Screens Manual","Sapphire Manual Screen 2.4m ASR2 4:3 FORMAT",15]
["SWS270WSF","Projector Screens Manual","Sapphire Manual Screen 2.7m  16:9 not channel fix",9]
["SWS270-ASR2","Projector Screens Manual","Sapphire Manual Screen chanel fix 4:3 ASR2",7]
["SWS180WSF-ASR2","Projector Screens Manual","Sapphire manual wall screen 1.8m 16:9 format  ASR2",0]
["SFFS404RP-WSF","Projector Screens Manual","SFFS404RP-WSF",0]
["SWS150BV","Projector Screens Manual","SWS150BV",10]
["SWS150WSF","Projector Screens Manual","SWS150WSF Sapphire 16:9 screen",0]
["SWS150WSF10","Projector Screens Manual","SWS150WSF10",1]
["SWS180WSF10","Projector Screens Manual","SWS180WSF10 (16:10)",1]
["SWS180WSF10-ASR2","Projector Screens Manual","SWS180WSF10-ASR2",29]
["SWS200WSF10","Projector Screens Manual","SWS200WSF10 (16:10)",27]
["SWS200WSF10-ASR2","Projector Screens Manual","SWS200WSF10-ASR2",26]
["SWS240WSF","Projector Screens Manual","SWS240WSF not chanel fix",1]
["SWS240WSF10","Projector Screens Manual","SWS240WSF10 16:10",5]
["SWS240WSF10-ASR2","Projector Screens Manual","SWS240WSF10-ASR2",33]
["SWS270BV","Projector Screens Manual","SWS270BV manual video format not chanel fix",0]
["SWS270WSF10","Projector Screens Manual","SWS270WSF10",23]
["SWS270WSF10-ASR2","Projector Screens Manual","SWS270WSF10-ASR2",21]
["SPPS40","Projector Screens Manual","Table top screen 40 inch diagonal W81cm x H61cm",0]
["SFFS244FRFabric","Rapid Fold Screens","2.4M 4by3 Format Front Projection Rapid Fold FABRIC",1]
["Drapery kit 180 in Black","Rapid Fold Screens","Drapery kit 180 in Black",0]
["SFFS508FR","Rapid Fold Screens","Fast Fold Front Projection Screen ",0]
["SFFS203FR-WSF","Rapid Fold Screens","Rapid Fold 203 Front Projection 16:9",5]
["SFFS203RPFABRIC","Rapid Fold Screens","Rapid Fold 203 RPFABRIC",2]
["SFFS244FR10","Rapid Fold Screens","Rapid Fold 244 Front Projection 16.10 Format",0]
["SFFS244FR-WSF","Rapid Fold Screens","Rapid Fold 244 Front Projection 16:9",5]
["SFFS305FR-WSF","Rapid Fold Screens","Rapid Fold 305 Front Projection 16:9",12]
["SFFS365FR-WSF","Rapid Fold Screens","Rapid Fold 365 Front Projection 16:9",4]
["SFFS404FR-WSF","Rapid Fold Screens","Rapid Fold 404 Front Projection 16:9",3]
["SFFS305FRFabric","Rapid Fold Screens","Rapid Fold Front Projection Screen - 3048 x 2286 4:3 Fabric",3]
["SFFS508FR","Rapid Fold Screens","Rapid Fold Front Projection Screen Frame",0]
["SFFS203FR","Rapid Fold Screens","Rapid Fold Front Projection Screen Frame  2032 x 1524 4:3",3]
["SFFS244FR","Rapid Fold Screens","Rapid Fold Front Projection Screen Frame  2438 x 1828  4:3",3]
["SFFS305FR","Rapid Fold Screens","Rapid Fold Front Projection Screen Frame - 3048 x 2286 4:3",6]
["SFFS404FR","Rapid Fold Screens","Rapid Fold Front Projection Screen Frame - 4046 x 3048 4:3",3]
["SFFS365FR","Rapid Fold Screens","Rapid Fold Front Projection Screen Frame 3657 x 2743 4:3",5]
["SFFS305RP","Rapid Fold Screens","Rapid Fold Rear Projection 305",1]
["SFFS244RPFabric","Rapid Fold Screens","Rapid Fold Rear Projection Screen - 2438 x 1828 4:3 Fabric",4]
["SFFS305RPFabric","Rapid Fold Screens","Rapid Fold Rear Projection Screen  3048 x 2286 4:3 Fabric",5]
["SFFS365RP","Rapid Fold Screens","Rapid Fold Rear Projection Screen  3657 x 2743 4:3",3]
["SFFS203RP","Rapid Fold Screens","Rapid Fold Rear Projection Screen 2032 x 1524 4:3",2]
["SFFS404RP","Rapid Fold Screens","Rapid Fold Rear Projection Screen 4046 x 3048 4:3 format",0]
["SFFS203Drapekit-Blue","Rapid Fold Screens","SFFS203Drapekit-Blue",2]
["SFFS203FRFabric","Rapid Fold Screens","SFFS203FR Fabric Front",5]
["SFFS203FR10","Rapid Fold Screens","SFFS203FR10",4]
["SFFS203FR10-Fabric","Rapid Fold Screens","SFFS203FR10-Fabric",0]
["SFFS203FR-WSF-fabric","Rapid Fold Screens","SFFS203FR-WSF-fabric",6]
["SFFS203RP10","Rapid Fold Screens","SFFS203RP10",0]
["SFFS203RP10-Fabric","Rapid Fold Screens","SFFS203RP10-Fabric",0]
["SFFS203RP-WSF","Rapid Fold Screens","SFFS203RP-WSF",2]
["SFFS203RP-WSF-FABRIC","Rapid Fold Screens","SFFS203RP-WSF-FABRIC",2]
["SFFS203WSF10Drapekit-Black","Rapid Fold Screens","SFFS203WSF10Drapekit-Black",0]
["SFFS203WSFDrapekit-Black","Rapid Fold Screens","SFFS203WSFDrapekit-Black",0]
["SFFS244Drapekit-Blue","Rapid Fold Screens","SFFS244Drapekit-Blue",3]
["SFFS244FR-WSF-Fabric","Rapid Fold Screens","SFFS244FR-WSF Fabric",0]
["SFFS244FRWSF-10-Fabric","Rapid Fold Screens","SFFS244FRWSF-10 Fabric",0]
["SFFS244RP","Rapid Fold Screens","SFFS244RP Rapid Fold Rear Projection Screen",0]
["SFFS244RP10","Rapid Fold Screens","SFFS244RP10",1]
["SFFS244RP-10-Fabric","Rapid Fold Screens","SFFS244RP-10 Fabric",1]
["SFFS244RP-WSF","Rapid Fold Screens","SFFS244RP-WSF",0]
["SFFS244RP-WSF-FABRIC","Rapid Fold Screens","SFFS244RP-WSF-FABRIC",3]
["SFFS244WSF10Drapekit-Black","Rapid Fold Screens","SFFS244WSF10Drapekit-Black",0]
["SFFS244WSFDrapekit-Black","Rapid Fold Screens","SFFS244WSFDrapekit-Black",0]
["SFFS305Drapekit-Black","Rapid Fold Screens","SFFS305Drapekit-Black",0]
["SFFS305FR10-Fabric","Rapid Fold Screens","SFFS305FR10 - Fabric",0]
["SFFS305FR-WSF-Fabric","Rapid Fold Screens","SFFS305FR-WSF Fabric Only",6]
["SFFS305RP10","Rapid Fold Screens","SFFS305RP10",1]
["SFFS305RP10-Fabric","Rapid Fold Screens","SFFS305RP10-Fabric",0]
["SFFS305RP-WSF","Rapid Fold Screens","SFFS305RP-WSF",1]
["SFFS305RP-WSF-FABRIC","Rapid Fold Screens","SFFS305RP-WSF-FABRIC ONLY",1]
["SFFS305WSF10Drapekit-Black","Rapid Fold Screens","SFFS305WSF10Drapekit-Black",0]
["SFFS305WSFDrapekit-Black","Rapid Fold Screens","SFFS305WSFDrapekit-Black",0]
["SFFS365Drapekit-Black","Rapid Fold Screens","SFFS365Drapekit-Black",1]
["SFFS365FR10","Rapid Fold Screens","SFFS365FR10",0]
["SFFS365FR10-Fabric","Rapid Fold Screens","SFFS365FR10-Fabric",0]
["SFFS365FR-Fabric","Rapid Fold Screens","SFFS365FR-Fabric",2]
["SFFS365FR-WSF-Fabric","Rapid Fold Screens","SFFS365FR-WSF Fabric Only",1]
["SFFS365RP10","Rapid Fold Screens","SFFS365RP10",0]
["SFFS365RP10-Fabric","Rapid Fold Screens","SFFS365RP10-Fabric",1]
["SFFS365RP-FABRIC","Rapid Fold Screens","SFFS365RP-FABRIC",4]
["SFFS365RP-WSF","Rapid Fold Screens","SFFS365RP-WSF",2]
["SFFS365RP-WSF-Fabric","Rapid Fold Screens","SFFS365RP-WSF-Fabric",2]
["SFFS365WSF10Drapekit-Black","Rapid Fold Screens","SFFS365WSF10Drapekit-Black",0]
["SFFS365WSFDrapekit-Black","Rapid Fold Screens","SFFS365WSFDrapekit-Black",0]
["SFFS404Drapekit-Black","Rapid Fold Screens","SFFS404Drapekit-Black",0]
["SFFS404FR10","Rapid Fold Screens","SFFS404FR10",6]
["SFFS404FR10-Fabric","Rapid Fold Screens","SFFS404FR10-Fabric",0]
["SFFS404FR-FABRIC","Rapid Fold Screens","SFFS404FR-FABRIC",2]
["SFFS404FR-WSF-Fabric","Rapid Fold Screens","SFFS404FR-WSF Fabric",0]
["SFFS404RP10","Rapid Fold Screens","SFFS404RP10",0]
["SFFS404RP10-Fabric","Rapid Fold Screens","SFFS404RP10-Fabric",0]
["SFFS404RP-Fabric","Rapid Fold Screens","SFFS404RP-Fabric",0]
["SFFS404RP-WSF-Fabric","Rapid Fold Screens","SFFS404RP-WSF-Fabric",0]
["SFFS404WSF10Drapekit-Black","Rapid Fold Screens","SFFS404WSF10Drapekit-Black",0]
["SFFS404WSFDrapekit-Black","Rapid Fold Screens","SFFS404WSFDrapekit-Black",0]
["SFFS508RP","Rapid Fold Screens","SFFS508 Rear Projection",1]
["SFFS508FR-Fabric","Rapid Fold Screens","SFFS508FR-Fabric",1]
["SFFS508RP-Fabric","Rapid Fold Screens","SFFS508RP-Fabric",0]
["2SFFS244RPSkirt","Rapid Fold Screens","Skirt for 2SFFS244RP",0]
["IRR","Remotes","IRR Infa-Red Remote Control",38]
["IRR Kit","Remotes","IRR Kit",71]
["SESC Remote pack","Remotes","Radio Remote Pack 433 frequency with 12v built in plus 10m lead",0]
["STR","Remotes","Radio Trigger for Sapphire Screen (with box)",125]
["STR","Remotes","Radio Trigger for Sapphire Screen (with box)",125]
["SRC7","Remotes","Sapphire Room Control System 7",7]
["SANS1AB","SteljesAudio","Steljes Audio NS1 Speakers Artisian Blue",0]
["SANS1AB","SteljesAudio","Steljes Audio NS1 Speakers Artisian Blue",0]
["SANS1CB","SteljesAudio","Steljes Audio NS1 Speakers Black",0]
["SANS1CB","SteljesAudio","Steljes Audio NS1 Speakers Black",0]
["SANS1FW","SteljesAudio","Steljes Audio NS1 Speakers Frost White",0]
["SANS1FW","SteljesAudio","Steljes Audio NS1 Speakers Frost White",0]
["SAN1GMG","SteljesAudio","Steljes Audio NS1 Speakers Gun Metal Grey",0]
["SAN1GMG","SteljesAudio","Steljes Audio NS1 Speakers Gun Metal Grey",0]
["SANS1GMG","SteljesAudio","Steljes Audio NS1 Speakers Gun Metal Grey",0]
["SANS1GMG","SteljesAudio","Steljes Audio NS1 Speakers Gun Metal Grey",0]
["SANS1LB","SteljesAudio","Steljes Audio NS1 Speakers Lagoon Blue",0]
["SANS1LB","SteljesAudio","Steljes Audio NS1 Speakers Lagoon Blue",0]
["SANS1SY","SteljesAudio","Steljes Audio NS1 Speakers Solar Yellow",2]
["SANS1SY","SteljesAudio","Steljes Audio NS1 Speakers Solar Yellow",0]
["SANS1VR","SteljesAudio","Steljes Audio NS1 Speakers Vermilion Red",0]
["SANS1VR","SteljesAudio","Steljes Audio NS1 Speakers Vermilion Red",0]
["SANS3AB","SteljesAudio","Steljes Audio NS3 Speakers Artisan Blue",0]
["SANS3AB","SteljesAudio","Steljes Audio NS3 Speakers Artisan Blue",0]
["SANS3B","SteljesAudio","Steljes Audio NS3 Speakers Bamboo",0]
["SAN3CB","SteljesAudio","Steljes Audio NS3 Speakers Coal Black",0]
["SAN3CB","SteljesAudio","Steljes Audio NS3 Speakers Coal Black",52]
["SANS3FW","SteljesAudio","Steljes Audio NS3 Speakers Frost White",0]
["SANS3FW","SteljesAudio","Steljes Audio NS3 Speakers Frost White",0]
["SANS3GMG","SteljesAudio","Steljes Audio NS3 Speakers Gun Metal Grey",1]
["SANS3GMG","SteljesAudio","Steljes Audio NS3 Speakers Gun Metal Grey",0]
["SANS3LB","SteljesAudio","Steljes Audio NS3 Speakers Lagoon Blue",0]
["SANS3LB","SteljesAudio","Steljes Audio NS3 Speakers Lagoon Blue",0]
["SANS3SY","SteljesAudio","Steljes Audio NS3 Speakers Solar Yellow",0]
["SANS3SY","SteljesAudio","Steljes Audio NS3 Speakers Solar Yellow",0]
["SANS3VR","SteljesAudio","Steljes Audio NS3 Speakers Vermilion Red",0]
["SANS3VR","SteljesAudio","Steljes Audio NS3 Speakers Vermilion Red",0]
["SANS6B","SteljesAudio","Steljes Audio NS6 Bamboo",0]
["SAMS2","SteljesAudio","Steljes Audio SAMS2 Black Music streamer",696]
["SETC240WSF-ATR","Tab Tensioned ","Sapphire 2.4m Tab tensioned recessed screen",4]
["SETC270WSF-ATR","Tab Tensioned ","Sapphire 2.7m Tab tensioned recessed screen",6]
["SETC200WSF-ATR","Tab Tensioned ","Sapphire 2m Tab tensioned recessed screen",8]
["STB125150","Tripod Bags","STB125150 Tripod Bag",4]
["STB180200","Tripod Bags","STB180200 Tripod Bag",26]
["STB240","Tripod Bags","STB240 Tripod Bag",14]
["STS150","Tripod Projector Screens","Sapphire 1.5m Tripod Screen",3]
["STS180","Tripod Projector Screens","Sapphire 1.80m Tripod Screen",4]
["STS200","Tripod Projector Screens","Sapphire 2.0m Tripod Screen",15]
["STS125","Tripod Projector Screens","Sapphire Tripod Projector Screen",3]
["STRVE1","Trolleys and Carts","Electric trolley lift for large LCD/Boards",5]
["LECT2beech","Trolleys and Carts","LECTURN BEECH",27]
["Shure EZG12","Trolleys and Carts","Shure EZG12 12 Gooseneck Lecturn Mic",0]
["SSLECT2B","Trolleys and Carts","Sound Lectern Black",28]
["STRV102D","Trolleys and Carts","STRV102  Sapphire Mobile Audio Visual Trolley",144]
["STRV102L","Trolleys and Carts","STRV102 Sapphire Mobile Audio Visual Trolley",61]

{"sheet":"Logic","index":5,"n_rows":11,"n_cols":11,"rows_kept":11,"cut":false,"hidden":true,"merged":[]}
["Logic bank for complimentary products"]
[]
["SAPPL03","http://www.sapphireav.com/Sapphire-Electronic-Projector-Inceiling-Lift-To-Suit-Larger-Projectors_p_547.html",null,null,null,null,"iIf product = SESC* then SAPPL03 and link"]
["SSB30","http://www.sapphireav.com/search.asp?keyword=ssb30&search.x=0&search.y=0",null,null,null,null,"If product = SEWS*less than of =  SEWS400 or SETTS less than of = to SETTS300* then product = SSB30"]
["STR","http://www.sapphireav.com/Sapphire-Auto-Trigger-System_p_16.html",null,null,null,null,"If product = SEWS*less or SETTS* or SSM* then product = STR"]
["STRV102L","http://www.sapphireav.com/AV-Cabinet-with-three-shelves-light_p_450.html",null,null,null,null,"If Product = SEWS300* to SEWS500 then product = STRV102L"]
[]
[null,"All ATR screens","SEWSscreens","SETTS","SETC","SESC","SSM","STS","SFL","SFFS","SWS"]
["option 1","Swithc",null,"Switch","Switch","Switch","Swith","Bag",null,"Drape kit"]
["option 2","SSB","SSB","SSB","SAPPL03","SAPPL03","SAPL03",null,"VGA","VGA","SSB"]
["option 3","STR","STR","STR","STR","STR","STR",null,null,"FABRIC"]